Workbook

Sheet Model Description
B2: Tab | C2: Description
B3: Summary | C3: This tab allows the user to input the year, baseline region, and other assumptions. Includes outputs of average bills for current and inputted year.
C4: Bundled represents customers that we procure gas for. System refers to all customer classes combined. Total System for a customer class includes Bundled + Unbundled.
B5: Authorized Rev Req | C5: This tab shows the authorized revenue requirement for each line item that is in existing rates.
B6: Incremental Rev Req | C6: This tab contains several sections: (i) Approved Application(s), (ii) Pending Application(s) Not Yet Approved, and (iii) Applications Projected to be Filed.
C7: The Approved Application(s) section shows the authorized revenue requirement for each line item forecasted out by year.
C8: The Pending Application(s) Not Yet Approved section includes pending advice letters or applications for new proceedings and any pending increases or decreases to current line items.
B9: SAR and RAR | C9: This tab shows the total revenue and the allocated revenue used to calculate Residential rates for the inputted year.
C10: The Residential percent allocations for the Revenue Recovery Mechanisms are estimated using the detailed Cost Allocation and Rate Design Model.
B11: Res Bill Impact | C11: This tab shows the calculation for Residential rates and average monthly bills.
B12: Hypothetical Tabs | C12: These tabs allow the user to estimate rate impacts from hypothetical revenue requirement changes relative to current rates.
B14: *IMPORTANT NOTE: | C14: CRT model uses current year CRT-calculated rates for comparison with future rates. For Hypothetical tabs, CRT uses current rates.

Sheet Summary
B1: Inputs: | G1: Assumptions:
C2: =CONCATENATE("Rate Impact for Year (",SetUp!J5,"-",SetUp!J9,")") -> Rate Impact for Year (2024-2028) | D2: 2024 | G2: Current Effective Rates | I2: =CurrentEffectiveRateDate -> 2024-12-01
C3: Baseline Region - (Residential bill) | D3: 1 | G3: Sales Forecast | I3: 2024
G4: Residential bill calculated using | I4: Schedule GR, Basic, Bundled, Single Family
G5: Non-CARE bill impact calculated with average summer usage of | K5: =IF($D$3="ALL",SUMPRODUCT('Res Bill Impact'!Q22:Q25,'Res Bill Impact'!U22:U25),VLOOKUP($D$3,'Res Bill Impact'!$P$22:$T$25,2,FALSE)) -> 23.70273381 | L5: therms per month
B6: Pending Proceedings | D6: Include in Impact (Y) | E6: Applicable Year(s) | G6: Non-CARE bill impact calculated with average winter usage of | K6: =IF($D$3="ALL",SUMPRODUCT('Res Bill Impact'!R22:R25,'Res Bill Impact'!U22:U25),VLOOKUP(D$3,'Res Bill Impact'!$P$22:$T$25,3,FALSE)) -> 50.81583062 | L6: therms per month
B7: ='Incremental Rev Req'!A100 -> 2024 GRC Application | D7: Y | E7: 2024-2027 | G7: CARE bill impact calculated with average summer usage of | K7: =IF($D$3="ALL",SUMPRODUCT('Res Bill Impact'!S22:S25,'Res Bill Impact'!V22:V25),VLOOKUP($D$3,'Res Bill Impact'!$P$22:$T$25,4,FALSE)) -> 17.65198412 | L7: therms per month
B8: ='Incremental Rev Req'!A101 -> Pipeline Safety Enhancement Plan (PSEP) GRC - Local Transmission | D8: Y | E8: 2024-2027 | G8: CARE bill impact calculated with average winter usage of | K8: =IF($D$3="ALL",SUMPRODUCT('Res Bill Impact'!T22:T25,'Res Bill Impact'!V22:V25),VLOOKUP($D$3,'Res Bill Impact'!$P$22:$T$25,5,FALSE)) -> 36.09496759 | L8: therms per month
B9: ='Incremental Rev Req'!A102 -> Pipeline Safety Enhancement Plan (PSEP) GRC -Distribution | D9: Y | E9: 2024-2027 | G9: Average monthly usage is for all customers (Non-CARE and CARE) based on seasonal usage in | L9: 2024
B10: ='Incremental Rev Req'!A103 -> NonCore Backbone Transmission | D10: Y | E10: 2024-2027 | G10: Summer season | I10: 6 | J10: months
B11: ='Incremental Rev Req'!A105 -> Catastrophic Event Memorandum Account (CEMA) | D11: Y | E11: 2025 | G11: Winter Season | I11: =12-I10 -> 6 | J11: months
B12: ='Incremental Rev Req'!A114 -> Cost Allocation Proceeding | D12: Y | E12: 2024-2026
B13: ='Incremental Rev Req'!A104 -> TIMPBA | D13: Y | E13: 2025
B14: ='Incremental Rev Req'!A106 -> COVID-19 Pandemic Protections Memorandum Account (CPPMA) | D14: Y | E14: 2025
B15: ='Incremental Rev Req'!A107 -> DIMPBA | D15: Y | E15: 2025
B18: Outputs:
D19: (A) | E19: (B) | F19: (C) | G19: (D) | H19: (D)/(A) | I19: (D)/(B) | J19: (D)/(C) | N19: (A) | O19: (B) | P19: (C) | Q19: (D) | R19: (D)/(A) | S19: (D)/(B) | T19: (D)/(C)
B20: Bundled Average Rates - ¢/therm | L20: Total System (Bundled and Unbundled) Average Rates - ¢/th
B21: Customer Group | D21: =BOYEffectiveRateDate -> 2024-01-01 | E21: =CurrentEffectiveRateDate -> 2024-12-01 | F21: =$D$2&" Authorized" -> 2024 Authorized | G21: =$D$2&" w/Pending" -> 2024 w/Pending | H21: =CONCATENATE("% Change over ",TEXT(BOYEffectiveRateDate,"m/d/yyyy")) -> % Change over 1/1/2024 | I21: =CONCATENATE("% Change over ",TEXT(CurrentEffectiveRateDate,"m/d/yyyy")) -> % Change over 12/1/2024 | J21: % Change over Authorized | L21: Customer Group | N21: =$D$21 -> 2024-01-01 | O21: =$E$21 -> 2024-12-01 | P21: =$D$2&" Authorized" -> 2024 Authorized | Q21: =$D$2&" w/Pending" -> 2024 w/Pending | R21: =$H$21 -> % Change over 1/1/2024 | S21: =$I$21 -> % Change over 12/1/2024 | T21: % Change over Authorized
B22: Residential | D22: 182.5482299 | E22: ='SAR and RAR'!G28 -> 183.5486042 | F22: ='SAR and RAR'!H28 -> 183.5486042 | G22: ='SAR and RAR'!I28 -> 221.5021213 | H22: =$G22/D22-1 -> 0.2133895872 | I22: =$G22/E22-1 -> 0.2067763859 | J22: =$G22/F22-1 -> 0.2067763859 | L22: Total Residential (RAR) | N22: 181.9399193 | O22: ='SAR and RAR'!R28 -> 182.9478165 | P22: ='SAR and RAR'!S28 -> 182.9478165 | Q22: ='SAR and RAR'!T28 -> 220.9013335 | R22: =$Q22/N22-1 -> 0.2141443962 | S22: =$Q22/O22-1 -> 0.207455425 | T22: 0.207455425
B23: System | D23: 103.8391374 | E23: ='SAR and RAR'!G29 -> 105.5370707 | F23: ='SAR and RAR'!H29 -> 105.5370707 | G23: ='SAR and RAR'!I29 -> 118.7530199 | H23: =$G23/D23-1 -> 0.1436248684 | I23: 0.125225659 | J23: =$G23/F23-1 -> 0.125225659 | L23: Total System (SAR) | N23: 74.38056663 | O23: ='SAR and RAR'!R29 -> 76.07849986 | P23: ='SAR and RAR'!S29 -> 76.07849986 | Q23: ='SAR and RAR'!T29 -> 89.29444908 | R23: 0.2005077822 | S23: 0.1737146401 | T23: 0.1737146401
B26: Basic Bundled Residential Monthly Average Bills
D27: =BOYEffectiveRateDate -> 2024-01-01 | E27: =CurrentEffectiveRateDate -> 2024-12-01 | F27: =$D$2&" Authorized" -> 2024 Authorized | G27: =$D$2&" w/Pending" -> 2024 w/Pending | H27: =CONCATENATE("% Change over ",TEXT(BOYEffectiveRateDate,"m/d/yyyy")) -> % Change over 1/1/2024 | I27: =CONCATENATE("% Change over ",TEXT(CurrentEffectiveRateDate,"m/d/yyyy")) -> % Change over 12/1/2024 | J27: % Change over Authorized
B28: Non-CARE | D28: =((D34*$I$10)+(D40*$I$11))/12 -> 71.78213043 | E28: =((E34*$I$10)+(E40*$I$11))/12 -> 72.17897953 | F28: 72.17779549 | G28: 87.23371205 | H28: =$G28/D28-1 -> 0.2152566597 | I28: 0.2085750259 | J28: 0.2085948519
B29: CARE | D29: =((D35*$I$10)+(D41*$I$11))/12 -> 39.35331934 | E29: 39.56336197 | F29: 39.5606434 | G29: 47.52890676 | H29: 0.2077483566 | I29: 0.2013363981 | J29: 0.2014189528
B30: Total | D30: =((D36*$I$10)+(D42*$I$11))/12 -> 63.76743613 | E30: 64.11811651 | F30: 64.11655321 | G30: 77.42077516 | H30: 0.2141114628 | I30: 0.2074711389 | J30: 0.2075005795 | M30: ='Res Bill Impact'!P18 -> Basic Bundled
M31: ='Res Bill Impact'!P19 -> 2023 Recorded Data - Average Monthly Usage - ALL-BASIC th
B32: Basic Bundled Residential Monthly Average Bills - Summer | M32: Climate Zone | N32: Summer | O32: Winter | P32: Summer | Q32: Winter
D33: =BOYEffectiveRateDate -> 2024-01-01 | E33: =CurrentEffectiveRateDate -> 2024-12-01 | F33: =$D$2&" Authorized" -> 2024 Authorized | G33: =$D$2&" w/Pending" -> 2024 w/Pending | H33: =CONCATENATE("% Change over ",TEXT(BOYEffectiveRateDate,"m/d/yyyy")) -> % Change over 1/1/2024 | I33: =CONCATENATE("% Change over ",TEXT(CurrentEffectiveRateDate,"m/d/yyyy")) -> % Change over 12/1/2024 | J33: % Change over Authorized | N33: Non-CARE | P33: CARE
B34: Non-CARE | D34: =IF($D$3="All",'Res Bill Impact'!$C$47,(VLOOKUP($D$3,'Res Bill Impact'!$B$43:$J$46,2,FALSE))) -> 48.79418242 | E34: =IF($D$3="All",'Res Bill Impact'!$E$47,(VLOOKUP($D$3,'Res Bill Impact'!$B$43:$J$46,4,FALSE))) -> 49.05443126 | F34: =IF($D$3="All",'Res Bill Impact'!$G$47,(VLOOKUP($D$3,'Res Bill Impact'!$B$43:$J$46,6,FALSE))) -> 49.05824751 | G34: =IF($D$3="All",'Res Bill Impact'!$I$47,(VLOOKUP($D$3,'Res Bill Impact'!$B$43:$J$46,8,FALSE))) -> 58.93276549 | H34: =$G34/D34-1 -> 0.2077826202 | I34: =$G34/E34-1 -> 0.201374962 | J34: =$G34/F34-1 -> 0.2012815068 | M34: =Zones -> 1 | N34: ='Res Bill Impact'!Q22 -> 23.70273381 | O34: ='Res Bill Impact'!R22 -> 50.81583062 | P34: ='Res Bill Impact'!S22 -> 17.65198412 | Q34: ='Res Bill Impact'!T22 -> 36.09496759
B35: CARE | D35: =IF($D$3="All",'Res Bill Impact'!$C$57,(VLOOKUP($D$3,'Res Bill Impact'!$B$53:$J$56,2,FALSE))) -> 28.31002513 | E35: =IF($D$3="All",'Res Bill Impact'!$E$57,(VLOOKUP($D$3,'Res Bill Impact'!$B$53:$J$56,4,FALSE))) -> 28.45446179 | F35: =IF($D$3="All",'Res Bill Impact'!$G$57,(VLOOKUP($D$3,'Res Bill Impact'!$B$53:$J$56,6,FALSE))) -> 28.45647038 | G35: =IF($D$3="All",'Res Bill Impact'!$I$57,(VLOOKUP($D$3,'Res Bill Impact'!$B$53:$J$56,8,FALSE))) -> 33.93674848 | H35: =$G35/D35-1 -> 0.1987537391 | I35: =$G35/E35-1 -> 0.1926687888 | J35: 0.1925846049 | M35: 2 | N35: ='Res Bill Impact'!Q23 -> 19.99227159 | O35: ='Res Bill Impact'!R23 -> 57.29689283 | P35: ='Res Bill Impact'!S23 -> 18.34027962 | Q35: ='Res Bill Impact'!T23 -> 53.47749147
B36: Total | D36: =D34*(1-'SAR and RAR'!$AC$15)+D35*'SAR and RAR'!$AC$15 -> 43.73157749 | E36: =E34*(1-'SAR and RAR'!$AC$15)+E35*'SAR and RAR'!$AC$15 -> 43.96320366 | F36: =F34*(1-'SAR and RAR'!$AC$15)+F35*'SAR and RAR'!$AC$15 -> 43.96657315 | G36: =G34*(1-'SAR and RAR'!$AC$15)+G35*'SAR and RAR'!$AC$15 -> 52.75506645 | H36: =$G36/D36-1 -> 0.2063380622 | I36: 0.1999823047 | J36: 0.1998903409 | M36: 3 | N36: ='Res Bill Impact'!Q24 -> 22.17202669 | O36: ='Res Bill Impact'!R24 -> 81.47984045 | P36: ='Res Bill Impact'!S24 -> 25.0900804 | Q36: ='Res Bill Impact'!T24 -> 88.99966758
M37: 0 | N37: ='Res Bill Impact'!Q25 -> 0 | O37: ='Res Bill Impact'!R25 -> 0 | P37: ='Res Bill Impact'!S25 -> 0 | Q37: ='Res Bill Impact'!T25 -> 0
B38: Basic Bundled Residential Monthly Average Bills - Winter
D39: =BOYEffectiveRateDate -> 2024-01-01 | E39: =CurrentEffectiveRateDate -> 2024-12-01 | F39: =$D$2&" Authorized" -> 2024 Authorized | G39: =$D$2&" w/Pending" -> 2024 w/Pending | H39: =CONCATENATE("% Change over ",TEXT(BOYEffectiveRateDate,"m/d/yyyy")) -> % Change over 1/1/2024 | I39: =CONCATENATE("% Change over ",TEXT(CurrentEffectiveRateDate,"m/d/yyyy")) -> % Change over 12/1/2024 | J39: % Change over Authorized
B40: Non-CARE | D40: =IF($D$3="All",'Res Bill Impact'!$D$47,(VLOOKUP($D$3,'Res Bill Impact'!$B$43:$J$46,3,FALSE))) -> 94.77007845 | E40: =IF($D$3="All",'Res Bill Impact'!$F$47,(VLOOKUP($D$3,'Res Bill Impact'!$B$43:$J$46,5,FALSE))) -> 95.3035278 | F40: =IF($D$3="All",'Res Bill Impact'!$H$47,(VLOOKUP($D$3,'Res Bill Impact'!$B$43:$J$46,7,FALSE))) -> 95.29734348 | G40: =IF($D$3="All",'Res Bill Impact'!$J$47,(VLOOKUP($D$3,'Res Bill Impact'!$B$43:$J$46,9,FALSE))) -> 115.5346586 | H40: =$G40/D40-1 -> 0.2191048115 | I40: =$G40/E40-1 -> 0.2122810276 | J40: 0.2123596986
B41: CARE | D41: =IF($D$3="All",'Res Bill Impact'!$D$57,(VLOOKUP($D$3,'Res Bill Impact'!$B$53:$J$56,3,FALSE))) -> 50.39661355 | E41: =IF($D$3="All",'Res Bill Impact'!$F$57,(VLOOKUP($D$3,'Res Bill Impact'!$B$53:$J$56,5,FALSE))) -> 50.67226214 | F41: =IF($D$3="All",'Res Bill Impact'!$H$57,(VLOOKUP($D$3,'Res Bill Impact'!$B$53:$J$56,7,FALSE))) -> 50.66481642 | G41: =IF($D$3="All",'Res Bill Impact'!$J$57,(VLOOKUP($D$3,'Res Bill Impact'!$B$53:$J$56,9,FALSE))) -> 61.12106504 | H41: 0.2128010344 | I41: 0.2062036005 | J41: 0.2063808648
B42: Total | D42: =D40*(1-'SAR and RAR'!$AC$15)+D41*'SAR and RAR'!$AC$15 -> 83.80329477 | E42: =E40*(1-'SAR and RAR'!$AC$15)+E41*'SAR and RAR'!$AC$15 -> 84.27302935 | F42: =F40*(1-'SAR and RAR'!$AC$15)+F41*'SAR and RAR'!$AC$15 -> 84.26653327 | G42: =G40*(1-'SAR and RAR'!$AC$15)+G41*'SAR and RAR'!$AC$15 -> 102.0864839 | H42: 0.2181679033 | I42: 0.2113778828 | J42: 0.2114712675
B45: Basic Bundled Essential Use Residential Monthly Average Bills
D46: =BOYEffectiveRateDate -> 2024-01-01 | E46: =CurrentEffectiveRateDate -> 2024-12-01 | F46: =$D$2&" Authorized" -> 2024 Authorized | G46: =$D$2&" w/Pending" -> 2024 w/Pending | H46: =CONCATENATE("% Change over ",TEXT(BOYEffectiveRateDate,"m/d/yyyy")) -> % Change over 1/1/2024 | I46: =CONCATENATE("% Change over ",TEXT(CurrentEffectiveRateDate,"m/d/yyyy")) -> % Change over 12/1/2024 | J46: % Change over Authorized
B47: Essential Use - Non-CARE | D47: =((D53*$I$10)+(D59*$I$11))/12 -> 46.55209386 | E47: =((E53*$I$10)+(E59*$I$11))/12 -> 46.79900307 | F47: 46.78580333 | G47: 56.15040923 | H47: =$G47/D47-1 -> 0.2061843963 | I47: 0.1998206275 | J47: 0.2001591343
B48: Essential Use - CARE | D48: =((D54*$I$10)+(D60*$I$11))/12 -> 36.34933249 | E48: 36.54152427 | F48: 36.53633285 | G48: 43.82679303 | H48: 0.2057110827 | I48: 0.1993695912 | J48: 0.1995400087
B49: Total | D49: =D47*(1-'SAR and RAR'!$AC$15)+D48*'SAR and RAR'!$AC$15 -> 44.03050856 | E49: =E47*(1-'SAR and RAR'!$AC$15)+E48*'SAR and RAR'!$AC$15 -> 44.2638945 | F49: =F47*(1-'SAR and RAR'!$AC$15)+F48*'SAR and RAR'!$AC$15 -> 44.252674 | G49: =G47*(1-'SAR and RAR'!$AC$15)+G48*'SAR and RAR'!$AC$15 -> 53.1046603 | H49: =$G49/D49-1 -> 0.2060878251 | I49: =$G49/E49-1 -> 0.1997286028 | J49: 0.2000328004
M50: ='Res Bill Impact'!H19 -> Essential Usage
B51: Basic Bundled Essential Use Residential Monthly Average Bills - Summer | M51: Monthly Tier 1 Baseline Allowance -BASIC (th)
D52: =BOYEffectiveRateDate -> 2024-01-01 | E52: =CurrentEffectiveRateDate -> 2024-12-01 | F52: =$D$2&" Authorized" -> 2024 Authorized | G52: =$D$2&" w/Pending" -> 2024 w/Pending | H52: =CONCATENATE("% Change over ",TEXT(BOYEffectiveRateDate,"m/d/yyyy")) -> % Change over 1/1/2024 | I52: =CONCATENATE("% Change over ",TEXT(CurrentEffectiveRateDate,"m/d/yyyy")) -> % Change over 12/1/2024 | J52: % Change over Authorized | M52: Climate Zone | N52: Summer 2021 | O52: Winter 2021
B53: Essential Use - Non-CARE | D53: =IF($D$3="All",'Res Bill Impact'!C67,(VLOOKUP($D$3,'Res Bill Impact'!$B$63:$J$66,2,FALSE))) -> 26.4639955 | E53: =IF($D$3="All",'Res Bill Impact'!E67,(VLOOKUP($D$3,'Res Bill Impact'!$B$63:$J$66,4,FALSE))) -> 26.59153801 | F53: =IF($D$3="All",'Res Bill Impact'!G67,(VLOOKUP($D$3,'Res Bill Impact'!$B$63:$J$66,6,FALSE))) -> 26.5847196 | G53: =IF($D$3="All",'Res Bill Impact'!I67,(VLOOKUP($D$3,'Res Bill Impact'!$B$63:$J$66,8,FALSE))) -> 31.42206569 | H53: =$G53/D53-1 -> 0.1873515354 | I53: =$G53/E53-1 -> 0.1816565737 | J53: =$G53/F53-1 -> 0.1819596431 | M53: =Zones -> 1 | N53: ='Res Bill Impact'!I22 -> 13 | O53: ='Res Bill Impact'!J22 -> 37.33333333
B54: Essential Use - CARE | D54: =IF($D$3="All",'Res Bill Impact'!C77,(VLOOKUP($D$3,'Res Bill Impact'!$B$73:$J$76,2,FALSE))) -> 20.71025122 | E54: =IF($D$3="All",'Res Bill Impact'!E77,(VLOOKUP($D$3,'Res Bill Impact'!$B$73:$J$76,4,FALSE))) -> 20.80952909 | F54: =IF($D$3="All",'Res Bill Impact'!G77,(VLOOKUP($D$3,'Res Bill Impact'!$B$73:$J$76,6,FALSE))) -> 20.80684743 | G54: =IF($D$3="All",'Res Bill Impact'!I77,(VLOOKUP($D$3,'Res Bill Impact'!$B$73:$J$76,8,FALSE))) -> 24.5727805 | H54: =$G54/D54-1 -> 0.1865032561 | I54: 0.1808426992 | J54: 0.1809948904 | M54: 2 | N54: ='Res Bill Impact'!I23 -> 13 | O54: ='Res Bill Impact'!J23 -> 42.16666667
B55: Total | D55: =D53*(1-'SAR and RAR'!$AC$15)+D54*'SAR and RAR'!$AC$15 -> 25.04197293 | E55: =E53*(1-'SAR and RAR'!$AC$15)+E54*'SAR and RAR'!$AC$15 -> 25.1625299 | F55: =F53*(1-'SAR and RAR'!$AC$15)+F54*'SAR and RAR'!$AC$15 -> 25.15673388 | G55: =G53*(1-'SAR and RAR'!$AC$15)+G54*'SAR and RAR'!$AC$15 -> 29.7292831 | H55: =$G55/D55-1 -> 0.1871781504 | I55: =$G55/E55-1 -> 0.1814902243 | J55: 0.1817624354 | M55: 3 | N55: ='Res Bill Impact'!I24 -> 13 | O55: ='Res Bill Impact'!J24 -> 65
M56: 0 | N56: ='Res Bill Impact'!I25 -> 0 | O56: ='Res Bill Impact'!J25 -> 0
B57: Basic Bundled Essential Use Residential Monthly Average Bills - Winter
D58: =BOYEffectiveRateDate -> 2024-01-01 | E58: =CurrentEffectiveRateDate -> 2024-12-01 | F58: =$D$2&" Authorized" -> 2024 Authorized | G58: =$D$2&" w/Pending" -> 2024 w/Pending | H58: =CONCATENATE("% Change over ",TEXT(BOYEffectiveRateDate,"m/d/yyyy")) -> % Change over 1/1/2024 | I58: =CONCATENATE("% Change over ",TEXT(CurrentEffectiveRateDate,"m/d/yyyy")) -> % Change over 12/1/2024 | J58: % Change over Authorized
B59: Essential Use - Non-CARE | D59: =IF($D$3="All",'Res Bill Impact'!D67,(VLOOKUP($D$3,'Res Bill Impact'!$B$63:$J$66,3,FALSE))) -> 66.64019221 | E59: =IF($D$3="All",'Res Bill Impact'!F67,(VLOOKUP($D$3,'Res Bill Impact'!$B$63:$J$66,5,FALSE))) -> 67.00646813 | F59: =IF($D$3="All",'Res Bill Impact'!H67,(VLOOKUP($D$3,'Res Bill Impact'!$B$63:$J$66,7,FALSE))) -> 66.98688707 | G59: =IF($D$3="All",'Res Bill Impact'!J67,(VLOOKUP($D$3,'Res Bill Impact'!$B$63:$J$66,9,FALSE))) -> 80.87875276 | H59: =$G59/D59-1 -> 0.2136632575 | I59: =$G59/E59-1 -> 0.2070290379 | J59: =$G59/F59-1 -> 0.2073818669
B60: Essential Use - CARE | D60: =IF($D$3="All",'Res Bill Impact'!D77,(VLOOKUP($D$3,'Res Bill Impact'!$B$73:$J$76,3,FALSE))) -> 51.98841375 | E60: =IF($D$3="All",'Res Bill Impact'!F77,(VLOOKUP($D$3,'Res Bill Impact'!$B$73:$J$76,5,FALSE))) -> 52.27351945 | F60: =IF($D$3="All",'Res Bill Impact'!H77,(VLOOKUP($D$3,'Res Bill Impact'!$B$73:$J$76,7,FALSE))) -> 52.26581827 | G60: =IF($D$3="All",'Res Bill Impact'!J77,(VLOOKUP($D$3,'Res Bill Impact'!$B$73:$J$76,9,FALSE))) -> 63.08080555 | H60: =$G60/D60-1 -> 0.2133627667 | I60: 0.2067449488 | J60: 0.2069227583
B61: Total | D61: =D59*(1-'SAR and RAR'!$AC$15)+D60*'SAR and RAR'!$AC$15 -> 63.01904419 | E61: =E59*(1-'SAR and RAR'!$AC$15)+E60*'SAR and RAR'!$AC$15 -> 63.3652591 | F61: =F59*(1-'SAR and RAR'!$AC$15)+F60*'SAR and RAR'!$AC$15 -> 63.34861412 | G61: =G59*(1-'SAR and RAR'!$AC$15)+G60*'SAR and RAR'!$AC$15 -> 76.48003751 | H61: 0.2136019912 | I61: 0.2069711163 | J61: 0.2072882505
B64: Basic Bundled Typical Residential Monthly Average Bills
D65: =BOYEffectiveRateDate -> 2024-01-01 | E65: =CurrentEffectiveRateDate -> 2024-12-01 | F65: =$D$2&" Authorized" -> 2024 Authorized | G65: =$D$2&" w/Pending" -> 2024 w/Pending | H65: =CONCATENATE("% Change over ",TEXT(BOYEffectiveRateDate,"m/d/yyyy")) -> % Change over 1/1/2024 | I65: =CONCATENATE("% Change over ",TEXT(CurrentEffectiveRateDate,"m/d/yyyy")) -> % Change over 12/1/2024 | J65: % Change over Authorized
B66: 5-Year Average Usage- Non-CARE | D66: =((D72*$I$10)+(D78*$I$11))/12 -> 71.08007821 | E66: =((E72*$I$10)+(E78*$I$11))/12 -> 71.47275508 | F66: 71.47123669 | G66: 86.36878657 | H66: =$G66/D66-1 -> 0.2150913271 | I66: 0.2084155211 | J66: 0.2084411935
C67: 5-Year Average Usage - CARE | D67: =((D73*$I$10)+(D79*$I$11))/12 -> 39.23280437 | E67: 39.44213111 | F67: 39.43951529 | G67: 47.38064132 | H67: =$G67/D67-1 -> 0.2076791879 | I67: =$G67/E67-1 -> 0.2012698095 | J67: =$G67/F67-1 -> 0.2013494834
B68: Total | D68: =((D74*$I$10)+(D80*$I$11))/12 -> 63.20910929 | E68: 63.55647166 | F68: 63.55468205 | G68: 76.73297029 | H68: 0.2139543043 | I68: 0.2073195426 | J68: 0.2073535391 | M68: ='Res Bill Impact'!P27 -> Typical Bundled
M69: ='Res Bill Impact'!P28 -> 2019-2023 Recorded Data - Average Monthly Usage - ALL-BASIC th
B70: Basic Bundled Typical Residential Monthly Average Bills - Summer | M70: Climate Zone | N70: Summer | O70: Winter | P70: Summer | Q70: Winter
D71: =BOYEffectiveRateDate -> 2024-01-01 | E71: =CurrentEffectiveRateDate -> 2024-12-01 | F71: =$D$2&" Authorized" -> 2024 Authorized | G71: =$D$2&" w/Pending" -> 2024 w/Pending | H71: =CONCATENATE("% Change over ",TEXT(BOYEffectiveRateDate,"m/d/yyyy")) -> % Change over 1/1/2024 | I71: =CONCATENATE("% Change over ",TEXT(CurrentEffectiveRateDate,"m/d/yyyy")) -> % Change over 12/1/2024 | J71: % Change over Authorized | N71: Non-CARE | P71: CARE
B72: 5-Year Average Usage - Non-CARE | D72: =IF($D$3="All",'Res Bill Impact'!C87,(VLOOKUP($D$3,'Res Bill Impact'!$B$83:$J$86,2,FALSE))) -> 47.76862794 | E72: =IF($D$3="All",'Res Bill Impact'!E87,(VLOOKUP($D$3,'Res Bill Impact'!$B$83:$J$86,4,FALSE))) -> 48.022782 | F72: =IF($D$3="All",'Res Bill Impact'!G87,(VLOOKUP($D$3,'Res Bill Impact'!$B$83:$J$86,6,FALSE))) -> 48.02610984 | G72: =IF($D$3="All",'Res Bill Impact'!I87,(VLOOKUP($D$3,'Res Bill Impact'!$B$83:$J$86,8,FALSE))) -> 57.66928653 | H72: =$G72/D72-1 -> 0.2072627793 | I72: 0.2008735048 | J72: 0.2007902935 | M72: =Zones -> 1 | N72: ='Res Bill Impact'!Q31 -> 23.21119128 | O72: ='Res Bill Impact'!R31 -> 50.63439374 | P72: ='Res Bill Impact'!S31 -> 17.78330392 | Q72: ='Res Bill Impact'!T31 -> 35.74055587
C73: 5-Year Average Usage - CARE | D73: =IF($D$3="All",'Res Bill Impact'!C97,(VLOOKUP($D$3,'Res Bill Impact'!$B$93:$J$96,2,FALSE))) -> 28.52455741 | E73: =IF($D$3="All",'Res Bill Impact'!E97,(VLOOKUP($D$3,'Res Bill Impact'!$B$93:$J$96,4,FALSE))) -> 28.67026885 | F73: =IF($D$3="All",'Res Bill Impact'!G97,(VLOOKUP($D$3,'Res Bill Impact'!$B$93:$J$96,6,FALSE))) -> 28.67240983 | G73: =IF($D$3="All",'Res Bill Impact'!I97,(VLOOKUP($D$3,'Res Bill Impact'!$B$93:$J$96,8,FALSE))) -> 34.20108179 | H73: =$G73/D73-1 -> 0.1990048188 | I73: =$G73/E73-1 -> 0.1929110944 | J73: =$G73/F73-1 -> 0.1928220192 | M73: 2 | N73: ='Res Bill Impact'!Q32 -> 19.58817798 | O73: ='Res Bill Impact'!R32 -> 56.62928825 | P73: ='Res Bill Impact'!S32 -> 18.88306726 | Q73: ='Res Bill Impact'!T32 -> 53.10374031
B74: Total | D74: =D72*(1-'SAR and RAR'!$AC$15)+D73*'SAR and RAR'!$AC$15 -> 43.01250716 | E74: =E72*(1-'SAR and RAR'!$AC$15)+E73*'SAR and RAR'!$AC$15 -> 43.23985991 | F74: =F72*(1-'SAR and RAR'!$AC$15)+F73*'SAR and RAR'!$AC$15 -> 43.24289442 | G74: =G72*(1-'SAR and RAR'!$AC$15)+G73*'SAR and RAR'!$AC$15 -> 51.86918222 | H74: 0.205909296 | I74: 0.1995686927 | J74: 0.1994845146 | M74: 3 | N74: ='Res Bill Impact'!Q33 -> 20.92759649 | O74: ='Res Bill Impact'!R33 -> 79.11962685 | P74: ='Res Bill Impact'!S33 -> 25.94545528 | Q74: ='Res Bill Impact'!T33 -> 90.09599585
M75: 0 | N75: ='Res Bill Impact'!Q34 -> 0 | O75: ='Res Bill Impact'!R34 -> 0 | P75: ='Res Bill Impact'!S34 -> 0 | Q75: ='Res Bill Impact'!T34 -> 0
B76: Basic Bundled Typical Residential Monthly Average Bills - Winter
D77: =BOYEffectiveRateDate -> 2024-01-01 | E77: =CurrentEffectiveRateDate -> 2024-12-01 | F77: =$D$2&" Authorized" -> 2024 Authorized | G77: =$D$2&" w/Pending" -> 2024 w/Pending | H77: =CONCATENATE("% Change over ",TEXT(BOYEffectiveRateDate,"m/d/yyyy")) -> % Change over 1/1/2024 | I77: =CONCATENATE("% Change over ",TEXT(CurrentEffectiveRateDate,"m/d/yyyy")) -> % Change over 12/1/2024 | J77: % Change over Authorized
B78: 5-Year Average Usage - Non-CARE | D78: =IF($D$3="All",'Res Bill Impact'!D87,(VLOOKUP($D$3,'Res Bill Impact'!$B$83:$J$86,3,FALSE))) -> 94.39152849 | E78: =IF($D$3="All",'Res Bill Impact'!F87,(VLOOKUP($D$3,'Res Bill Impact'!$B$83:$J$86,5,FALSE))) -> 94.92272815 | F78: =IF($D$3="All",'Res Bill Impact'!H87,(VLOOKUP($D$3,'Res Bill Impact'!$B$83:$J$86,7,FALSE))) -> 94.91636355 | G78: =IF($D$3="All",'Res Bill Impact'!J87,(VLOOKUP($D$3,'Res Bill Impact'!$B$83:$J$86,9,FALSE))) -> 115.0682866 | H78: =$G78/D78-1 -> 0.2190531126 | I78: 0.2122311363 | J78: 0.2123124223
C79: 5-Year Average Usage - CARE | D79: =IF($D$3="All",'Res Bill Impact'!D97,(VLOOKUP($D$3,'Res Bill Impact'!$B$93:$J$96,3,FALSE))) -> 49.94105133 | E79: =IF($D$3="All",'Res Bill Impact'!F97,(VLOOKUP($D$3,'Res Bill Impact'!$B$93:$J$96,5,FALSE))) -> 50.21399337 | F79: =IF($D$3="All",'Res Bill Impact'!H97,(VLOOKUP($D$3,'Res Bill Impact'!$B$93:$J$96,7,FALSE))) -> 50.20662075 | G79: =IF($D$3="All",'Res Bill Impact'!J97,(VLOOKUP($D$3,'Res Bill Impact'!$B$93:$J$96,9,FALSE))) -> 60.56020085 | H79: =$G79/D79-1 -> 0.2126336799 | I79: =$G79/E79-1 -> 0.2060423159 | J79: =$G79/F79-1 -> 0.2062194178
B80: Total | D80: =D78*(1-'SAR and RAR'!$AC$15)+D79*'SAR and RAR'!$AC$15 -> 83.40571143 | E80: =E78*(1-'SAR and RAR'!$AC$15)+E79*'SAR and RAR'!$AC$15 -> 83.87308341 | F80: =F78*(1-'SAR and RAR'!$AC$15)+F79*'SAR and RAR'!$AC$15 -> 83.86646968 | G80: =G78*(1-'SAR and RAR'!$AC$15)+G79*'SAR and RAR'!$AC$15 -> 101.5967584 | H80: 0.2181031325 | I80: 0.2113154094 | J80: 0.211410934

Sheet Authorized Rev Req
A2: Annual Period 2024
A3: Reporting Date: Quarter Ended December 31
B5: Revenue Requirement Date: | C5: 2022-01-01 | D5: 2023-01-01 | E5: 2023-03-01 | F5: 2023-08-01 | G5: 2023-11-01 | H5: 2024-01-01 | I5: 2024-07-01 | J5: 2024-10-01
B6: Advice Letter: | C6: AL 5915-G | D6: AL 6071-G | E6: AL 6088-G | F6: AL 6168-G | G6: AL 6213-G | H6: AL 6237-G | I6: AL 6325-G | J6: AL 6369-G
A7: Filing Description | B7: Authority for Revenue Requirement as of 7/1/2024 | C7: Authorized Revenue Requirement ($000) | D7: Authorized Revenue Requirement ($000) | E7: Authorized Revenue Requirement ($000) | F7: Authorized Revenue Requirement ($000) | G7: Authorized Revenue Requirement ($000) | H7: Authorized Revenue Requirement ($000) | I7: Authorized Revenue Requirement ($000) | J7: Authorized Revenue Requirement ($000) | K7: Revenue Recovery Mechanism | L7: Balancing Account
A8: Safety Affordability Reliability Proceedings
A9: Total Allocated Base Margin | B9: D.19-09-051 | C9: 2797438.81 | D9: 2813333.282 | E9: 2813333.282 | F9: 2813333.282 | G9: 2813333.28 | H9: 2828192.765 | I9: 2827790.601 | J9: 2827790.601 | K9: Allocated Base Margin | L9: N
A10: Pipeline Safety Enhancement Plan (PSEP) GRC - Local Transmission (subtracted from Base Margin and allocated here) | B10: D.19-09-051 | C10: 20025.2391 | D10: 20972.1516 | E10: 20972.1516 | F10: 20972.1516 | G10: 20972.1516 | H10: 20972.1516 | I10: 20972.1516 | J10: 20972.1516 | K10: Local Transmission | L10: N
A11: Pipeline Safety Enhancement Plan (PSEP) GRC -Distribution (subtracted from Base Margin and allocated here) | B11: D.19-09-051 | C11: 28629.01 | D11: 29982.76 | E11: 29982.76 | F11: 29982.76 | G11: 29982.76 | H11: 29982.76 | I11: 29982.76 | J11: 29982.76 | K11: Distribution | L11: N
A12: Company Use Gas: Other | B12: D.20-02-045 AL 6071, AL 6045, AL 6210, AL 6325 | C12: 1792.692921 | D12: 2442.782407 | E12: 2442.782407 | F12: 2442.782407 | G12: 2442.782407 | H12: 2021.517814 | I12: 2086.359644 | J12: 2086.359644 | K12: ECPT | L12: N
A13: Company Use Gas: Storage Load Balancing | B13: D.20-02-045 AL 6071, AL 6045, AL 6210, AL 6325 | C13: 1739.982378 | D13: 2371.288817 | E13: 2371.288817 | F13: 2371.288817 | G13: 2371.288817 | H13: 1962.353492 | I13: 2025.297578 | J13: 2025.297578 | K13: ECPT | L13: N
A14: Exchange Revenues & Interutility Transactions | B14: D.20-02-045 AL 6071, AL 6045, AL 6210 | C14: 342.77791 | D14: 342.77791 | E14: 342.77791 | F14: 342.77791 | G14: 342.77791 | H14: 342.77791 | I14: 342.77791 | J14: 342.77791 | K14: ECPT | L14: N
A15: Unaccounted For (UAF) Gas | B15: D.20-02-045 AL 6071, AL 6045, AL 6210, AL 6325 | C15: 43865.64079 | D15: 59771.78668 | E15: 59771.78668 | F15: 59771.78668 | G15: 59771.78668 | H15: 49463.97649 | I15: 51050.57382 | J15: 51050.57382 | K15: 47% Res (LUAF, Other) | L15: N
A16: Well Incidents & Surface Leaks | B16: D.20-02-045 AL 6071, AL 6045, AL 6210 | C16: 226.3891543 | D16: 308.4843465 | E16: 308.4843465 | F16: 308.4843465 | G16: 308.4843465 | H16: 255.2853664 | I16: 263.4738524 | J16: 263.4738524 | K16: ECPT | L16: N
A17: SCG PSEP - 2017 Forecast Application RevReq Capital Cost - Local Transmission | B17: D.20-02-045 AL 6071, AL 6045, AL 6210 | C17: 381.0924644 | D17: 363.8434006 | E17: 363.8434006 | F17: 363.8434006 | G17: 363.8434006 | H17: 373.2391018 | I17: 373.2391018 | J17: 373.2391018 | K17: Local Transmission | L17: N
A18: SCG PSEP - 2017 Forecast Application RevReq Capital Cost - Distribution | B18: D.20-02-045 AL 6071, AL 6045, AL 6210 | C18: 24839.85663 | D18: 24959.79958 | E18: 24959.79958 | F18: 24959.79958 | G18: 24959.79958 | H18: 25796.91107 | I18: 25796.91107 | J18: 25796.91107 | K18: Distribution | L18: N
A19: AMI Balancing Account (AMIBA) | B19: D.20-02-045 AL 6071, AL 6045, AL 6210 | C19: -77756.9011 | D19: -323.9718593 | E19: -323.9718593 | F19: -323.9718593 | G19: -323.9718593 | H19: 0 | I19: 0 | J19: 0 | K19: EPAM | L19: Y
A20: Residential Uncollectible Balancing Account (RUBA) | B20: D.20-02-045 AL 6071, AL 6045, AL 6210 | C20: 16080.82923 | D20: 44745.19835 | E20: 44745.19835 | F20: 44745.19835 | G20: 44745.19835 | H20: 361045.4563 | I20: 361045.4563 | J20: 361045.4563 | K20: ECPT | L20: Y
A21: Affiliate Transfer Fee Account (ATFA) | B21: D.20-02-045 AL 6071, AL 6045, AL 6210 | C21: -56.8521172 | D21: -106.5216742 | E21: -106.5216742 | F21: -106.5216742 | G21: -106.5218593 | H21: -332.5151735 | I21: -332.5151719 | J21: -332.5151719 | K21: EPAM | L21: Y
A22: Core Fixed Cost Account - Non NGV (CFCA) | B22: D.20-02-045, AL 6071, AL 6045, AL 6088, AL 6210 | C22: -28133.81894 | D22: 121885.4366 | E22: -12481.01707 | F22: -12481.01707 | G22: -15934.57573 | H22: -159234.434 | I22: -159234.434 | J22: -159234.434 | K22: CFCA | L22: Y
A23: Core Fixed Cost Account - NGV (CFCA) | B23: D.20-02-045, AL 6071, AL 6045, AL 6088, AL 6210 | C23: 9826.724141 | D23: -1151.989741 | E23: -1401.302084 | F23: -1401.302084 | G23: -1401.302084 | H23: -6384.867245 | I23: -6384.867245 | J23: -6384.867245 | K23: Non-Residential | L23: Y
A24: Core Fixed Cost Account - C&I Shortfall (CFCA) | B24: D.20-02-045, AL 6071, AL 6045, AL 6088, AL 6210 | C24: 28765.69276 | D24: 0 | E24: 0 | F24: 0 | G24: 0 | H24: 0 | I24: 0 | J24: 0 | K24: Non-Residential | L24: Y
A25: Economic Practicality Shortfall Memorandum Account (EPSMA) | B25: D.20-02-045 AL 6071, AL 6045, AL 6210 | C25: 395.853484 | D25: 434.2273838 | E25: 434.2273838 | F25: 434.2273838 | G25: 434.2273838 | H25: 623.9141766 | I25: 623.9141766 | J25: 623.9141766 | K25: Non-Residential | L25: Y
A26: Enhanced Oil Recovery Account (EORA) | B26: D.20-02-045 AL 6071, AL 6045, AL 6210 | C26: 2530.55974 | D26: -7124.256786 | E26: -7124.256786 | F26: -7124.256786 | G26: -7124.269166 | H26: 9594.38968 | I26: 9594.389634 | J26: 9594.389634 | K26: EPAM | L26: Y
A27: Hazardous Substance Cost-Recovery Account (HSCRA) | B27: D.20-02-045 AL 6071, AL 6045, AL 6210 | C27: 284.26279 | D27: 441.0656654 | E27: 441.0656654 | F27: 441.0656654 | G27: 441.0656654 | H27: 2438.240816 | I27: 2438.240816 | J27: 2438.240816 | K27: ECPT | L27: Y
A28: Intervenor Award Memorandum Account (IAMA) | B28: D.20-02-045 AL 6071, AL 6045, AL 6210 | C28: 731.580665 | D28: 832.9371787 | E28: 832.9371787 | F28: 832.9371787 | G28: 832.9371787 | H28: 435.5787082 | I28: 435.5787082 | J28: 435.5787082 | K28: ECPT | L28: Y
A29: Master Meter Balancing Account (MMBA) | B29: D.20-02-045 AL 6071, AL 6045, AL 6210 | C29: 17468.47031 | D29: 24824.50463 | E29: 24824.50463 | F29: 24824.50463 | G29: 24824.54776 | H29: 27664.39859 | I29: 27664.39846 | J29: 27664.39846 | K29: EPAM | L29: Y
A30: Noncore Fixed Cost Account (NFCA) Margin | B30: D.20-02-045 AL 6071, AL 6045, AL 6210 | C30: 6370.180978 | D30: 12427.60401 | E30: 12427.60401 | F30: 12427.60401 | G30: 12427.83405 | H30: 6309.96825 | I30: 6309.968067 | J30: 6309.968067 | K30: Non-Residential | L30: Y
A31: Noncore Fixed Cost Account (NFCA) Nonmargin | B31: D.20-02-045 AL 6071, AL 6045, AL 6210 | C31: -3275.185198 | D31: 959.6319265 | E31: 959.6319265 | F31: 959.6319265 | G31: -11436.66702 | H31: 913.703406 | I31: 913.703406 | J31: 913.703406 | K31: Non-Residential | L31: Y
A32: Integrated Transmission Balancing Account (ITBA) Margin | B32: D.20-02-045, AL 6071, AL 6045, AL 6210 | C32: 176.0981414 | D32: 5083.885059 | E32: 5083.885059 | F32: 5083.885059 | G32: 5083.885059 | H32: -2088.910606 | I32: -2088.910606 | J32: -2088.910606 | K32: ECPT | L32: Y
A33: Compressor Station Fuel and Power Balancing Account (CFPBA) | B33: D.20-02-045, AL 6071, AL 6045, AL 6210 | C33: -1423.035883 | D33: 3459.772548 | E33: 3459.772548 | F33: 3459.772548 | G33: 3459.772548 | H33: 5089.794203 | I33: 5089.794203 | J33: 5089.794203 | K33: ECPT | L33: Y
A34: Compression Services Balancing Account (CSBA) | B34: D.20-02-045, AL 6071, AL 6045, AL 6210 | C34: -68.36948884 | D34: -73.63685293 | E34: -73.63685293 | F34: -73.63685293 | G34: -73.63685293 | H34: 0 | I34: 0 | J34: 0 | K34: Non-Residential | L34: Y
A35: Company-Use Fuel for Load Balancing Account (CUFLBA) | B35: D.20-02-045, AL 6071, AL 6045, AL 6210 | C35: -1168.448441 | D35: 5918.687245 | E35: 5918.687245 | F35: 5918.687245 | G35: 5918.687245 | H35: 12182.44939 | I35: 12182.44939 | J35: 12182.44939 | K35: ECPT | L35: Y
A36: Noncore Storage Balancing Account (NSBA) | B36: D.20-02-045, AL 6071, AL 6045, AL 6210 | C36: 122.0512176 | D36: 93.94677741 | E36: 93.94677741 | F36: 93.94677741 | G36: 93.94677741 | H36: 0 | I36: 0 | J36: 0 | K36: ECPT | L36: Y
A37: Pension Balancing Account (PBA) | B37: D.20-02-045, AL 6071, AL 6045, AL 6210 | C37: 11312.64409 | D37: 9235.968926 | E37: 9235.968926 | F37: 9235.968926 | G37: 9235.984974 | H37: 23408.24727 | I37: 23408.24716 | J37: 23408.24716 | K37: EPAM | L37: Y
A38: PBOP Balancing Account (PBOPBA) | B38: D.20-02-045, AL 6071, AL 6045, AL 6210 | C38: -4328.422797 | D38: -4765.790274 | E38: -4765.790274 | F38: -4765.790274 | G38: -4765.798555 | H38: -1010.398893 | I38: -1010.398888 | J38: -1010.398888 | K38: EPAM | L38: Y
A39: Safety Enhancement Capital Cost Balancing Account (SECCBA) - Local Transmission | B39: D.20-02-045, AL 6071, AL 6045, AL 6210 | C39: 22874.17654 | D39: 24483.53553 | E39: 24483.53553 | F39: 24483.53553 | G39: 24483.53553 | H39: 25945.72456 | I39: 25945.72456 | J39: 25945.72456 | K39: Local Transmission | L39: Y
A40: Safety Enhancement Capital Cost Balancing Account (SECCBA) - Distribution | B40: D.20-02-045, AL 6071, AL 6045, AL 6210 | C40: 72521.18682 | D40: 74787.02382 | E40: 74787.02382 | F40: 74787.02382 | G40: 74787.02382 | H40: 78908.4625 | I40: 78908.4625 | J40: 78908.4625 | K40: Distribution | L40: Y
A41: Safety Enhancement Expense Balancing Account (SEEBA) - Local Transmission | B41: D.20-02-045, AL 6071, AL 6045, AL 6210 | C41: 572.0979832 | D41: -674.0780882 | E41: -674.0780882 | F41: -674.0780882 | G41: -674.0780882 | H41: -305.1347641 | I41: -305.1347641 | J41: -305.1347641 | K41: Local Transmission | L41: Y
A42: Safety Enhancement Expense Balancing Account (SEEBA) - Distribution | B42: D.20-02-045, AL 6071, AL 6045, AL 6210 | C42: 1611.907472 | D42: 2206.086744 | E42: 2206.086744 | F42: 2206.086744 | G42: 2206.086744 | H42: 402.7958316 | I42: 402.7958316 | J42: 402.7958316 | K42: Distribution | L42: Y
A43: Research Royalty Memorandum Account (RRMA) | B43: D.20-02-045, AL 6071, AL 6045, AL 6210 | C43: -160.8244502 | D43: -247.9508232 | E43: -247.9508232 | F43: -247.9508232 | G43: -247.9512541 | H43: -157.2750448 | I43: -157.275044 | J43: -157.275044 | K43: EPAM | L43: Y
A44: Self-Generation Program Memorandum Account (SGPMA) | B44: D.20-02-045, AL 6071, AL 6045, AL 6210 | C44: 16267.79819 | D44: 16265.02543 | E44: 16265.02543 | F44: 16265.02543 | G44: 16265.02543 | H44: 16265.02543 | I44: 16265.02543 | J44: 16265.02543 | K44: SGIP | L44: Y
A45: System Operator Gas Account (SOGA) | B45: D.20-02-045, AL 6071, AL 6045, AL 6210 | C45: -57.47472488 | D45: -54.79102466 | E45: -54.79102466 | F45: -54.79102466 | G45: -54.79102466 | H45: 0 | I45: 0 | J45: 0 | K45: ECPT | L45: Y
A46: Rewards & Penalties Balancing Account (RPBA) | B46: D.20-02-045, AL 6071, AL 6045, AL 6210 | C46: -266.7671576 | D46: -288.8720611 | E46: -288.8720611 | F46: -288.8720611 | G46: -288.872563 | H46: 7370.233834 | I46: 7370.233799 | J46: 7370.233799 | K46: EPAM | L46: Y
A47: Liability Insurance Premium Balancing Account (LIPBA) | B47: D.20-02-045, AL 6071, AL 6045, AL 6210 | C47: 14313.74818 | D47: 23349.85594 | E47: 23349.85594 | F47: 23349.85594 | G47: 23349.89651 | H47: 24061.23156 | I47: 24061.23145 | J47: 24061.23145 | K47: EPAM | L47: Y
A48: NonCore Backbone Transmission | B48: D.20-02-045, AL 6071, AL 6045, AL 6210, AL6325, AL 6325-G | C48: 205899.099 | D48: 307036.3771 | E48: 307036.3771 | F48: 307036.3771 | G48: 307036.3771 | H48: 302321.9664 | I48: 403718.6134 | J48: 403718.6134 | K48: Backbone Transmission | L48: N
A49: Storage Integrity Management Program Balancing Account (SIMPBA) Balance | B49: D.22-07-016, AL 6023, AL 6045, AL 6210 | C49: 0 | D49: 35607.36669 | E49: 35607.36669 | F49: 35607.36669 | G49: 35607.42856 | H49: 0 | I49: 0 | J49: 0 | K49: EPAM | L49: Y
A50: On-Bill Financing Balancing Account (OBFBA) | B50: D.19-03-001, AL 5853-A | C50: 0 | D50: 4574.363334 | E50: 4574.363334 | F50: 4574.363334 | G50: 4574.371282 | H50: 0 | I50: 0 | J50: 0 | K50: EPAM | L50: Y
A51: System Reliability Memorandum Account (SRMA) | B51: D.20-02-045, AL 6045, AL 6210 | C51: 0 | D51: 15184.32229 | E51: 15184.32229 | F51: 15184.32229 | G51: 15184.32229 | H51: 32096.06422 | I51: 32096.06422 | J51: 32096.06422 | K51: ECPT | L51: Y
A52: Distributed Energy Resources Svcs Bal Account (DERSBA) | B52: D.20-02-045, AL 6045, AL 6210 | C52: 0 | D52: -61.47842668 | E52: -61.47842668 | F52: -61.47842668 | G52: -61.47853351 | H52: 0 | I52: 0 | J52: 0 | K52: EPAM | L52: Y
A53: Percentage of Income Payment Plan Balancing Account (PIPPBA) | B53: D.20-02-045, AL 6210 | C53: 0 | D53: 0 | E53: 0 | F53: 0 | G53: 0 | H53: 573.8082412 | I53: 573.8082412 | J53: 573.8082412 | K53: ECPT | L53: Y
A54: Transmission Integrity Management Program Memorandum Account (TIMPBA) Local Transmission | B54: AL 6325-G | C54: 0 | D54: 0 | E54: 0 | F54: 0 | G54: 0 | H54: 0 | I54: 56339.32306 | J54: 56339.32306 | K54: Local Transmission | L54: Y
A56: Subtotal Safety Affordability Reliability | C56: =SUM(C9:C52) -> 3230710.353 | D56: =SUM(D9:D55) -> 3673812.442 | E56: 3539196.676 | F56: 3539196.676 | G56: 3523347.194 | H56: 3727501.655 | I56: =SUM(I9:I55) -> 3886558.033 | J56: =SUM(J9:J55) -> 3886558.033
A59: Public Policy Proceedings
A60: AB32 Fees (subtracted from base margin and allocated here) | B60: D.19-09-051 | C60: 5107.071894 | D60: 5106.20142 | E60: 5106.20142 | F60: 5106.20142 | G60: 5106.20142 | H60: 5106.20142 | I60: 5106.20142 | J60: 5106.20142 | K60: ECPT adjusted | L60: N
A61: Green House Gas Balancing Account (GHGBA) - Company Gas Compressor Revenue Requirement | B61: D.22-07-016, AL 6023, AL 6045, AL 6210 | C61: 2676.455882 | D61: 2388.575096 | E61: 2388.575096 | F61: 2388.575096 | G61: 2388.575096 | H61: 2684.159829 | I61: 2684.159829 | J61: 2684.159829 | K61: ECPT | L61: N
A62: Green House Gas Balancing Account (GHGBA) - End User Revenue Requirement | B62: D.22-07-016, AL 6023, AL 6045, AL 6210 | C62: 421911.6559 | D62: 451660.1517 | E62: 451660.1517 | F62: 451660.1517 | G62: 451660.1517 | H62: 659841.4191 | I62: 659841.4191 | J62: 659841.4191 | K62: GHG End User | L62: N
A63: Green House Gas Balancing Account (GHGBA) - LUAF Revenue Requirement | B63: D.22-07-016, AL 6023, AL 6045, AL 6210 | C63: 11523.70083 | D63: 11338.59513 | E63: 11338.59513 | F63: 11338.59513 | G63: 11338.59513 | H63: 14890.28891 | I63: 14890.28891 | J63: 14890.28891 | K63: 47% Res (LUAF, Other) | L63: N
A64: Green House Gas Balancing Account (GHGBA) - Company Gas Compressor | B64: D.22-07-016, AL 6023, AL 6045, AL 6210 | C64: 110.1068734 | D64: -783.1516359 | E64: -783.1516359 | F64: -783.1516359 | G64: -783.1516359 | H64: -2420.193065 | I64: -2420.193065 | J64: -2420.193065 | K64: ECPT | L64: Y
A65: Green House Gas Balancing Account (GHGBA) - End User | B65: D.22-07-016, AL 6023, AL 6045, AL 6210 | C65: 24082.11232 | D65: -22703.37309 | E65: -22703.37309 | F65: -22703.37309 | G65: -22703.37309 | H65: 85564.85517 | I65: 85564.85517 | J65: 85564.85517 | K65: GHG End User | L65: Y
A66: Green House Gas Balancing Account (GHGBA) - LUAF | B66: D.22-07-016, AL 6023, AL 6045, AL 6210 | C66: 96.16147584 | D66: 3057.496701 | E66: 3057.496701 | F66: 3057.496701 | G66: 3057.496701 | H66: -7155.03039 | I66: -7155.03039 | J66: -7155.03039 | K66: 47% Res (LUAF, Other) | L66: Y
A67: New Envirnomental Regulatory Balancing Account (NERBA) - Admin Fees Subaccount | B67: D.22-07-016, AL 6023, AL 6045, AL 6210 | C67: 3566.9059 | D67: 5564.392269 | E67: 5564.392269 | F67: 5564.392269 | G67: 5564.392269 | H67: 8886.02153 | I67: 8886.02153 | J67: 8886.02153 | K67: ECPT adjusted | L67: Y
A68: New Environmental Regulatory Balancing Account (NERBA) - Leak Detection & Repair (LDAR) sub-account | B68: D.22-07-016, AL 6023, AL 6045, AL 6210 | C68: 1979.707886 | D68: 6090.186376 | E68: 6090.186376 | F68: 6090.186376 | G68: 6090.196959 | H68: 8805.759368 | I68: 8805.759326 | J68: 8805.759326 | K68: EPAM | L68: Y
A69: New Envirnomental Regulatory Balancing Account (NERBA) -Natural Gas Leak Abatement Program | B69: D.22-07-016, AL 6023, AL 6045, AL 6210 | C69: -2147.512017 | D69: 0 | E69: 0 | F69: 0 | G69: 0 | H69: 0 | I69: 0 | J69: 0 | K69: EPAM | L69: Y
A70: TLS Adjustment | B70: D.22-07-016, AL 6023, AL 6045, AL 6210 | C70: -6644.931817 | D70: 10390.21603 | E70: 10421.05359 | F70: 10394.54613 | G70: 10191.85865 | H70: 8841 | I70: 8840.838331 | J70: 9275.991556 | K70: Non-Residential | L70: N
A71: Natural Gas Leak Abatement Program Revenue Requirement | B71: AL 5915G, AL 6071, AL 6168-G, AL 5950-G-B | C71: 86446.46472 | D71: 86431.16512 | E71: 86431.16512 | F71: 107531.4643 | G71: 107531.6511 | H71: 104496.8284 | I71: 104898.9772 | J71: 104898.9772 | K71: EPAM | L71: N
A72: Biogas Conditioning/Upgrading Svcs Bal Acct (BCSBA) | B72: D. 13-12-040, AL 6071, AL 6045, AL 6210 | C72: -48.66967436 | D72: 0 | E72: 0 | F72: 0 | G72: 0 | H72: 0 | I72: 0 | J72: 0 | K72: EPAM | L72: Y
A73: Diary Biomethane Project Balancing Account (DBPBA) | B73: D. 17-12-004, AL 6071, AL 6045, AL 6210 | C73: 45457.03256 | D73: 34573.34405 | E73: 34573.34405 | F73: 34573.34405 | G73: 34573.40413 | H73: 1209.195516 | I73: 1209.195511 | J73: 1209.195511 | K73: EPAM | L73: Y
A74: Diary Biomethane Project Memorandum Account (DBPMA) | B74: D. 17-12-004, AL 6071, AL 6045, AL 6210 | C74: =0 -> 0 | D74: 8114.656258 | E74: 8114.656258 | F74: 8114.656258 | G74: 8114.670358 | H74: 5125.990541 | I74: 5125.990516 | J74: 5125.990516 | K74: EPAM | L74: Y
A75: California Solar Iniative Thermal Memorandum Account (CSITPMA) | B75: D. 10-01-022, AL 6071, AL 6045, AL 6210 | C75: 1411.38197 | D75: 1113.860455 | E75: 1113.860455 | F75: 1113.860455 | G75: 1113.860455 | H75: 1391.107979 | I75: 1391.107979 | J75: 1391.107979 | K75: ECPT adjusted | L75: Y
A76: Biomethane Procurement and Pilot Costs Balancing Account (BPPCBA) - Program Administrative Costs Subaccount | B76: D. 22-02-025, AL 6210 | C76: 0 | D76: 0 | E76: 0 | F76: 0 | G76: 0 | H76: 237.0470114 | I76: 237.0470103 | J76: 237.0470103 | K76: EPAM | L76: Y
A77: Biomethane Cost Incentive Pgm Balancing Acct (BCIPBA) | B77: D.16-12-043/D.19-12-009, AL 6071, AL 6045, AL 6210 | C77: 10172.0832 | D77: 0 | E77: 0 | F77: 0 | G77: 0 | H77: 0 | I77: 0 | J77: 0 | K77: ECPT | L77: Y
A83: PPPS Programs
A84: California Alternate Rates for Energy (CARE) | B84: D.21-06-015, AL 6052, AL 6216 | C84: 229388.1321 | D84: 199514.8915 | E84: 199514.8915 | F84: 199514.8915 | G84: 199514.8915 | H84: 272251.1514 | I84: 272251.1514 | J84: 272251.1514 | K84: Public Purpose Programs | L84: N
A85: Energy Efficiency | B85: AL 6052, AL 6216, AL 6209 | C85: 107144.935 | D85: 166906.526 | E85: 166906.526 | F85: 166906.526 | G85: 166906.526 | H85: 165866.6393 | I85: 165866.6393 | J85: 165866.6393 | K85: Public Purpose Programs | L85: N
A86: RD&D | B86: AL 6052, AL 6216 | C86: 12406.90965 | D86: 12264.872 | E86: 12264.872 | F86: 12264.872 | G86: 12264.872 | H86: 11380.1178 | I86: 11380.1178 | J86: 11380.1178 | K86: Public Purpose Programs | L86: N
A87: Bureau Of Equalization BOE | B87: AL 6052, AL 6216 | C87: 547.65497 | D87: 520.254 | E87: 520.254 | F87: 520.254 | G87: 520.254 | H87: 476.44983 | I87: 476.44983 | J87: 476.44983 | K87: Public Purpose Programs | L87: N
A88: Energy Savings Assistance | B88: D.21-06-015, AL 6052, AL 6216 | C88: =0 -> 0 | D88: 80174.20485 | E88: 80174.20485 | F88: 80174.20485 | G88: 80174.20485 | H88: 111508.2999 | I88: 111508.2999 | J88: 111508.2999 | K88: Public Purpose Programs | L88: N
A89: SJVDGPMA | B89: AL 6052, AL 6216 | C89: =0 -> 0 | D89: 806.165 | E89: 806.165 | F89: 806.165 | G89: 806.165 | H89: 90.978 | I89: 90.978 | J89: 90.978 | K89: Public Purpose Programs | L89: N
A96: Subtotal Public Policy | C96: =SUM(C60:C95) -> 955187.3596 | D96: =SUM(D60:D95) -> 1062529.229 | E96: 1062560.067 | F96: 1083633.858 | G96: 1083431.443 | H96: 1459078.288 | I96: 1459480.275 | J96: 1459915.428
A98: EOR | B98: D.20-02-045, AL 6045, AL | C98: -19696.02666 | D98: -25124.8966 | E98: -25124.8966 | F98: -25233.57266 | G98: -24742.54871 | H98: -32255.65745 | I98: -33347.39611 | J98: -33358.5985 | K98: EPAM
A100: Procurement
A101: Procurement | B101: D.98-07-068 | C101: =TotalCoreVolume*SetUp!K11 -> 2611619.054 | D101: 3301020.314 | E101: 3301020.314 | F101: 3301020.314 | G101: 3301020.314 | H101: 1800955.444 | I101: 1800955.444 | J101: =TotalCoreVolume*SetUp!K5 -> 1800955.444 | K101: Core Procurement
A107: Subtotal Procurement | C107: =SUM(C101:C106) -> 2611619.054 | D107: 3301020.314 | E107: 3301020.314 | F107: 3301020.314 | G107: 3301020.314 | H107: 1800955.444 | I107: 1800955.444 | J107: 1800955.444
A109: Total Authorized Revenue | C109: =C56+C96+C107+C98 -> 6777820.74 | D109: 8012237.088 | E109: 7877652.16 | F109: 7898617.276 | G109: 7883056.402 | H109: 6955279.729 | I109: 7113646.355 | J109: 7114070.306

Sheet Incremental Rev Req
A2: ='Authorized Rev Req'!A2 -> Annual Period 2024
A3: ='Authorized Rev Req'!A3 -> Reporting Date: Quarter Ended December 31
A5: Current Revenue Requirement ($000): | B5: ='Authorized Rev Req'!J109 -> 7114070.306
A6: Current Revenue Requirement Effective: | B6: ='Authorized Rev Req'!J5 -> 2024-10-01
A7: Approved Application(s), Implemented Since Jan 1 or To Be Implemented
A8: Filing Description | B8: Proceeding | C8: Authority for Revenue Requirement | D8: Authorized Revenue Requirement with FF&U ($000) | E8: Revenue Recovery Mechanism | F8: Authorized Revenue Requirement with FF&U ($000) - Breakout by Year | K8: Existing or New Item (if existing, use delta from prior for rate impact) | O8: =TRANSPOSE(YearsForRateImpact) -> 2024 | P8: 2025 | Q8: 2026 | R8: 2027 | S8: 2028
A9: Safety Affordability Reliability Proceedings | D9: =B6 -> 2024-10-01 | F9: =TRANSPOSE(YearsForRateImpact) -> 2024 | G9: 2025 | H9: 2026 | I9: 2027 | J9: 2028 | N9: =RevRecoveryMechanisms -> Core Procurement | O9: =SUMIF($E$10:$E$91,N9,$F$10:$F$91) -> 1800955.444 | P9: =SUMIF($E$10:$E$91,N9,$G$10:$G$91) -> 1800955.444 | Q9: =SUMIF($E$10:$E$91,N9,$H$10:$H$91) -> 1800955.444 | R9: =SUMIF($E$10:$E$91,N9,$I$10:$I$91) -> 1800955.444 | S9: =SUMIF($E$10:$E$91,N9,$J$10:$J$91) -> 1800955.444
A10: ='Authorized Rev Req'!A9 -> Total Allocated Base Margin | C10: ='Authorized Rev Req'!B9 -> D.19-09-051 | D10: =F10 -> 2827790.601 | E10: ='Authorized Rev Req'!K9 -> Allocated Base Margin | F10: ='Authorized Rev Req'!J9 -> 2827790.601 | G10: =F10 -> 2827790.601 | H10: =G10 -> 2827790.601 | I10: =H10 -> 2827790.601 | J10: =I10 -> 2827790.601 | K10: Existing | N10: Allocated Base Margin | O10: 2827790.601 | P10: 2827790.601 | Q10: 2827790.601 | R10: 2827790.601 | S10: 2827790.601
A11: ='Authorized Rev Req'!A10 -> Pipeline Safety Enhancement Plan (PSEP) GRC - Local Transmission (subtracted from Base Margin and allocated here) | C11: ='Authorized Rev Req'!B10 -> D.19-09-051 | D11: 20972.1516 | E11: ='Authorized Rev Req'!K10 -> Local Transmission | F11: ='Authorized Rev Req'!J10 -> 20972.1516 | G11: 0 | H11: =0 -> 0 | I11: =0 -> 0 | J11: =0 -> 0 | K11: Existing | N11: Distribution | O11: 135090.9294 | P11: 0 | Q11: 0 | R11: 0 | S11: 0
A12: ='Authorized Rev Req'!A11 -> Pipeline Safety Enhancement Plan (PSEP) GRC -Distribution (subtracted from Base Margin and allocated here) | C12: ='Authorized Rev Req'!B11 -> D.19-09-051 | D12: 29982.76 | E12: ='Authorized Rev Req'!K11 -> Distribution | F12: ='Authorized Rev Req'!J11 -> 29982.76 | G12: 0 | H12: =0 -> 0 | I12: =0 -> 0 | J12: =0 -> 0 | K12: Existing | N12: ECPT adjusted | O12: 15383.33093 | P12: 0 | Q12: 0 | R12: 0 | S12: 0
A13: ='Authorized Rev Req'!A12 -> Company Use Gas: Other | C13: ='Authorized Rev Req'!B12 -> D.20-02-045 AL 6071, AL 6045, AL 6210, AL 6325 | D13: 2086.359644 | E13: ='Authorized Rev Req'!K12 -> ECPT | F13: ='Authorized Rev Req'!J12 -> 2086.359644 | G13: 0 | H13: =0 -> 0 | I13: =0 -> 0 | J13: =0 -> 0 | K13: Existing | N13: Local Transmission | O13: 103325.3036 | P13: 0 | Q13: 0 | R13: 0 | S13: 0
A14: ='Authorized Rev Req'!A13 -> Company Use Gas: Storage Load Balancing | C14: ='Authorized Rev Req'!B13 -> D.20-02-045 AL 6071, AL 6045, AL 6210, AL 6325 | D14: 2025.297578 | E14: ='Authorized Rev Req'!K13 -> ECPT | F14: ='Authorized Rev Req'!J13 -> 2025.297578 | G14: 0 | H14: =0 -> 0 | I14: =0 -> 0 | J14: =0 -> 0 | K14: Existing | N14: SGIP | O14: 16265.02543 | P14: 0 | Q14: 0 | R14: 0 | S14: 0
A15: ='Authorized Rev Req'!A14 -> Exchange Revenues & Interutility Transactions | C15: ='Authorized Rev Req'!B14 -> D.20-02-045 AL 6071, AL 6045, AL 6210 | D15: 342.77791 | E15: ='Authorized Rev Req'!K14 -> ECPT | F15: ='Authorized Rev Req'!J14 -> 342.77791 | G15: 0 | H15: =0 -> 0 | I15: =0 -> 0 | J15: =0 -> 0 | K15: Existing | N15: GHG End User | O15: 745406.2743 | P15: 0 | Q15: 0 | R15: 0 | S15: 0
A16: ='Authorized Rev Req'!A15 -> Unaccounted For (UAF) Gas | C16: ='Authorized Rev Req'!B15 -> D.20-02-045 AL 6071, AL 6045, AL 6210, AL 6325 | D16: 51050.57382 | E16: ='Authorized Rev Req'!K15 -> 47% Res (LUAF, Other) | F16: ='Authorized Rev Req'!J15 -> 51050.57382 | G16: 0 | H16: =0 -> 0 | I16: =0 -> 0 | J16: =0 -> 0 | K16: Existing | N16: Public Purpose Programs | O16: 561573.6363 | P16: 276818.17 | Q16: 276509.356 | R16: 153968.286 | S16: 0
A17: ='Authorized Rev Req'!A16 -> Well Incidents & Surface Leaks | C17: ='Authorized Rev Req'!B16 -> D.20-02-045 AL 6071, AL 6045, AL 6210 | D17: 263.4738524 | E17: ='Authorized Rev Req'!K16 -> ECPT | F17: ='Authorized Rev Req'!J16 -> 263.4738524 | G17: 0 | H17: =0 -> 0 | I17: =0 -> 0 | J17: =0 -> 0 | K17: Existing | N17: Backbone Transmission | O17: 403718.6134 | P17: 0 | Q17: 0 | R17: 0 | S17: 0
A18: ='Authorized Rev Req'!A17 -> SCG PSEP - 2017 Forecast Application RevReq Capital Cost - Local Transmission | C18: ='Authorized Rev Req'!B17 -> D.20-02-045 AL 6071, AL 6045, AL 6210 | D18: 373.2391018 | E18: ='Authorized Rev Req'!K17 -> Local Transmission | F18: ='Authorized Rev Req'!J17 -> 373.2391018 | G18: 0 | H18: =0 -> 0 | I18: =0 -> 0 | J18: =0 -> 0 | K18: Existing | N18: 47% Res (LUAF, Other) | O18: 58785.83233 | P18: 0 | Q18: 0 | R18: 0 | S18: 0
A19: ='Authorized Rev Req'!A18 -> SCG PSEP - 2017 Forecast Application RevReq Capital Cost - Distribution | C19: ='Authorized Rev Req'!B18 -> D.20-02-045 AL 6071, AL 6045, AL 6210 | D19: 25796.91107 | E19: ='Authorized Rev Req'!K18 -> Distribution | F19: ='Authorized Rev Req'!J18 -> 25796.91107 | G19: 0 | H19: =0 -> 0 | I19: =0 -> 0 | J19: =0 -> 0 | K19: Existing | N19: ECPT | O19: 416754.357 | P19: 0 | Q19: 0 | R19: 0 | S19: 0
A20: ='Authorized Rev Req'!A19 -> AMI Balancing Account (AMIBA) | C20: ='Authorized Rev Req'!B19 -> D.20-02-045 AL 6071, AL 6045, AL 6210 | D20: 0 | E20: ='Authorized Rev Req'!K19 -> EPAM | F20: ='Authorized Rev Req'!J19 -> 0 | G20: 0 | H20: =0 -> 0 | I20: =0 -> 0 | J20: =0 -> 0 | K20: Existing | N20: EPAM | O20: 177516.6824 | P20: 49701.61294 | Q20: 49024.74977 | R20: 52180.97131 | S20: 51764.66965
A21: ='Authorized Rev Req'!A20 -> Residential Uncollectible Balancing Account (RUBA) | C21: ='Authorized Rev Req'!B20 -> D.20-02-045 AL 6071, AL 6045, AL 6210 | D21: 361045.4563 | E21: ='Authorized Rev Req'!K20 -> ECPT | F21: ='Authorized Rev Req'!J20 -> 361045.4563 | G21: 0 | H21: =0 -> 0 | I21: =0 -> 0 | J21: =0 -> 0 | K21: Existing | N21: CFCA | O21: -159234.434 | P21: 0 | Q21: 0 | R21: 0 | S21: 0
A22: ='Authorized Rev Req'!A21 -> Affiliate Transfer Fee Account (ATFA) | C22: ='Authorized Rev Req'!B21 -> D.20-02-045 AL 6071, AL 6045, AL 6210 | D22: -332.5151719 | E22: ='Authorized Rev Req'!K21 -> EPAM | F22: ='Authorized Rev Req'!J21 -> -332.5151719 | G22: 0 | H22: =0 -> 0 | I22: =0 -> 0 | J22: =0 -> 0 | K22: Existing | N22: Non-Residential | O22: 10738.70996 | P22: 0 | Q22: 0 | R22: 0 | S22: 0
A23: ='Authorized Rev Req'!A22 -> Core Fixed Cost Account - Non NGV (CFCA) | C23: ='Authorized Rev Req'!B22 -> D.20-02-045, AL 6071, AL 6045, AL 6088, AL 6210 | D23: -159234.434 | E23: ='Authorized Rev Req'!K22 -> CFCA | F23: ='Authorized Rev Req'!J22 -> -159234.434 | G23: 0 | H23: =0 -> 0 | I23: =0 -> 0 | J23: =0 -> 0 | K23: Existing | N23: Total | O23: =SUM(O9:O22) -> 7114070.306 | P23: =SUM(P9:P22) -> 4955265.828 | Q23: 4954280.15 | R23: 4834895.302 | S23: 4680510.714
A24: ='Authorized Rev Req'!A23 -> Core Fixed Cost Account - NGV (CFCA) | C24: ='Authorized Rev Req'!B23 -> D.20-02-045, AL 6071, AL 6045, AL 6088, AL 6210 | D24: -6384.867245 | E24: ='Authorized Rev Req'!K23 -> Non-Residential | F24: ='Authorized Rev Req'!J23 -> -6384.867245 | G24: 0 | H24: =0 -> 0 | I24: =0 -> 0 | J24: =0 -> 0 | K24: Existing | N24: CPUC Fee | O24: =RegulatoryFee -> 0.001
A25: ='Authorized Rev Req'!A24 -> Core Fixed Cost Account - C&I Shortfall (CFCA) | C25: ='Authorized Rev Req'!B24 -> D.20-02-045, AL 6071, AL 6045, AL 6088, AL 6210 | D25: 0 | E25: ='Authorized Rev Req'!K24 -> Non-Residential | F25: ='Authorized Rev Req'!J24 -> 0 | G25: 0 | H25: =0 -> 0 | I25: =0 -> 0 | J25: =0 -> 0 | K25: Existing | N25: Check | O25: =O23-F92 -> 0 | P25: =P23-G92 -> 0 | Q25: 0 | R25: 0 | S25: 0
A26: ='Authorized Rev Req'!A25 -> Economic Practicality Shortfall Memorandum Account (EPSMA) | C26: ='Authorized Rev Req'!B25 -> D.20-02-045 AL 6071, AL 6045, AL 6210 | D26: 623.9141766 | E26: ='Authorized Rev Req'!K25 -> Non-Residential | F26: ='Authorized Rev Req'!J25 -> 623.9141766 | G26: 0 | H26: =0 -> 0 | I26: =0 -> 0 | J26: =0 -> 0 | K26: Existing
A27: ='Authorized Rev Req'!A26 -> Enhanced Oil Recovery Account (EORA) | C27: ='Authorized Rev Req'!B26 -> D.20-02-045 AL 6071, AL 6045, AL 6210 | D27: 9594.389634 | E27: ='Authorized Rev Req'!K26 -> EPAM | F27: ='Authorized Rev Req'!J26 -> 9594.389634 | G27: 0 | H27: =0 -> 0 | I27: =0 -> 0 | J27: =0 -> 0 | K27: Existing
A28: ='Authorized Rev Req'!A27 -> Hazardous Substance Cost-Recovery Account (HSCRA) | C28: ='Authorized Rev Req'!B27 -> D.20-02-045 AL 6071, AL 6045, AL 6210 | D28: 2438.240816 | E28: ='Authorized Rev Req'!K27 -> ECPT | F28: ='Authorized Rev Req'!J27 -> 2438.240816 | G28: 0 | H28: =0 -> 0 | I28: =0 -> 0 | J28: =0 -> 0 | K28: Existing
A29: ='Authorized Rev Req'!A28 -> Intervenor Award Memorandum Account (IAMA) | C29: ='Authorized Rev Req'!B28 -> D.20-02-045 AL 6071, AL 6045, AL 6210 | D29: 435.5787082 | E29: ='Authorized Rev Req'!K28 -> ECPT | F29: ='Authorized Rev Req'!J28 -> 435.5787082 | G29: 0 | H29: =0 -> 0 | I29: =0 -> 0 | J29: =0 -> 0 | K29: Existing
A30: ='Authorized Rev Req'!A29 -> Master Meter Balancing Account (MMBA) | C30: ='Authorized Rev Req'!B29 -> D.20-02-045 AL 6071, AL 6045, AL 6210 | D30: 27664.39846 | E30: ='Authorized Rev Req'!K29 -> EPAM | F30: ='Authorized Rev Req'!J29 -> 27664.39846 | G30: 33619.64303 | H30: 33231.78983 | I30: 36899.47764 | J30: 36899.47764 | K30: Existing
A31: ='Authorized Rev Req'!A30 -> Noncore Fixed Cost Account (NFCA) Margin | C31: ='Authorized Rev Req'!B30 -> D.20-02-045 AL 6071, AL 6045, AL 6210 | D31: 6309.968067 | E31: ='Authorized Rev Req'!K30 -> Non-Residential | F31: ='Authorized Rev Req'!J30 -> 6309.968067 | G31: 0 | H31: =0 -> 0 | I31: =0 -> 0 | J31: =0 -> 0 | K31: Existing
A32: ='Authorized Rev Req'!A31 -> Noncore Fixed Cost Account (NFCA) Nonmargin | C32: ='Authorized Rev Req'!B31 -> D.20-02-045 AL 6071, AL 6045, AL 6210 | D32: 913.703406 | E32: ='Authorized Rev Req'!K31 -> Non-Residential | F32: ='Authorized Rev Req'!J31 -> 913.703406 | G32: 0 | H32: =0 -> 0 | I32: =0 -> 0 | J32: =0 -> 0 | K32: Existing
A33: ='Authorized Rev Req'!A32 -> Integrated Transmission Balancing Account (ITBA) Margin | C33: ='Authorized Rev Req'!B32 -> D.20-02-045, AL 6071, AL 6045, AL 6210 | D33: -2088.910606 | E33: ='Authorized Rev Req'!K32 -> ECPT | F33: ='Authorized Rev Req'!J32 -> -2088.910606 | G33: 0 | H33: =0 -> 0 | I33: =0 -> 0 | J33: =0 -> 0 | K33: Existing
A34: ='Authorized Rev Req'!A33 -> Compressor Station Fuel and Power Balancing Account (CFPBA) | C34: ='Authorized Rev Req'!B33 -> D.20-02-045, AL 6071, AL 6045, AL 6210 | D34: 5089.794203 | E34: ='Authorized Rev Req'!K33 -> ECPT | F34: ='Authorized Rev Req'!J33 -> 5089.794203 | G34: 0 | H34: =0 -> 0 | I34: =0 -> 0 | J34: =0 -> 0 | K34: Existing
A35: ='Authorized Rev Req'!A34 -> Compression Services Balancing Account (CSBA) | C35: ='Authorized Rev Req'!B34 -> D.20-02-045, AL 6071, AL 6045, AL 6210 | D35: 0 | E35: ='Authorized Rev Req'!K34 -> Non-Residential | F35: ='Authorized Rev Req'!J34 -> 0 | G35: 0 | H35: =0 -> 0 | I35: =0 -> 0 | J35: =0 -> 0 | K35: Existing
A36: ='Authorized Rev Req'!A35 -> Company-Use Fuel for Load Balancing Account (CUFLBA) | C36: ='Authorized Rev Req'!B35 -> D.20-02-045, AL 6071, AL 6045, AL 6210 | D36: 12182.44939 | E36: ='Authorized Rev Req'!K35 -> ECPT | F36: ='Authorized Rev Req'!J35 -> 12182.44939 | G36: 0 | H36: =0 -> 0 | I36: =0 -> 0 | J36: =0 -> 0 | K36: Existing
A37: ='Authorized Rev Req'!A36 -> Noncore Storage Balancing Account (NSBA) | C37: ='Authorized Rev Req'!B36 -> D.20-02-045, AL 6071, AL 6045, AL 6210 | D37: 0 | E37: ='Authorized Rev Req'!K36 -> ECPT | F37: ='Authorized Rev Req'!J36 -> 0 | G37: 0 | H37: =0 -> 0 | I37: =0 -> 0 | J37: =0 -> 0 | K37: Existing
A38: ='Authorized Rev Req'!A37 -> Pension Balancing Account (PBA) | C38: ='Authorized Rev Req'!B37 -> D.20-02-045, AL 6071, AL 6045, AL 6210 | D38: 23408.24716 | E38: ='Authorized Rev Req'!K37 -> EPAM | F38: ='Authorized Rev Req'!J37 -> 23408.24716 | G38: 0 | H38: =0 -> 0 | I38: =0 -> 0 | J38: =0 -> 0 | K38: Existing
A39: ='Authorized Rev Req'!A38 -> PBOP Balancing Account (PBOPBA) | C39: ='Authorized Rev Req'!B38 -> D.20-02-045, AL 6071, AL 6045, AL 6210 | D39: -1010.398888 | E39: ='Authorized Rev Req'!K38 -> EPAM | F39: ='Authorized Rev Req'!J38 -> -1010.398888 | G39: 0 | H39: =0 -> 0 | I39: =0 -> 0 | J39: =0 -> 0 | K39: Existing
A40: ='Authorized Rev Req'!A39 -> Safety Enhancement Capital Cost Balancing Account (SECCBA) - Local Transmission | C40: ='Authorized Rev Req'!B39 -> D.20-02-045, AL 6071, AL 6045, AL 6210 | D40: 25945.72456 | E40: ='Authorized Rev Req'!K39 -> Local Transmission | F40: ='Authorized Rev Req'!J39 -> 25945.72456 | G40: 0 | H40: =0 -> 0 | I40: =0 -> 0 | J40: =0 -> 0 | K40: Existing
A41: ='Authorized Rev Req'!A40 -> Safety Enhancement Capital Cost Balancing Account (SECCBA) - Distribution | C41: ='Authorized Rev Req'!B40 -> D.20-02-045, AL 6071, AL 6045, AL 6210 | D41: 78908.4625 | E41: ='Authorized Rev Req'!K40 -> Distribution | F41: ='Authorized Rev Req'!J40 -> 78908.4625 | G41: 0 | H41: =0 -> 0 | I41: =0 -> 0 | J41: =0 -> 0 | K41: Existing
A42: ='Authorized Rev Req'!A41 -> Safety Enhancement Expense Balancing Account (SEEBA) - Local Transmission | C42: ='Authorized Rev Req'!B41 -> D.20-02-045, AL 6071, AL 6045, AL 6210 | D42: -305.1347641 | E42: ='Authorized Rev Req'!K41 -> Local Transmission | F42: ='Authorized Rev Req'!J41 -> -305.1347641 | G42: 0 | H42: =0 -> 0 | I42: =0 -> 0 | J42: =0 -> 0 | K42: Existing
A43: ='Authorized Rev Req'!A42 -> Safety Enhancement Expense Balancing Account (SEEBA) - Distribution | C43: ='Authorized Rev Req'!B42 -> D.20-02-045, AL 6071, AL 6045, AL 6210 | D43: 402.7958316 | E43: ='Authorized Rev Req'!K42 -> Distribution | F43: ='Authorized Rev Req'!J42 -> 402.7958316 | G43: 0 | H43: =0 -> 0 | I43: =0 -> 0 | J43: =0 -> 0 | K43: Existing
A44: ='Authorized Rev Req'!A43 -> Research Royalty Memorandum Account (RRMA) | C44: ='Authorized Rev Req'!B43 -> D.20-02-045, AL 6071, AL 6045, AL 6210 | D44: -157.275044 | E44: ='Authorized Rev Req'!K43 -> EPAM | F44: ='Authorized Rev Req'!J43 -> -157.275044 | G44: 0 | H44: =0 -> 0 | I44: =0 -> 0 | J44: =0 -> 0 | K44: Existing
A45: ='Authorized Rev Req'!A44 -> Self-Generation Program Memorandum Account (SGPMA) | C45: ='Authorized Rev Req'!B44 -> D.20-02-045, AL 6071, AL 6045, AL 6210 | D45: 16265.02543 | E45: ='Authorized Rev Req'!K44 -> SGIP | F45: ='Authorized Rev Req'!J44 -> 16265.02543 | G45: 0 | H45: =0 -> 0 | I45: =0 -> 0 | J45: =0 -> 0 | K45: Existing
A46: ='Authorized Rev Req'!A45 -> System Operator Gas Account (SOGA) | C46: ='Authorized Rev Req'!B45 -> D.20-02-045, AL 6071, AL 6045, AL 6210 | D46: 0 | E46: ='Authorized Rev Req'!K45 -> ECPT | F46: ='Authorized Rev Req'!J45 -> 0 | G46: 0 | H46: =0 -> 0 | I46: =0 -> 0 | J46: =0 -> 0 | K46: Existing
A47: ='Authorized Rev Req'!A46 -> Rewards & Penalties Balancing Account (RPBA) | C47: ='Authorized Rev Req'!B46 -> D.20-02-045, AL 6071, AL 6045, AL 6210 | D47: 7370.233799 | E47: ='Authorized Rev Req'!K46 -> EPAM | F47: ='Authorized Rev Req'!J46 -> 7370.233799 | G47: 0 | H47: =0 -> 0 | I47: =0 -> 0 | J47: =0 -> 0 | K47: Existing
A48: ='Authorized Rev Req'!A47 -> Liability Insurance Premium Balancing Account (LIPBA) | C48: ='Authorized Rev Req'!B47 -> D.20-02-045, AL 6071, AL 6045, AL 6210 | D48: 24061.23145 | E48: ='Authorized Rev Req'!K47 -> EPAM | F48: ='Authorized Rev Req'!J47 -> 24061.23145 | G48: 0 | H48: =0 -> 0 | I48: =0 -> 0 | J48: =0 -> 0 | K48: Existing
A49: ='Authorized Rev Req'!A48 -> NonCore Backbone Transmission | C49: ='Authorized Rev Req'!B48 -> D.20-02-045, AL 6071, AL 6045, AL 6210, AL6325, AL 6325-G | D49: 403718.6134 | E49: ='Authorized Rev Req'!K48 -> Backbone Transmission | F49: ='Authorized Rev Req'!J48 -> 403718.6134 | G49: =0 -> 0 | H49: =0 -> 0 | I49: =0 -> 0 | J49: =0 -> 0 | K49: Existing
A50: ='Authorized Rev Req'!A49 -> Storage Integrity Management Program Balancing Account (SIMPBA) Balance | C50: ='Authorized Rev Req'!B49 -> D.22-07-016, AL 6023, AL 6045, AL 6210 | D50: 0 | E50: ='Authorized Rev Req'!K49 -> EPAM | F50: ='Authorized Rev Req'!J49 -> 0 | G50: 0 | H50: =0 -> 0 | I50: =0 -> 0 | J50: =0 -> 0 | K50: Existing
A51: ='Authorized Rev Req'!A50 -> On-Bill Financing Balancing Account (OBFBA) | C51: ='Authorized Rev Req'!B50 -> D.19-03-001, AL 5853-A | D51: 0 | E51: ='Authorized Rev Req'!K50 -> EPAM | F51: ='Authorized Rev Req'!J50 -> 0 | G51: 0 | H51: =0 -> 0 | I51: =0 -> 0 | J51: =0 -> 0 | K51: Existing
A52: ='Authorized Rev Req'!A51 -> System Reliability Memorandum Account (SRMA) | C52: ='Authorized Rev Req'!B51 -> D.20-02-045, AL 6045, AL 6210 | D52: 32096.06422 | E52: ='Authorized Rev Req'!K51 -> ECPT | F52: ='Authorized Rev Req'!J51 -> 32096.06422 | G52: 0 | H52: =0 -> 0 | I52: =0 -> 0 | J52: =0 -> 0 | K52: Existing
A53: ='Authorized Rev Req'!A52 -> Distributed Energy Resources Svcs Bal Account (DERSBA) | C53: ='Authorized Rev Req'!B52 -> D.20-02-045, AL 6045, AL 6210 | D53: 0 | E53: ='Authorized Rev Req'!K52 -> EPAM | F53: ='Authorized Rev Req'!J52 -> 0 | G53: 0 | H53: =0 -> 0 | I53: =0 -> 0 | J53: =0 -> 0 | K53: Existing
A54: ='Authorized Rev Req'!A53 -> Percentage of Income Payment Plan Balancing Account (PIPPBA) | C54: ='Authorized Rev Req'!B53 -> D.20-02-045, AL 6210 | D54: =F54 -> 573.8082412 | E54: ='Authorized Rev Req'!K53 -> ECPT | F54: ='Authorized Rev Req'!J53 -> 573.8082412 | G54: =0 -> 0 | H54: =0 -> 0 | I54: =0 -> 0 | J54: =0 -> 0 | K54: Existing
A55: ='Authorized Rev Req'!A54 -> Transmission Integrity Management Program Memorandum Account (TIMPBA) Local Transmission | C55: ='Authorized Rev Req'!B54 -> AL 6325-G | D55: =F55 -> 56339.32306 | E55: ='Authorized Rev Req'!K54 -> Local Transmission | F55: ='Authorized Rev Req'!J54 -> 56339.32306 | G55: =0 -> 0 | H55: =0 -> 0 | I55: =0 -> 0 | J55: =0 -> 0 | K55: Existing
A57: ='Authorized Rev Req'!A59 -> Public Policy Proceedings
A58: ='Authorized Rev Req'!A60 -> AB32 Fees (subtracted from base margin and allocated here) | C58: ='Authorized Rev Req'!B60 -> D.19-09-051 | D58: =F58 -> 5106.20142 | E58: ='Authorized Rev Req'!K60 -> ECPT adjusted | F58: ='Authorized Rev Req'!J60 -> 5106.20142 | G58: =0 -> 0 | H58: =0 -> 0 | I58: =H58 -> 0 | J58: =I58 -> 0 | K58: Existing
A59: ='Authorized Rev Req'!A61 -> Green House Gas Balancing Account (GHGBA) - Company Gas Compressor Revenue Requirement | C59: ='Authorized Rev Req'!B61 -> D.22-07-016, AL 6023, AL 6045, AL 6210 | D59: 2684.159829 | E59: ='Authorized Rev Req'!K61 -> ECPT | F59: ='Authorized Rev Req'!J61 -> 2684.159829 | G59: =0 -> 0 | H59: =0 -> 0 | I59: =H59 -> 0 | J59: =I59 -> 0 | K59: Existing
A60: ='Authorized Rev Req'!A62 -> Green House Gas Balancing Account (GHGBA) - End User Revenue Requirement | C60: ='Authorized Rev Req'!B62 -> D.22-07-016, AL 6023, AL 6045, AL 6210 | D60: 659841.4191 | E60: ='Authorized Rev Req'!K62 -> GHG End User | F60: ='Authorized Rev Req'!J62 -> 659841.4191 | G60: =0 -> 0 | H60: =0 -> 0 | I60: 0 | J60: 0 | K60: Existing
A61: ='Authorized Rev Req'!A63 -> Green House Gas Balancing Account (GHGBA) - LUAF Revenue Requirement | C61: ='Authorized Rev Req'!B63 -> D.22-07-016, AL 6023, AL 6045, AL 6210 | D61: 14890.28891 | E61: ='Authorized Rev Req'!K63 -> 47% Res (LUAF, Other) | F61: ='Authorized Rev Req'!J63 -> 14890.28891 | G61: =0 -> 0 | H61: =0 -> 0 | I61: 0 | J61: 0 | K61: Existing
A62: ='Authorized Rev Req'!A64 -> Green House Gas Balancing Account (GHGBA) - Company Gas Compressor | C62: ='Authorized Rev Req'!B64 -> D.22-07-016, AL 6023, AL 6045, AL 6210 | D62: -2420.193065 | E62: ='Authorized Rev Req'!K64 -> ECPT | F62: ='Authorized Rev Req'!J64 -> -2420.193065 | G62: =0 -> 0 | H62: =0 -> 0 | I62: 0 | J62: 0 | K62: Existing
A63: ='Authorized Rev Req'!A65 -> Green House Gas Balancing Account (GHGBA) - End User | C63: ='Authorized Rev Req'!B65 -> D.22-07-016, AL 6023, AL 6045, AL 6210 | D63: 85564.85517 | E63: ='Authorized Rev Req'!K65 -> GHG End User | F63: ='Authorized Rev Req'!J65 -> 85564.85517 | G63: =0 -> 0 | H63: =0 -> 0 | I63: 0 | J63: 0 | K63: Existing
A64: ='Authorized Rev Req'!A66 -> Green House Gas Balancing Account (GHGBA) - LUAF | C64: ='Authorized Rev Req'!B66 -> D.22-07-016, AL 6023, AL 6045, AL 6210 | D64: -7155.03039 | E64: ='Authorized Rev Req'!K66 -> 47% Res (LUAF, Other) | F64: ='Authorized Rev Req'!J66 -> -7155.03039 | G64: =0 -> 0 | H64: =0 -> 0 | I64: 0 | J64: 0 | K64: Existing
A65: ='Authorized Rev Req'!A67 -> New Envirnomental Regulatory Balancing Account (NERBA) - Admin Fees Subaccount | C65: ='Authorized Rev Req'!B67 -> D.22-07-016, AL 6023, AL 6045, AL 6210 | D65: 8886.02153 | E65: ='Authorized Rev Req'!K67 -> ECPT adjusted | F65: ='Authorized Rev Req'!J67 -> 8886.02153 | G65: =0 -> 0 | H65: =0 -> 0 | I65: 0 | J65: 0 | K65: Existing
A66: ='Authorized Rev Req'!A68 -> New Environmental Regulatory Balancing Account (NERBA) - Leak Detection & Repair (LDAR) sub-account | C66: ='Authorized Rev Req'!B68 -> D.22-07-016, AL 6023, AL 6045, AL 6210 | D66: 8805.759326 | E66: ='Authorized Rev Req'!K68 -> EPAM | F66: ='Authorized Rev Req'!J68 -> 8805.759326 | G66: =0 -> 0 | H66: =0 -> 0 | I66: 0 | J66: 0 | K66: Existing
A67: ='Authorized Rev Req'!A69 -> New Envirnomental Regulatory Balancing Account (NERBA) -Natural Gas Leak Abatement Program | C67: ='Authorized Rev Req'!B69 -> D.22-07-016, AL 6023, AL 6045, AL 6210 | D67: 0 | E67: ='Authorized Rev Req'!K69 -> EPAM | F67: ='Authorized Rev Req'!J69 -> 0 | G67: =0 -> 0 | H67: =0 -> 0 | I67: 0 | J67: 0 | K67: Existing
A68: ='Authorized Rev Req'!A70 -> TLS Adjustment | C68: ='Authorized Rev Req'!B70 -> D.22-07-016, AL 6023, AL 6045, AL 6210 | D68: 9275.991556 | E68: ='Authorized Rev Req'!K70 -> Non-Residential | F68: ='Authorized Rev Req'!J70 -> 9275.991556 | G68: =0 -> 0 | H68: =0 -> 0 | I68: 0 | J68: 0 | K68: Existing
A69: ='Authorized Rev Req'!A71 -> Natural Gas Leak Abatement Program Revenue Requirement | C69: ='Authorized Rev Req'!B71 -> AL 5915G, AL 6071, AL 6168-G, AL 5950-G-B | D69: 104898.9772 | E69: ='Authorized Rev Req'!K71 -> EPAM | F69: ='Authorized Rev Req'!J71 -> 104898.9772 | G69: 16081.96992 | H69: 15792.95994 | I69: 15281.49368 | J69: 14865.19201 | K69: Existing
A70: ='Authorized Rev Req'!A72 -> Biogas Conditioning/Upgrading Svcs Bal Acct (BCSBA) | C70: ='Authorized Rev Req'!B72 -> D. 13-12-040, AL 6071, AL 6045, AL 6210 | D70: 0 | E70: ='Authorized Rev Req'!K72 -> EPAM | F70: ='Authorized Rev Req'!J72 -> 0 | G70: =0 -> 0 | H70: =0 -> 0 | I70: =H70 -> 0 | J70: =I70 -> 0 | K70: Existing
A71: ='Authorized Rev Req'!A73 -> Diary Biomethane Project Balancing Account (DBPBA) | C71: ='Authorized Rev Req'!B73 -> D. 17-12-004, AL 6071, AL 6045, AL 6210 | D71: 1209.195511 | E71: ='Authorized Rev Req'!K73 -> EPAM | F71: ='Authorized Rev Req'!J73 -> 1209.195511 | G71: =0 -> 0 | H71: =0 -> 0 | I71: 0 | J71: 0 | K71: Existing
A72: ='Authorized Rev Req'!A74 -> Diary Biomethane Project Memorandum Account (DBPMA) | C72: ='Authorized Rev Req'!B74 -> D. 17-12-004, AL 6071, AL 6045, AL 6210 | D72: 5125.990516 | E72: ='Authorized Rev Req'!K74 -> EPAM | F72: ='Authorized Rev Req'!J74 -> 5125.990516 | G72: =0 -> 0 | H72: =0 -> 0 | I72: 0 | J72: 0 | K72: Existing
A73: ='Authorized Rev Req'!A75 -> California Solar Iniative Thermal Memorandum Account (CSITPMA) | C73: ='Authorized Rev Req'!B75 -> D. 10-01-022, AL 6071, AL 6045, AL 6210 | D73: 1391.107979 | E73: ='Authorized Rev Req'!K75 -> ECPT adjusted | F73: ='Authorized Rev Req'!J75 -> 1391.107979 | G73: =0 -> 0 | H73: =0 -> 0 | I73: 0 | J73: 0 | K73: Existing
A74: ='Authorized Rev Req'!A76 -> Biomethane Procurement and Pilot Costs Balancing Account (BPPCBA) - Program Administrative Costs Subaccount | C74: ='Authorized Rev Req'!B76 -> D. 22-02-025, AL 6210 | D74: 237.0470103 | E74: EPAM | F74: ='Authorized Rev Req'!J76 -> 237.0470103 | G74: =0 -> 0 | H74: =0 -> 0 | I74: =H74 -> 0 | J74: =I74 -> 0 | K74: Existing
A76: PPPS Programs
A77: ='Authorized Rev Req'!A84 -> California Alternate Rates for Energy (CARE) | C77: ='Authorized Rev Req'!B84 -> D.21-06-015, AL 6052, AL 6216 | D77: =F77 -> 272251.1514 | E77: ='Authorized Rev Req'!K84 -> Public Purpose Programs | F77: ='Authorized Rev Req'!J84 -> 272251.1514 | G77: =0 -> 0 | H77: =0 -> 0 | I77: =0 -> 0 | J77: =0 -> 0 | K77: Existing
A78: ='Authorized Rev Req'!A85 -> Energy Efficiency | C78: ='Authorized Rev Req'!B85 -> AL 6052, AL 6216, AL 6209 | D78: 165866.6393 | E78: ='Authorized Rev Req'!K85 -> Public Purpose Programs | F78: ='Authorized Rev Req'!J85 -> 165866.6393 | G78: 153968.286 | H78: =G78 -> 153968.286 | I78: =H78 -> 153968.286 | J78: =0 -> 0 | K78: Existing | L78: Provided by Reg Accounting Tony Tjioe
A79: ='Authorized Rev Req'!A86 -> RD&D | C79: ='Authorized Rev Req'!B86 -> AL 6052, AL 6216 | D79: 11380.1178 | E79: ='Authorized Rev Req'!K86 -> Public Purpose Programs | F79: ='Authorized Rev Req'!J86 -> 11380.1178 | H79: =0 -> 0 | I79: =0 -> 0 | J79: =0 -> 0 | K79: Existing
A80: ='Authorized Rev Req'!A87 -> Bureau Of Equalization BOE | C80: ='Authorized Rev Req'!B87 -> AL 6052, AL 6216 | D80: 476.44983 | E80: ='Authorized Rev Req'!K87 -> Public Purpose Programs | F80: ='Authorized Rev Req'!J87 -> 476.44983 | H80: =0 -> 0 | I80: =0 -> 0 | J80: =0 -> 0 | K80: Existing
A81: ='Authorized Rev Req'!A88 -> Energy Savings Assistance | C81: ='Authorized Rev Req'!B88 -> D.21-06-015, AL 6052, AL 6216 | D81: 111508.2999 | E81: ='Authorized Rev Req'!K88 -> Public Purpose Programs | F81: ='Authorized Rev Req'!J88 -> 111508.2999 | G81: 122849.884 | H81: 122541.07 | I81: =0 -> 0 | J81: =0 -> 0 | K81: Existing | L81: Provided by Reg Accounting Tony Tjioe
A82: ='Authorized Rev Req'!A89 -> SJVDGPMA | D82: 90.978 | E82: ='Authorized Rev Req'!K89 -> Public Purpose Programs | F82: ='Authorized Rev Req'!J89 -> 90.978 | H82: =0 -> 0 | I82: =0 -> 0 | J82: =0 -> 0 | K82: Existing
A85: ='Authorized Rev Req'!A98 -> EOR | C85: ='Authorized Rev Req'!B98 -> D.20-02-045, AL 6045, AL | D85: =F85 -> -33358.5985 | E85: ='Authorized Rev Req'!K98 -> EPAM | F85: ='Authorized Rev Req'!J98 -> -33358.5985 | G85: =0 -> 0 | H85: =0 -> 0 | I85: =H85 -> 0 | J85: =I85 -> 0 | K85: Existing
A88: Procurement | C88: ='Authorized Rev Req'!B101 -> D.98-07-068 | D88: =F88 -> 1800955.444 | E88: ='Authorized Rev Req'!K101 -> Core Procurement | F88: ='Authorized Rev Req'!J101 -> 1800955.444 | G88: =F88 -> 1800955.444 | H88: =G88 -> 1800955.444 | I88: =H88 -> 1800955.444 | J88: =I88 -> 1800955.444 | K88: Existing
A92: Total Approved, Implemented Since Jan 1 or To Be Implemented | D92: =SUM(F10:F91) -> 7114070.306 | F92: =SUM(F10:F91) -> 7114070.306 | G92: =SUM(G10:G91) -> 4955265.828 | H92: =SUM(H10:H91) -> 4954280.15 | I92: =SUM(I10:I91) -> 4834895.302 | J92: =SUM(J10:J91) -> 4680510.714
A94: CPUC Fee | E94: CPUC Fee | F94: =RegulatoryFee -> 0.001
A97: Pending Application(s) Not Yet Approved
A98: Filing Description | B98: Proceeding | C98: Basis of Revenue Requirement Forecast: Application, Amended Application , Amended Testimony, Proposed Settlement Agreement, Proposed Decision | D98: Proposed Revenue Requirement with FF&U ($000) | E98: Proposed Revenue Recovery Mechanism | F98: Incremental Revenue Requirement with FF&U ($000) - Breakout by Year | K98: Existing or New Item (if existing, use delta from prior for rate impact)
A99: Safety Affordability Reliability Proceedings | F99: =TRANSPOSE(YearsForRateImpact) -> 2024 | G99: 2025 | H99: 2026 | I99: 2027 | J99: 2028 | L99: Include in Impact
A100: 2024 GRC Application | B100: ` | C100: PD | D100: =SUM(F100:J100) -> 5451566.454 | E100: Allocated Base Margin | F100: 1119721.399 | G100: 1277545.399 | H100: 1441758.839 | I100: 1612540.817 | K100: Existing | L100: =IFERROR(VLOOKUP(A100,Summary!$B$7:$D$17,3,FALSE),"-") -> Y
A101: Pipeline Safety Enhancement Plan (PSEP) GRC - Local Transmission | B101: A.22-05-015 | C101: PD | D101: =SUM(F101:J101) -> 47476.49193 | E101: Local Transmission | F101: -4853.64976 | G101: 16763.88445 | H101: 17434.43983 | I101: 18131.81742 | K101: Existing | L101: =IFERROR(VLOOKUP(A101,Summary!$B$7:$D$17,3,FALSE),"-") -> Y
A102: Pipeline Safety Enhancement Plan (PSEP) GRC -Distribution | B102: A.22-05-015 | C102: PD | D102: 408352.1139 | E102: Distribution | F102: 96160.04 | G102: 100010.2748 | H102: 104010.6858 | I102: 108171.1133 | K102: Existing | L102: =IFERROR(VLOOKUP(A102,Summary!$B$7:$D$17,3,FALSE),"-") -> Y | N102: Authorized + Pending
A103: NonCore Backbone Transmission | B103: A.22-05-015 | C103: PD | D103: 1020161.302 | E103: Backbone Transmission | F103: 24790.37326 | G103: 329328.8338 | H103: 331779.923 | I103: 334262.1718 | K103: Existing | L103: =IFERROR(VLOOKUP(A103,Summary!$B$7:$D$17,3,FALSE),"-") -> Y | O103: =TRANSPOSE(YearsForRateImpact) -> 2024 | P103: 2025 | Q103: 2026 | R103: 2027 | S103: 2028
A104: TIMPBA | B104: SDG&E AL 3257-G-A | C104: Advice Letter | D104: 22035.0432 | E104: ECPT | G104: 22035.0432 | K104: Existing | L104: =IFERROR(VLOOKUP(A104,Summary!$B$7:$D$17,3,FALSE),"-") -> Y | N104: =RevRecoveryMechanisms -> Core Procurement | O104: =SUM(O9,SUMIFS(F$100:F$131,$E$100:$E$131,$N104,$L$101:$L$132,"y")) -> 1800955.444 | P104: =SUM(P9,SUMIFS(G$100:G$131,$E$100:$E$131,$N104,$L$101:$L$132,"y")) -> 1800955.444 | Q104: =SUM(Q9,SUMIFS(H$100:H$131,$E$100:$E$131,$N104,$L$101:$L$132,"y")) -> 1800955.444 | R104: =SUM(R9,SUMIFS(I$100:I$131,$E$100:$E$131,$N104,$L$101:$L$132,"y")) -> 1800955.444 | S104: =SUM(S9,SUMIFS(J$100:J$131,$E$100:$E$131,$N104,$L$101:$L$132,"y")) -> 1800955.444
A105: Catastrophic Event Memorandum Account (CEMA) | B105: A.23-11-003 | C105: Application | D105: 52396.73583 | E105: ECPT | G105: 52396.73583 | K105: Existing | L105: =IFERROR(VLOOKUP(A105,Summary!$B$7:$D$17,3,FALSE),"-") -> Y | N105: Allocated Base Margin | O105: 3947512 | P105: 4105336 | Q105: 4269549.44 | R105: 4440331.418 | S105: 2827790.601
A106: COVID-19 Pandemic Protections Memorandum Account (CPPMA) | B106: A.23-11-003 | C106: Application | D106: 5828.250576 | E106: ECPT | G106: 5828.250576 | K106: Existing | L106: =IFERROR(VLOOKUP(A106,Summary!$B$7:$D$17,3,FALSE),"-") -> Y | N106: Distribution | O106: 231250.9694 | P106: 100010.2748 | Q106: 104010.6858 | R106: 108171.1133 | S106: 0
A107: DIMPBA | B107: AL 6224 | C107: Advice Letter | D107: 82765.6366 | E107: EPAM | G107: 82765.6366 | K107: Existing | L107: =IFERROR(VLOOKUP(A107,Summary!$B$7:$D$17,3,FALSE),"-") -> Y | N107: ECPT adjusted | O107: 15383.33093 | P107: 0 | Q107: 0 | R107: 0 | S107: 0
A108: Natural Gas Leak Abatement | B108: AL 6277-G-B | C108: Advice Letter | D108: 285272.1722 | E108: EPAM | G108: 155713.4638 | H108: 129558.7083 | K108: New | L108: Y | N108: Local Transmission | O108: 98471.6538 | P108: 16763.88445 | Q108: 17434.43983 | R108: 18131.81742 | S108: 0
D109: 0 | L109: =IFERROR(VLOOKUP(A109,Summary!$B$7:$D$17,3,FALSE),"-") -> - | N109: SGIP | O109: 16265.02543 | P109: 0 | Q109: 0 | R109: 0 | S109: 0
D110: 0 | L110: =IFERROR(VLOOKUP(A110,Summary!$B$7:$D$17,3,FALSE),"-") -> - | N110: GHG End User | O110: 745406.2743 | P110: 0 | Q110: 0 | R110: 0 | S110: 0
D111: 0 | L111: =IFERROR(VLOOKUP(A111,Summary!$B$7:$D$17,3,FALSE),"-") -> - | N111: Public Purpose Programs | O111: 561573.6363 | P111: 276818.17 | Q111: 276509.356 | R111: 153968.286 | S111: 0
A112: Public Policy Proceedings | D112: 0 | L112: =IFERROR(VLOOKUP(A112,Summary!$B$7:$D$17,3,FALSE),"-") -> - | N112: Backbone Transmission | O112: 428508.9867 | P112: 329328.8338 | Q112: 331779.923 | R112: 334262.1718 | S112: 0
D113: =SUM(F113:J113) -> 0 | L113: =IFERROR(VLOOKUP(A113,Summary!$B$7:$D$17,3,FALSE),"-") -> - | N113: 47% Res (LUAF, Other) | O113: 58785.83233 | P113: 0 | Q113: 0 | R113: 0 | S113: 0
A114: Cost Allocation Proceeding | B114: A. 22-09-015 | C114: Settlement Agreement | D114: =SUM(F114:J114) -> 0 | E114: EPAM | G114: 0 | H114: 0 | I114: 0 | J114: 0 | L114: =IFERROR(VLOOKUP(A114,Summary!$B$7:$D$17,3,FALSE),"-") -> Y | N114: ECPT | O114: 416754.357 | P114: 80260.02961 | Q114: 0 | R114: 0 | S114: 0
D115: =SUM(F115:J115) -> 0 | L115: =IFERROR(VLOOKUP(A115,Summary!$B$7:$D$17,3,FALSE),"-") -> - | N115: EPAM | O115: =SUM(O20,SUMIFS(F$100:F$131,$E$100:$E$131,$N115,$L$101:$L$132,"y")) -> 177516.6824 | P115: =SUM(P20,SUMIFS(G$100:G$132,$E$100:$E$132,$N115,$L$100:$L$132,"y")) -> 288180.7134 | Q115: 178583.4581 | R115: =SUM(R20,SUMIFS(I$100:I$131,$E$100:$E$131,$N115,$L$101:$L$132,"y")) -> 52180.97131 | S115: 51764.66965
D116: =SUM(F116:J116) -> 0 | L116: =IFERROR(VLOOKUP(A116,Summary!$B$7:$D$17,3,FALSE),"-") -> - | N116: CFCA | O116: =SUM(O21,SUMIFS(F$100:F$131,$E$100:$E$131,$N116,$L$101:$L$132,"y")) -> -159234.434 | P116: =SUM(P21,SUMIFS(G$100:G$131,$E$100:$E$131,$N116,$L$101:$L$132,"y")) -> 0 | Q116: 0 | R116: 0 | S116: 0
L117: =IFERROR(VLOOKUP(A117,Summary!$B$7:$D$17,3,FALSE),"-") -> - | N117: Non-Residential | O117: =SUM(O22,SUMIFS(F$100:F$131,$E$100:$E$131,$N117,$L$101:$L$132,"y")) -> 10738.70996 | P117: =SUM(P22,SUMIFS(G$100:G$131,$E$100:$E$131,$N117,$L$101:$L$132,"y")) -> 0 | Q117: 0 | R117: 0 | S117: 0
L118: =IFERROR(VLOOKUP(A118,Summary!$B$7:$D$17,3,FALSE),"-") -> - | N118: Total | O118: =SUM(O104:O117) -> 8349888.468 | P118: =SUM(P104:P117) -> 6997653.35 | Q118: =SUM(Q104:Q117) -> 6978822.747 | R118: =SUM(R104:R117) -> 6908001.221 | S118: =SUM(S104:S117) -> 4680510.714
N119: Incremental Revenues | O119: =O118-O23 -> 1235818.163 | P119: =P118-P23 -> 2042387.522 | Q119: =Q118-Q23 -> 2024542.596 | R119: =R118-R23 -> 2073105.919 | S119: =S118-S23 -> 0
N121: CPUC Fee | O121: =RegulatoryFee -> 0.001
N122: Check Figure | O122: =ROUND(O119,6)-ROUND(F133,6) -> 0 | P122: =ROUND(P119,6)-SUM(G100:G131) -> 4.570465535e-07 | Q122: =ROUND(Q119,6)-SUM(H100:H131) -> -4.898756742e-07 | R122: =ROUND(R119,6)-SUM(I100:I131) -> 4.367902875e-07 | S122: =ROUND(S119,6)-SUM(J100:J130) -> 0
A133: Total Pending, Filed but not Approved | D133: =SUM(D100:D130) -> 7375854.2 | F133: =SUM(F100:F132) -> 1235818.163 | G133: =SUM(G100:G131) -> 2042387.522 | H133: =SUM(H100:H131) -> 2024542.596 | I133: =SUM(I100:I131) -> 2073105.919 | J133: =SUM(J100:J132) -> 0
A134: Applications Projected to be Filed, Next 12 Months
A136: Filing Description | B136: Estimated Filing Date | C136: Filing Basis | D136: Proposed Revenue Requirement ($000) | E136: Proposed Revenue Recovery Mechanism | F136: Projected Authorized Revenue Requirement ($000) - Breakout by Year | K136: Existing or New Item (if existing, use delta from prior for rate impact)
A137: Safety Affordability Reliability Proceedings | F137: =TRANSPOSE(YearsForRateImpact) -> 2024 | G137: 2025 | H137: 2026 | I137: 2027 | J137: 2028
A142: Public Policy Proceedings

Sheet SAR and RAR
C1: Revenue Change ($000)
C2: Authorized | D2: w/ Pending
B3: =RevRecoveryMechanisms -> Core Procurement | C3: =INDEX('Incremental Rev Req'!$N$9:$S$22,MATCH(B3,'Incremental Rev Req'!$N$9:$N$22,0),MATCH(Summary!$D$2,'Incremental Rev Req'!$N$8:$S$8,0)) -> 1800955.444 | D3: =INDEX('Incremental Rev Req'!$N$104:$S$117,MATCH(B3,'Incremental Rev Req'!$N$104:$N$117,0),MATCH(Summary!$D$2,'Incremental Rev Req'!$N$103:$S$103,0)) -> 1800955.444 | G3: Allocation | P3: Other Revenues and Balancing Accounts
B4: Allocated Base Margin | C4: =INDEX('Incremental Rev Req'!$N$9:$S$22,MATCH(B4,'Incremental Rev Req'!$N$9:$N$22,0),MATCH(Summary!$D$2,'Incremental Rev Req'!$N$8:$S$8,0)) -> 2827790.601 | D4: =INDEX('Incremental Rev Req'!$N$104:$S$117,MATCH(B4,'Incremental Rev Req'!$N$104:$N$117,0),MATCH(Summary!$D$2,'Incremental Rev Req'!$N$103:$S$103,0)) -> 3947512 | G4: =TRANSPOSE(RevRecoveryMechanisms) -> Core Procurement | H4: Allocated Base Margin | I4: Distribution | J4: ECPT adjusted | K4: Local Transmission | L4: SGIP | M4: GHG End User | N4: Public Purpose Programs | O4: Backbone Transmission | P4: 47% Res (LUAF, Other) | Q4: ECPT | R4: EPAM | S4: CFCA | T4: Non-Residential | U4: CPUC Fee
B5: Distribution | C5: =INDEX('Incremental Rev Req'!$N$9:$S$22,MATCH(B5,'Incremental Rev Req'!$N$9:$N$22,0),MATCH(Summary!$D$2,'Incremental Rev Req'!$N$8:$S$8,0)) -> 135090.9294 | D5: =INDEX('Incremental Rev Req'!$N$104:$S$117,MATCH(B5,'Incremental Rev Req'!$N$104:$N$117,0),MATCH(Summary!$D$2,'Incremental Rev Req'!$N$103:$S$103,0)) -> 231250.9694 | F5: Residential | G5: 0.6627093754 | H5: 0.7446226242 | I5: 0.6112624404 | J5: 0.3877294391 | K5: 0.4173265542 | L5: 0.08327259117 | M5: 0.5503629122 | N5: 0.528653564 | O5: 0 | P5: 0.4711863659 | Q5: 0.2509210363 | R5: 0.7446226242 | S5: 0.6979502784 | T5: 0 | U5: =RegulatoryFee -> 0.001
B6: ECPT adjusted | C6: =INDEX('Incremental Rev Req'!$N$9:$S$22,MATCH(B6,'Incremental Rev Req'!$N$9:$N$22,0),MATCH(Summary!$D$2,'Incremental Rev Req'!$N$8:$S$8,0)) -> 15383.33093 | D6: =INDEX('Incremental Rev Req'!$N$104:$S$117,MATCH(B6,'Incremental Rev Req'!$N$104:$N$117,0),MATCH(Summary!$D$2,'Incremental Rev Req'!$N$103:$S$103,0)) -> 15383.33093
B7: Local Transmission | C7: =INDEX('Incremental Rev Req'!$N$9:$S$22,MATCH(B7,'Incremental Rev Req'!$N$9:$N$22,0),MATCH(Summary!$D$2,'Incremental Rev Req'!$N$8:$S$8,0)) -> 103325.3036 | D7: =INDEX('Incremental Rev Req'!$N$104:$S$117,MATCH(B7,'Incremental Rev Req'!$N$104:$N$117,0),MATCH(Summary!$D$2,'Incremental Rev Req'!$N$103:$S$103,0)) -> 98471.6538 | G7: Revenue Change ($000) - System
B8: SGIP | C8: =INDEX('Incremental Rev Req'!$N$9:$S$22,MATCH(B8,'Incremental Rev Req'!$N$9:$N$22,0),MATCH(Summary!$D$2,'Incremental Rev Req'!$N$8:$S$8,0)) -> 16265.02543 | D8: =INDEX('Incremental Rev Req'!$N$104:$S$117,MATCH(B8,'Incremental Rev Req'!$N$104:$N$117,0),MATCH(Summary!$D$2,'Incremental Rev Req'!$N$103:$S$103,0)) -> 16265.02543 | F8: Authorized | G8: =TRANSPOSE(RevRecoveryMechanisms) -> Core Procurement | H8: Allocated Base Margin | I8: Distribution | J8: ECPT adjusted | K8: Local Transmission | L8: SGIP | M8: GHG End User | N8: Public Purpose Programs | O8: Backbone Transmission | P8: 47% Res (LUAF, Other) | Q8: ECPT | R8: EPAM | S8: CFCA | T8: Non-Residential
B9: GHG End User | C9: =INDEX('Incremental Rev Req'!$N$9:$S$22,MATCH(B9,'Incremental Rev Req'!$N$9:$N$22,0),MATCH(Summary!$D$2,'Incremental Rev Req'!$N$8:$S$8,0)) -> 745406.2743 | D9: =INDEX('Incremental Rev Req'!$N$104:$S$117,MATCH(B9,'Incremental Rev Req'!$N$104:$N$117,0),MATCH(Summary!$D$2,'Incremental Rev Req'!$N$103:$S$103,0)) -> 745406.2743 | F9: Residential | G9: =G5*G10 -> 1193510.057 | H9: =H5*H10 -> 2105636.858 | I9: =I5*I10 -> 82576.01118 | J9: =J5*J10 -> 5964.570272 | K9: 43120.39289 | L9: 1354.430813 | M9: 410243.9679 | N9: 296877.9042 | O9: =O5*O10 -> 0 | P9: 27699.0827 | Q9: =Q5*Q10 -> 104572.4352 | R9: =R5*R10 -> 132182.9379 | S9: =S5*S10 -> -111137.7175 | T9: =T5*T10 -> 0 | U9: =SUM(G9:T9) -> 4292600.931 | V9: Check | W9: CPUC Fee
B10: Public Purpose Programs | C10: =INDEX('Incremental Rev Req'!$N$9:$S$22,MATCH(B10,'Incremental Rev Req'!$N$9:$N$22,0),MATCH(Summary!$D$2,'Incremental Rev Req'!$N$8:$S$8,0)) -> 561573.6363 | D10: =INDEX('Incremental Rev Req'!$N$104:$S$117,MATCH(B10,'Incremental Rev Req'!$N$104:$N$117,0),MATCH(Summary!$D$2,'Incremental Rev Req'!$N$103:$S$103,0)) -> 561573.6363 | F10: Total System | G10: =C3 -> 1800955.444 | H10: =C4 -> 2827790.601 | I10: =C5 -> 135090.9294 | J10: =C6 -> 15383.33093 | K10: =C7 -> 103325.3036 | L10: =C8 -> 16265.02543 | M10: =C9 -> 745406.2743 | N10: =C10 -> 561573.6363 | O10: =C11 -> 403718.6134 | P10: =C12 -> 58785.83233 | Q10: =C13 -> 416754.357 | R10: =C14 -> 177516.6824 | S10: =C15 -> -159234.434 | T10: =C16 -> 10738.70996 | U10: =SUM(G10:T10) -> 7114070.306 | V10: =U10-C17 -> 0 | W10: =RegulatoryFee -> 0.001
B11: Backbone Transmission | C11: =INDEX('Incremental Rev Req'!$N$9:$S$22,MATCH(B11,'Incremental Rev Req'!$N$9:$N$22,0),MATCH(Summary!$D$2,'Incremental Rev Req'!$N$8:$S$8,0)) -> 403718.6134 | D11: =INDEX('Incremental Rev Req'!$N$104:$S$117,MATCH(B11,'Incremental Rev Req'!$N$104:$N$117,0),MATCH(Summary!$D$2,'Incremental Rev Req'!$N$103:$S$103,0)) -> 428508.9867 | F11: w/Pending
B12: 47% Res (LUAF, Other) | C12: =INDEX('Incremental Rev Req'!$N$9:$S$22,MATCH(B12,'Incremental Rev Req'!$N$9:$N$22,0),MATCH(Summary!$D$2,'Incremental Rev Req'!$N$8:$S$8,0)) -> 58785.83233 | D12: =INDEX('Incremental Rev Req'!$N$104:$S$117,MATCH(B12,'Incremental Rev Req'!$N$104:$N$117,0),MATCH(Summary!$D$2,'Incremental Rev Req'!$N$103:$S$103,0)) -> 58785.83233 | F12: Residential | G12: =G5*G13 -> 1193510.057 | H12: =H5*H13 -> 2939406.745 | I12: 141355.0319 | J12: 5964.570272 | K12: 41094.83597 | L12: 1354.430813 | M12: 410243.9679 | N12: 296877.9042 | O12: =O5*O13 -> 0 | P12: 27699.0827 | Q12: =Q5*Q13 -> 104572.4352 | R12: =R5*R13 -> 132182.9379 | S12: =S5*S13 -> -111137.7175 | T12: =T5*T13 -> 0 | U12: =SUM(G12:T12) -> 5183124.281 | V12: Check | W12: CPUC Fee
B13: ECPT | C13: =INDEX('Incremental Rev Req'!$N$9:$S$22,MATCH(B13,'Incremental Rev Req'!$N$9:$N$22,0),MATCH(Summary!$D$2,'Incremental Rev Req'!$N$8:$S$8,0)) -> 416754.357 | D13: =INDEX('Incremental Rev Req'!$N$104:$S$117,MATCH(B13,'Incremental Rev Req'!$N$104:$N$117,0),MATCH(Summary!$D$2,'Incremental Rev Req'!$N$103:$S$103,0)) -> 416754.357 | F13: Total System | G13: =D3 -> 1800955.444 | H13: =D4 -> 3947512 | I13: =D5 -> 231250.9694 | J13: =D6 -> 15383.33093 | K13: =D7 -> 98471.6538 | L13: =D8 -> 16265.02543 | M13: =D9 -> 745406.2743 | N13: =D10 -> 561573.6363 | O13: =D11 -> 428508.9867 | P13: =D12 -> 58785.83233 | Q13: =D13 -> 416754.357 | R13: =D14 -> 177516.6824 | S13: =D15 -> -159234.434 | T13: =D16 -> 10738.70996 | U13: =SUM(G13:T13) -> 8349888.468 | V13: =U13-D17 -> 0 | W13: =RegulatoryFee -> 0.001
B14: EPAM | C14: =INDEX('Incremental Rev Req'!$N$9:$S$22,MATCH(B14,'Incremental Rev Req'!$N$9:$N$22,0),MATCH(Summary!$D$2,'Incremental Rev Req'!$N$8:$S$8,0)) -> 177516.6824 | D14: =INDEX('Incremental Rev Req'!$N$104:$S$117,MATCH(B14,'Incremental Rev Req'!$N$104:$N$117,0),MATCH(Summary!$D$2,'Incremental Rev Req'!$N$103:$S$103,0)) -> 177516.6824 | AC14: Authorized | AD14: w/Pending
B15: CFCA | C15: =INDEX('Incremental Rev Req'!$N$9:$S$22,MATCH(B15,'Incremental Rev Req'!$N$9:$N$22,0),MATCH(Summary!$D$2,'Incremental Rev Req'!$N$8:$S$8,0)) -> -159234.434 | D15: =INDEX('Incremental Rev Req'!$N$104:$S$117,MATCH(B15,'Incremental Rev Req'!$N$104:$N$117,0),MATCH(Summary!$D$2,'Incremental Rev Req'!$N$103:$S$103,0)) -> -159234.434 | AB15: % of CARE Sales (Bundled) | AC15: 0.247147337 | AD15: =AC15 -> 0.247147337
B16: Non-Residential | C16: =INDEX('Incremental Rev Req'!$N$9:$S$22,MATCH(B16,'Incremental Rev Req'!$N$9:$N$22,0),MATCH(Summary!$D$2,'Incremental Rev Req'!$N$8:$S$8,0)) -> 10738.70996 | D16: =INDEX('Incremental Rev Req'!$N$104:$S$117,MATCH(B16,'Incremental Rev Req'!$N$104:$N$117,0),MATCH(Summary!$D$2,'Incremental Rev Req'!$N$103:$S$103,0)) -> 10738.70996 | U16: Authorized | W16: w/Pending Total UDC | Y16: Commodity | Z16: w/Pending Commodity
B17: Total Revenue Requirement | C17: =SUM(C3:C16) -> 7114070.306 | D17: =SUM(D3:D16) -> 8349888.468 | G17: Revenue Split - Bundled Customer | U17: Bundled Revenue Change | W17: Bundled Revenue Change
B18: CPUC Fee | C18: =RegulatoryFee -> 0.001 | D18: =C18 -> 0.001 | G18: =TRANSPOSE(RevRecoveryMechanisms) -> Core Procurement | H18: Allocated Base Margin | I18: Distribution | J18: ECPT adjusted | K18: Local Transmission | L18: SGIP | M18: GHG End User | N18: Public Purpose Programs | O18: Backbone Transmission | P18: 47% Res (LUAF, Other) | Q18: ECPT | R18: EPAM | S18: CFCA | T18: Non-Residential | U18: Total | W18: Total | Y18: Core Procurement | Z18: Core Procurement
F19: Residential | G19: 1 | H19: 1 | I19: 1 | J19: 1 | K19: 1 | L19: 1 | M19: 1 | N19: 1 | O19: 1 | P19: 1 | Q19: 1 | R19: 1 | S19: 1 | T19: 1 | U19: =SUMPRODUCT(H9:T9,H19:T19) -> 3099090.873 | W19: =SUMPRODUCT(H12:T12,H19:T19) -> 3989614.224 | Y19: =SUMPRODUCT(G9,G19) -> 1193510.057 | Z19: =SUMPRODUCT(G12,G19) -> 1193510.057
F20: Total System | G20: 1 | H20: 1 | I20: 1 | J20: 1 | K20: 1 | L20: 1 | M20: 1 | N20: 0 | O20: 1 | P20: 1 | Q20: 1 | R20: 1 | S20: 1 | T20: 1 | U20: =SUMPRODUCT(H10:T10,H20:T20) -> 4751541.226 | W20: =SUMPRODUCT(H13:T13,H20:T20) -> 5987359.388 | Y20: =SUMPRODUCT(G10,G20) -> 1800955.444 | Z20: =SUMPRODUCT(G13,G20) -> 1800955.444
C22: TCAP D.20-02-045 SALES DETERMINANTS SYSTEM NET (MTH) Average year Throughput | D22: TCAP D.20-02-045 SALES DETERMINANTS BUNDLED (MTH)Average year throughput
B23: Residential | C23: 2346352.645 | D23: 2318963.268
B24: Total System | C24: 9350960.283 | D24: 3290999.221
F26: Bundled | P26: System (Bundled and Unbundled)
B27: CARE Discount | F27: TCAP D.20-02-045 SALES DETERMINANTS BUNDLED | G27: =CONCATENATE(TEXT(CurrentEffectiveRateDate,"mm/dd/yyyy")," Avg Rates"&"(sales adj.)") -> 12/01/2024 Avg Rates(sales adj.) | H27: Proposed Avg Rates (Authorized) | I27: Proposed Avg Rates (w/Pending) | J27: % Change (Authorized) | K27: % Change (w/Pending) | Q27: =F27 -> TCAP D.20-02-045 SALES DETERMINANTS BUNDLED | R27: =G27 -> 12/01/2024 Avg Rates(sales adj.) | S27: Proposed Avg Rates (Authorized) | T27: Proposed Avg Rates (w/Pending) | U27: % Change (Authorized) | V27: % Change (w/Pending)
B28: 2020 | C28: 132417.9764 | E28: Residential | F28: =D23 -> 2318963.268 | G28: 183.5486042 | H28: =(U19/C23*100)+(Y19/D23*100) -> 183.5486042 | I28: =(W19/C23*100)+(Z19/D23*100) -> 221.5021213 | J28: =H28/G28-1 -> 0 | K28: =I28/G28-1 -> 0.2067763859 | P28: Residential | Q28: =C23 -> 2346352.645 | R28: 182.9478165 | S28: =U9/Q28*100 -> 182.9478165 | T28: =U12/Q28*100 -> 220.9013335 | U28: =S28/R28-1 -> 0 | V28: =T28/R28-1 -> 0.207455425
B29: 2021 | C29: 187534.6647 | E29: Total System | F29: =D24 -> 3290999.221 | G29: 105.5370707 | H29: =(U20/C24*100)+(Y20/D24*100) -> 105.5370707 | I29: =(W20/C24*100)+(Z20/D24*100) -> 118.7530199 | J29: =H29/G29-1 -> 0 | K29: =I29/G29-1 -> 0.125225659 | P29: Total System | Q29: =C24 -> 9350960.283 | R29: 76.07849986 | S29: =U10/Q29*100 -> 76.07849986 | T29: =U13/Q29*100 -> 89.29444908 | U29: =S29/R29-1 -> 0 | V29: =T29/R29-1 -> 0.1737146401
B30: 2022 | C30: 210430.2141 | H30: cents/therm
B31: 2023 | C31: 213115.4392
B32: 2024 | C32: 214904.4994

Sheet Res Bill Impact
E3: Schedule GR | P3: Schedule GR [CARE]
E4: =SalesForecastYear -> 2024 | F4: =CurrentEffectiveRateDate -> 2024-12-01 | G4: =CurrentEffectiveRateDate -> 2024-12-01 | H4: Proposed | I4: Proposed | J4: Proposed | K4: Proposed | P4: =SalesForecastYear -> 2024 | Q4: =CurrentEffectiveRateDate -> 2024-12-01 | R4: =CurrentEffectiveRateDate -> 2024-12-01 | S4: Proposed | T4: Proposed | U4: Proposed | V4: Proposed
E5: System Sales Forecast | F5: Rates | G5: Revenue | H5: Authorized Rates | I5: Authorized Revenue | J5: w/Pending Rates | K5: w/Pending Revenue | P5: Sales Forecast | Q5: Rates | R5: Revenue | S5: Authorized Rates | T5: Authorized Revenue | U5: w/Pending Rates | V5: w/Pending Revenue
D7: Baseline | E7: 1205788.245 | F7: 1.626207614 | G7: =F7*E7 -> 1960862.025 | H7: =((Y10-I12-T12)/SUM(E7,F9/F7*E9,P7*((Q7/F7)),P9*((Q9/F7)))) -> 1.659363046 | I7: =E7*H7 -> 2000840.456 | J7: =((Y13-K12-V12)/SUM(SUM(E7),F9/F7*SUM(E9),SUM(P7)*((Q7/F7)),SUM(P9)*(Q9/F7))) -> 2.031466592 | K7: =E7*J7 -> 2449518.537 | O7: =D7 -> Baseline | P7: 419691.9604 | Q7: 1.266022508 | R7: =Q7*P7 -> 531339.4684 | S7: =H7*(1+(Q7/F7-1)) -> 1.291834418 | T7: =P7*S7 -> 542172.5194 | U7: =J7*(1+(Q7/F7-1)) -> 1.581521577 | V7: =P7*U7 -> 663751.8911 | X7: Bundled Residential Rev Req
X8: Current | Y8: =(SUM(G7:G9)+SUM(R7:R9)) -> 3891862.548
D9: non-Baseline | E9: 534746.2927 | F9: 2.056857614 | G9: =F9*E9 -> 1099896.983 | H9: =F9/F$7*H$7 -> 2.098793221 | I9: =E9*H9 -> 1122321.894 | J9: =F9/F$7*J$7 -> 2.569436701 | K9: 1373996.75 | O9: =D9 -> non-Baseline | P9: 186126.1467 | Q9: 1.610542508 | R9: =Q9*P9 -> 299764.0712 | S9: =H9*(1+(Q9/F9-1)) -> 1.643378558 | T9: =P9*S9 -> 305875.7186 | U9: =J9*(1+(Q9/F9-1)) -> 2.011897665 | V9: =P9*U9 -> 374466.76 | X9: Change (Authorized) | Y9: =Y10-Y8 -> 400738.3828
X10: Proposed (Authorized) | Y10: ='SAR and RAR'!U9 -> 4292600.931
E11: Non-CARE customers | P11: CARE Customers
D12: Fixed Charge | E12: =E13-P12 -> 3924404.111 | F12: 5 | G12: =F12*12*E12/1000 -> 235464.2467 | H12: =SetUp!D7 -> 5 | I12: =(H12*12*E12)/1000 -> 235464.2467 | J12: =H12 -> 5 | K12: =I12 -> 235464.2467 | O12: Fixed Charge | P12: 1790127 | Q12: =F12*(1-CAREDiscountPercent) -> 4 | R12: =Q12*12*P12/1000 -> 85926.096 | S12: =SetUp!D7*(1-CAREDiscountPercent) -> 4 | T12: =(S12*12*P12)/1000 -> 85926.096 | U12: =S12 -> 4 | V12: =T12 -> 85926.096 | X12: Change (w/Pending) | Y12: =Y13-Y8 -> 1291261.733
D13: Total Customers | E13: 5714531.111 | X13: Proposed (w/Pending) | Y13: ='SAR and RAR'!U12 -> 5183124.281
P18: Basic Bundled
E19: =Summary!D2 -> 2024 | F19: =Summary!D2 -> 2024 | H19: Essential Usage | P19: 2023 Recorded Data - Average Monthly Usage - ALL-BASIC th
B20: SCHEDULE GR RATES ($/therm) | E20: Proposed | F20: Proposed | H20: Monthly Tier 1 Baseline Allowance -BASIC (th) | P20: Climate Zone | Q20: Summer | R20: Winter | S20: Summer | T20: Winter | U20: Population Weight
B21: Rates | C21: =BOYEffectiveRateDate -> 2024-01-01 | D21: =CurrentEffectiveRateDate -> 2024-12-01 | E21: Authorized | F21: w/Pending | H21: Climate Zone | I21: Summer 2023 | J21: Winter 2023 | Q21: Non-CARE | S21: CARE | U21: Non-CARE | V21: CARE
A22: Summer | B22: Tier 1 | C22: 1.650076577 | D22: 1.659887539 | E22: =H7 -> 1.659363046 | F22: =J7 -> 2.031466592 | H22: =Zones -> 1 | I22: 13 | J22: 37.33333333 | P22: =Zones -> 1 | Q22: 23.70273381 | R22: 50.81583062 | S22: 17.65198412 | T22: 36.09496759 | U22: 0.9533494887 | V22: 0.9533494887
B23: Tier 2 | C23: 2.085400288 | D23: 2.097799582 | E23: =H9 -> 2.098793221 | F23: =J9 -> 2.569436701 | H23: 2 | I23: 13 | J23: 42.16666667 | P23: 2 | Q23: 19.99227159 | R23: 57.29689283 | S23: 18.34027962 | T23: 53.47749147 | U23: 0.04467194963 | V23: 0.04467194963
H24: 3 | I24: 13 | J24: 65 | P24: 3 | Q24: 22.17202669 | R24: 81.47984045 | S24: 25.0900804 | T24: 88.99966758 | U24: 0.001978561632 | V24: 0.001978561632
A25: Winter | B25: Tier 1 | C25: =C22 -> 1.650076577 | D25: =D22 -> 1.659887539 | E25: =E22 -> 1.659363046 | F25: 2.031466592 | H25: 0 | P25: 0 | U25: 0 | V25: 0
B26: Tier 2 | C26: =C23 -> 2.085400288 | D26: =D23 -> 2.097799582 | E26: =E23 -> 2.098793221 | F26: 2.569436701
P27: Typical Bundled
E28: =Summary!D2 -> 2024 | F28: =Summary!D2 -> 2024 | P28: 2019-2023 Recorded Data - Average Monthly Usage - ALL-BASIC th
B29: SCHEDULE GR-LI [CARE] ($/therm) | E29: Proposed | F29: Proposed | P29: Climate Zone | Q29: Summer | R29: Winter | S29: Summer | T29: Winter | U29: Population Weight
B30: Rates | C30: =C21 -> 2024-01-01 | D30: =D21 -> 2024-12-01 | E30: Authorized | F30: w/Pending | Q30: Non-CARE | S30: CARE | U30: Non-CARE | V30: CARE
A31: Summer | B31: Tier 1 | C31: 1.28440394 | D31: 1.2920407 | E31: =S7 -> 1.291834418 | F31: =U7 -> 1.581521577 | P31: =Zones -> 1 | Q31: 23.21119128 | R31: 50.63439374 | S31: 17.78330392 | T31: 35.74055587 | U31: 0.9533494887 | V31: 0.9533494887
B32: Tier 2 | C32: 1.632662909 | D32: 1.642370333 | E32: =S9 -> 1.643378558 | F32: =U9 -> 2.011897665 | P32: 2 | Q32: 19.58817798 | R32: 56.62928825 | S32: 18.88306726 | T32: 53.10374031 | U32: 0.04467194963 | V32: 0.04467194963
P33: 3 | Q33: 20.92759649 | R33: 79.11962685 | S33: 25.94545528 | T33: 90.09599585 | U33: 0.001978561632 | V33: 0.001978561632
A34: Winter | B34: Tier 1 | C34: =C31 -> 1.28440394 | D34: =D31 -> 1.2920407 | E34: 1.291834418 | F34: 1.581521577 | P34: 0 | U34: 0 | V34: 0
B35: Tier 2 | C35: =C32 -> 1.632662909 | D35: =D32 -> 1.642370333 | E35: 1.643378558 | F35: 2.011897665
C39: Note: Bill inserts include CPUC fee in the calculations
C40: 2023 Recorded Average Basic Bundled Non-CARE Customer Bill
C41: =C30 -> 2024-01-01 | E41: =D30 -> 2024-12-01 | G41: =E21 -> Authorized | I41: =F21 -> w/Pending
C42: Summer | D42: Winter | E42: Summer | F42: Winter | G42: Summer | H42: Winter | I42: Summer | J42: Winter
B43: =Zones -> 1 | C43: =IF($Q22>$I22,C$22*$I22+C$23*($Q22-$I22),$Q22*C$22)+('Incremental Rev Req'!$F$94*$Q22)+IF(Q22>0,$F$12,0) -> 48.79418242 | D43: =IF($R22>$J22,C$25*$J22+C$26*($R22-$J22),$R22*C$25)+('Incremental Rev Req'!$F$94*$R22)+IF(R22>0,$F$12,0) -> 94.77007845 | E43: =IF($Q22>$I22,D$22*$I22+D$23*($Q22-$I22),$Q22*D$22)+('Incremental Rev Req'!$F$94*$Q22)+IF(Q22>0,$F$12,0) -> 49.05443126 | F43: =IF($R22>$J22,D$25*$J22+D$26*($R22-$J22),$R22*D$25)+('Incremental Rev Req'!$F$94*$R22)+IF(R22>0,$F$12,0) -> 95.3035278 | G43: =IF($Q22>$I22,E$22*$I22+E$23*($Q22-$I22),$Q22*E$22)+('Incremental Rev Req'!$F$94*$Q22)+IF(Q22>0,$H$12,0) -> 49.05824751 | H43: =IF($R22>$J22,E$25*$J22+E$26*($R22-$J22),$R22*E$25)+('Incremental Rev Req'!$F$94*$R22)+IF(R22>0,$H$12,0) -> 95.29734348 | I43: =IF($Q22>$I22,F$22*$I22+F$23*($Q22-$I22),$Q22*F$22)+('Incremental Rev Req'!$F$94*$Q22)+IF(Q22>0,$J$12,0) -> 58.93276549 | J43: =IF($R22>$J22,F$25*$J22+F$26*($R22-$J22),$R22*F$25)+('Incremental Rev Req'!$F$94*$R22)+IF(R22>0,$J$12,0) -> 115.5346586
B44: 2 | C44: =IF($Q23>$I23,C$22*$I23+C$23*($Q23-$I23),$Q23*C$22)+('Incremental Rev Req'!$F$94*$Q23)+IF(Q23>0,$F$12,0) -> 41.05267297 | D44: =IF($R23>$J23,C$25*$J23+C$26*($R23-$J23),$R23*C$25)+('Incremental Rev Req'!$F$94*$R23)+IF(R23>0,$F$12,0) -> 106.1881039 | E44: =IF($Q23>$I23,D$22*$I23+D$23*($Q23-$I23),$Q23*D$22)+('Incremental Rev Req'!$F$94*$Q23)+IF(Q23>0,$F$12,0) -> 41.26691471 | F44: =IF($R23>$J23,D$25*$J23+D$26*($R23-$J23),$R23*D$25)+('Incremental Rev Req'!$F$94*$R23)+IF(R23>0,$F$12,0) -> 106.7894036 | G44: =IF($Q23>$I23,E$22*$I23+E$23*($Q23-$I23),$Q23*E$22)+('Incremental Rev Req'!$F$94*$Q23)+IF(Q23>0,$H$12,0) -> 41.2670441 | H44: =IF($R23>$J23,E$25*$J23+E$26*($R23-$J23),$R23*E$25)+('Incremental Rev Req'!$F$94*$R23)+IF(R23>0,$H$12,0) -> 106.7823214 | I44: =IF($Q23>$I23,F$22*$I23+F$23*($Q23-$I23),$Q23*F$22)+('Incremental Rev Req'!$F$94*$Q23)+IF(Q23>0,$J$12,0) -> 49.39525722 | J44: =IF($R23>$J23,F$25*$J23+F$26*($R23-$J23),$R23*F$25)+('Incremental Rev Req'!$F$94*$R23)+IF(R23>0,$J$12,0) -> 129.5936299
B45: 3 | C45: =IF($Q24>$I24,C$22*$I24+C$23*($Q24-$I24),$Q24*C$22)+('Incremental Rev Req'!$F$94*$Q24)+IF(Q24>0,$F$12,0) -> 45.60051464 | D45: =IF($R24>$J24,C$25*$J24+C$26*($R24-$J24),$R24*C$25)+('Incremental Rev Req'!$F$94*$R24)+IF(R24>0,$F$12,0) -> 146.7035214 | E45: =IF($Q24>$I24,D$22*$I24+D$23*($Q24-$I24),$Q24*D$22)+('Incremental Rev Req'!$F$94*$Q24)+IF(Q24>0,$F$12,0) -> 45.8417838 | F45: =IF($R24>$J24,D$25*$J24+D$26*($R24-$J24),$R24*D$25)+('Incremental Rev Req'!$F$94*$R24)+IF(R24>0,$F$12,0) -> 147.5455723 | G45: =IF($Q24>$I24,E$22*$I24+E$23*($Q24-$I24),$Q24*E$22)+('Incremental Rev Req'!$F$94*$Q24)+IF(Q24>0,$H$12,0) -> 45.84407908 | H45: =IF($R24>$J24,E$25*$J24+E$26*($R24-$J24),$R24*E$25)+('Incremental Rev Req'!$F$94*$R24)+IF(R24>0,$H$12,0) -> 147.5278553 | I45: =IF($Q24>$I24,F$22*$I24+F$23*($Q24-$I24),$Q24*F$22)+('Incremental Rev Req'!$F$94*$Q24)+IF(Q24>0,$J$12,0) -> 54.99817973 | J45: =IF($R24>$J24,F$25*$J24+F$26*($R24-$J24),$R24*F$25)+('Incremental Rev Req'!$F$94*$R24)+IF(R24>0,$J$12,0) -> 179.4707152
B46: 0 | C46: =IF($Q25>$I25,C$22*$I25+C$23*($Q25-$I25),$Q25*C$22)+('Incremental Rev Req'!$F$94*$Q25)+IF(Q25>0,$F$12,0) -> 0 | D46: =IF($R25>$J25,C$25*$J25+C$26*($R25-$J25),$R25*C$25)+('Incremental Rev Req'!$F$94*$R25)+IF(R25>0,$F$12,0) -> 0 | E46: =IF($Q25>$I25,D$22*$I25+D$23*($Q25-$I25),$Q25*D$22)+('Incremental Rev Req'!$F$94*$Q25)+IF(Q25>0,$F$12,0) -> 0 | F46: =IF($R25>$J25,D$25*$J25+D$26*($R25-$J25),$R25*D$25)+('Incremental Rev Req'!$F$94*$R25)+IF(R25>0,$F$12,0) -> 0 | G46: =IF($Q25>$I25,E$22*$I25+E$23*($Q25-$I25),$Q25*E$22)+('Incremental Rev Req'!$F$94*$Q25)+IF(Q25>0,$H$12,0) -> 0 | H46: =IF($R25>$J25,E$25*$J25+E$26*($R25-$J25),$R25*E$25)+('Incremental Rev Req'!$F$94*$R25)+IF(R25>0,$H$12,0) -> 0 | I46: =IF($Q25>$I25,F$22*$I25+F$23*($Q25-$I25),$Q25*F$22)+('Incremental Rev Req'!$F$94*$Q25)+IF(Q25>0,$J$12,0) -> 0 | J46: =IF($R25>$J25,F$25*$J25+F$26*($R25-$J25),$R25*F$25)+('Incremental Rev Req'!$F$94*$R25)+IF(R25>0,$J$12,0) -> 0
B47: Total | C47: =SUMPRODUCT(C43:C46,$U$22:$U$25) -> 48.44203523 | D47: =SUMPRODUCT(D43:D46,$U$22:$U$25) -> 95.38289742 | E47: 48.70019129 | F47: 95.91998837 | G47: 48.70383983 | H47: 95.91374112 | I47: 58.49892158 | J47: 116.2892017
C50: 2023 Recorded Average Basic Bundled CARE Customer Bill
C51: =C30 -> 2024-01-01 | E51: =D30 -> 2024-12-01 | G51: =E30 -> Authorized | I51: =F30 -> w/Pending
C52: Summer | D52: Winter | E52: Summer | F52: Winter | G52: Summer | H52: Winter | I52: Summer | J52: Winter
B53: =Zones -> 1 | C53: =IF($S22>$I22,C$31*$I22+C$32*($S22-$I22),$S22*C$31)+('Incremental Rev Req'!$F$94*$S22)+IF(S22>0,$Q$12,0) -> 28.31002513 | D53: =IF($T22>$J22,C$34*$J22+C$35*($T22-$J22),$T22*C$34)+('Incremental Rev Req'!$F$94*$T22)+IF(T22>0,$Q$12,0) -> 50.39661355 | E53: =IF($S22>$I22,D$31*$I22+D$32*($S22-$I22),$S22*D$31)+('Incremental Rev Req'!$F$94*$S22)+IF(S22>0,$Q$12,0) -> 28.45446179 | F53: =IF($T22>$J22,D$34*$J22+D$35*($T22-$J22),$T22*D$34)+('Incremental Rev Req'!$F$94*$T22)+IF(T22>0,$Q$12,0) -> 50.67226214 | G53: =IF($S22>$I22,E$31*$I22+E$32*($S22-$I22),$S22*E$31)+('Incremental Rev Req'!$F$94*$S22)+IF(S22>0,$S$12,0) -> 28.45647038 | H53: =IF($T22>$J22,E$34*$J22+E$35*($T22-$J22),$T22*E$34)+('Incremental Rev Req'!$F$94*$T22)+IF(T22>0,$S$12,0) -> 50.66481642 | I53: =IF($S22>$I22,F$31*$I22+F$32*($S22-$I22),$S22*F$31)+('Incremental Rev Req'!$F$94*$S22)+IF(S22>0,$U$12,0) -> 33.93674848 | J53: =IF($T22>$J22,F$34*$J22+F$35*($T22-$J22),$T22*F$34)+('Incremental Rev Req'!$F$94*$T22)+IF(T22>0,$U$12,0) -> 61.12106504
B54: 2 | C54: =IF($S23>$I23,C$31*$I23+C$32*($S23-$I23),$S23*C$31)+('Incremental Rev Req'!$F$94*$S23)+IF(S23>0,$Q$12,0) -> 29.43446796 | D54: =IF($T23>$J23,C$34*$J23+C$35*($T23-$J23),$T23*C$34)+('Incremental Rev Req'!$F$94*$T23)+IF(T23>0,$Q$12,0) -> 76.67927441 | E54: =IF($S23>$I23,D$31*$I23+D$32*($S23-$I23),$S23*D$31)+('Incremental Rev Req'!$F$94*$S23)+IF(S23>0,$Q$12,0) -> 29.5855862 | F54: =IF($T23>$J23,D$34*$J23+D$35*($T23-$J23),$T23*D$34)+('Incremental Rev Req'!$F$94*$T23)+IF(T23>0,$Q$12,0) -> 77.11109009 | G54: =IF($S23>$I23,E$31*$I23+E$32*($S23-$I23),$S23*E$31)+('Incremental Rev Req'!$F$94*$S23)+IF(S23>0,$S$12,0) -> 29.58828874 | H54: =IF($T23>$J23,E$34*$J23+E$35*($T23-$J23),$T23*E$34)+('Incremental Rev Req'!$F$94*$T23)+IF(T23>0,$S$12,0) -> 77.11379574 | I54: =IF($S23>$I23,F$31*$I23+F$32*($S23-$I23),$S23*F$31)+('Incremental Rev Req'!$F$94*$S23)+IF(S23>0,$U$12,0) -> 35.32221688 | J54: =IF($T23>$J23,F$34*$J23+F$35*($T23-$J23),$T23*F$34)+('Incremental Rev Req'!$F$94*$T23)+IF(T23>0,$U$12,0) -> 93.49719267
B55: 3 | C55: =IF($S24>$I24,C$31*$I24+C$32*($S24-$I24),$S24*C$31)+('Incremental Rev Req'!$F$94*$S24)+IF(S24>0,$Q$12,0) -> 40.46136714 | D55: =IF($T24>$J24,C$34*$J24+C$35*($T24-$J24),$T24*C$34)+('Incremental Rev Req'!$F$94*$T24)+IF(T24>0,$Q$12,0) -> 126.7586228 | E55: =IF($S24>$I24,D$31*$I24+D$32*($S24-$I24),$S24*D$31)+('Incremental Rev Req'!$F$94*$S24)+IF(S24>0,$Q$12,0) -> 40.67800856 | F55: =IF($T24>$J24,D$34*$J24+D$35*($T24-$J24),$T24*D$34)+('Incremental Rev Req'!$F$94*$T24)+IF(T24>0,$Q$12,0) -> 127.4879872 | G55: =IF($S24>$I24,E$31*$I24+E$32*($S24-$I24),$S24*E$31)+('Incremental Rev Req'!$F$94*$S24)+IF(S24>0,$S$12,0) -> 40.68751641 | H55: =IF($T24>$J24,E$34*$J24+E$35*($T24-$J24),$T24*E$34)+('Incremental Rev Req'!$F$94*$T24)+IF(T24>0,$S$12,0) -> 127.4987759 | I55: =IF($S24>$I24,F$31*$I24+F$32*($S24-$I24),$S24*F$31)+('Incremental Rev Req'!$F$94*$S24)+IF(S24>0,$U$12,0) -> 48.90887511 | J55: =IF($T24>$J24,F$34*$J24+F$35*($T24-$J24),$T24*F$34)+('Incremental Rev Req'!$F$94*$T24)+IF(T24>0,$U$12,0) -> 155.1727773
B56: 0 | C56: =IF($S25>$I25,C$31*$I25+C$32*($S25-$I25),$S25*C$31)+('Incremental Rev Req'!$F$94*$S25)+IF(S25>0,$Q$12,0) -> 0 | D56: =IF($T25>$J25,C$34*$J25+C$35*($T25-$J25),$T25*C$34)+('Incremental Rev Req'!$F$94*$T25)+IF(T25>0,$Q$12,0) -> 0 | E56: =IF($S25>$I25,D$31*$I25+D$32*($S25-$I25),$S25*D$31)+('Incremental Rev Req'!$F$94*$S25)+IF(S25>0,$Q$12,0) -> 0 | F56: =IF($T25>$J25,D$34*$J25+D$35*($T25-$J25),$T25*D$34)+('Incremental Rev Req'!$F$94*$T25)+IF(T25>0,$Q$12,0) -> 0 | G56: =IF($S25>$I25,E$31*$I25+E$32*($S25-$I25),$S25*E$31)+('Incremental Rev Req'!$F$94*$S25)+IF(S25>0,$S$12,0) -> 0 | H56: =IF($T25>$J25,E$34*$J25+E$35*($T25-$J25),$T25*E$34)+('Incremental Rev Req'!$F$94*$T25)+IF(T25>0,$S$12,0) -> 0 | I56: =IF($S25>$I25,F$31*$I25+F$32*($S25-$I25),$S25*F$31)+('Incremental Rev Req'!$F$94*$S25)+IF(S25>0,$U$12,0) -> 0 | J56: =IF($T25>$J25,F$34*$J25+F$35*($T25-$J25),$T25*F$34)+('Incremental Rev Req'!$F$94*$T25)+IF(T25>0,$U$12,0) -> 0
B57: Total | C57: =SUMPRODUCT(C53:C56,$V$22:$V$25) -> 28.38429836 | D57: =SUMPRODUCT(D53:D56,$V$22:$V$25) -> 51.72179819 | E57: 28.52917637 | F57: 52.00532078 | G57: 28.53123079 | H57: 51.99836461 | I57: 34.02826333 | J57: 62.75345689
C60: Essential Usage Basic Bundled Non-CARE Customer Bill
C61: =C51 -> 2024-01-01 | E61: =E51 -> 2024-12-01 | G61: =G51 -> Authorized | I61: =I51 -> w/Pending
C62: Summer | D62: Winter | E62: Summer | F62: Winter | G62: Summer | H62: Winter | I62: Summer | J62: Winter
B63: =Zones -> 1 | C63: =($C$22*$I22)+('Incremental Rev Req'!$F$94*$I22)+IF(I22>0,$F$12,0) -> 26.4639955 | D63: =($C$25*$J22)+('Incremental Rev Req'!$F$94*$J22)+IF(J22>0,$F$12,0) -> 66.64019221 | E63: =($D$22*$I22)+('Incremental Rev Req'!$F$94*$I22)+IF(I22>0,$F$12,0) -> 26.59153801 | F63: =($D$25*$J22)+('Incremental Rev Req'!$F$94*$J22)+IF(J22>0,$F$12,0) -> 67.00646813 | G63: =($E$22*$I22)+('Incremental Rev Req'!$F$94*$I22)+IF(I22>0,$H$12,0) -> 26.5847196 | H63: =($E$25*$J22)+('Incremental Rev Req'!$F$94*$J22)+IF(J22>0,$H$12,0) -> 66.98688707 | I63: =($F$22*$I22)+('Incremental Rev Req'!$F$94*$I22)+IF(I22>0,$J$12,0) -> 31.42206569 | J63: =($F$25*$J22)+('Incremental Rev Req'!$F$94*$J22)+IF(J22>0,$J$12,0) -> 80.87875276
B64: 2 | C64: =($C$22*$I23)+('Incremental Rev Req'!$F$94*$I23)+IF(I23>0,$F$12,0) -> 26.4639955 | D64: =($C$25*$J23)+('Incremental Rev Req'!$F$94*$J23)+IF(J23>0,$F$12,0) -> 74.62039567 | E64: =($D$22*$I23)+('Incremental Rev Req'!$F$94*$I23)+IF(I23>0,$F$12,0) -> 26.59153801 | F64: =($D$25*$J23)+('Incremental Rev Req'!$F$94*$J23)+IF(J23>0,$F$12,0) -> 75.03409124 | G64: =($E$22*$I23)+('Incremental Rev Req'!$F$94*$I23)+IF(I23>0,$H$12,0) -> 26.5847196 | H64: =($E$25*$J23)+('Incremental Rev Req'!$F$94*$J23)+IF(J23>0,$H$12,0) -> 75.01197512 | I64: =($F$22*$I23)+('Incremental Rev Req'!$F$94*$I23)+IF(I23>0,$J$12,0) -> 31.42206569 | J64: =($F$25*$J23)+('Incremental Rev Req'!$F$94*$J23)+IF(J23>0,$J$12,0) -> 90.70234129
B65: 3 | C65: =($C$22*$I24)+('Incremental Rev Req'!$F$94*$I24)+IF(I24>0,$F$12,0) -> 26.4639955 | D65: =($C$25*$J24)+('Incremental Rev Req'!$F$94*$J24)+IF(J24>0,$F$12,0) -> 112.3199775 | E65: =($D$22*$I24)+('Incremental Rev Req'!$F$94*$I24)+IF(I24>0,$F$12,0) -> 26.59153801 | F65: =($D$25*$J24)+('Incremental Rev Req'!$F$94*$J24)+IF(J24>0,$F$12,0) -> 112.95769 | G65: =($E$22*$I24)+('Incremental Rev Req'!$F$94*$I24)+IF(I24>0,$H$12,0) -> 26.5847196 | H65: =($E$25*$J24)+('Incremental Rev Req'!$F$94*$J24)+IF(J24>0,$H$12,0) -> 112.923598 | I65: =($F$22*$I24)+('Incremental Rev Req'!$F$94*$I24)+IF(I24>0,$J$12,0) -> 31.42206569 | J65: =($F$25*$J24)+('Incremental Rev Req'!$F$94*$J24)+IF(J24>0,$J$12,0) -> 137.1103285
B66: 0 | C66: =($C$22*$I25)+('Incremental Rev Req'!$F$94*$I25)+IF(I25>0,$F$12,0) -> 0 | D66: =($C$25*$J25)+('Incremental Rev Req'!$F$94*$J25)+IF(J25>0,$F$12,0) -> 0 | E66: =($D$22*$I25)+('Incremental Rev Req'!$F$94*$I25)+IF(I25>0,$F$12,0) -> 0 | F66: =($D$25*$J25)+('Incremental Rev Req'!$F$94*$J25)+IF(J25>0,$F$12,0) -> 0 | G66: =($E$22*$I25)+('Incremental Rev Req'!$F$94*$I25)+IF(I25>0,$H$12,0) -> 0 | H66: =($E$25*$J25)+('Incremental Rev Req'!$F$94*$J25)+IF(J25>0,$H$12,0) -> 0 | I66: =($F$22*$I25)+('Incremental Rev Req'!$F$94*$I25)+IF(I25>0,$J$12,0) -> 0 | J66: =($F$25*$J25)+('Incremental Rev Req'!$F$94*$J25)+IF(J25>0,$J$12,0) -> 0
B67: Total | C67: =SUMPRODUCT(C63:C66,$U$22:$U$25) -> 26.4639955 | D67: =SUMPRODUCT(D63:D66,$U$22:$U$25) -> 67.08706373 | E67: =SUMPRODUCT(E63:E66,$U$22:$U$25) -> 26.59153801 | F67: =SUMPRODUCT(F63:F66,$U$22:$U$25) -> 67.45599503 | G67: 26.5847196 | H67: 67.43627201 | I67: 31.42206569 | J67: 81.42884925
C70: Essential Usage Basic Bundled CARE Customer Bill
C71: =C61 -> 2024-01-01 | E71: =E61 -> 2024-12-01 | G71: =G61 -> Authorized | I71: =I61 -> w/Pending
C72: Summer | D72: Winter | E72: Summer | F72: Winter | G72: Summer | H72: Winter | I72: Summer | J72: Winter
B73: =Zones -> 1 | C73: =($C$31*$I22)+('Incremental Rev Req'!$F$94*$I22)+IF(I22>0,$Q$12,0) -> 20.71025122 | D73: =($C$34*$J22)+('Incremental Rev Req'!$F$94*$J22)+IF(J22>0,$Q$12,0) -> 51.98841375 | E73: =($D$31*$I22)+('Incremental Rev Req'!$F$94*$I22)+IF(I22>0,$Q$12,0) -> 20.80952909 | F73: =($D$34*$J22)+('Incremental Rev Req'!$F$94*$J22)+IF(J22>0,$Q$12,0) -> 52.27351945 | G73: =($E$31*$I22)+('Incremental Rev Req'!$F$94*$I22)+IF(I22>0,$S$12,0) -> 20.80684743 | H73: =($E$34*$J22)+('Incremental Rev Req'!$F$94*$J22)+IF(J22>0,$S$12,0) -> 52.26581827 | I73: =($F$31*$I22)+('Incremental Rev Req'!$F$94*$I22)+IF(I22>0,$U$12,0) -> 24.5727805 | J73: =($F$34*$J22)+('Incremental Rev Req'!$F$94*$J22)+IF(J22>0,$U$12,0) -> 63.08080555
B74: 2 | C74: =($C$31*$I23)+('Incremental Rev Req'!$F$94*$I23)+IF(I23>0,$Q$12,0) -> 20.71025122 | D74: =($C$34*$J23)+('Incremental Rev Req'!$F$94*$J23)+IF(J23>0,$Q$12,0) -> 58.20119946 | E74: =($D$31*$I23)+('Incremental Rev Req'!$F$94*$I23)+IF(I23>0,$Q$12,0) -> 20.80952909 | F74: =($D$34*$J23)+('Incremental Rev Req'!$F$94*$J23)+IF(J23>0,$Q$12,0) -> 58.52321617 | G74: =($E$31*$I23)+('Incremental Rev Req'!$F$94*$I23)+IF(I23>0,$S$12,0) -> 20.80684743 | H74: =($E$34*$J23)+('Incremental Rev Req'!$F$94*$J23)+IF(J23>0,$S$12,0) -> 58.51451796 | I74: =($F$31*$I23)+('Incremental Rev Req'!$F$94*$I23)+IF(I23>0,$U$12,0) -> 24.5727805 | J74: =($F$34*$J23)+('Incremental Rev Req'!$F$94*$J23)+IF(J23>0,$U$12,0) -> 70.72965984
B75: 3 | C75: =($C$31*$I24)+('Incremental Rev Req'!$F$94*$I24)+IF(I24>0,$Q$12,0) -> 20.71025122 | D75: =($C$34*$J24)+('Incremental Rev Req'!$F$94*$J24)+IF(J24>0,$Q$12,0) -> 87.55125609 | E75: =($D$31*$I24)+('Incremental Rev Req'!$F$94*$I24)+IF(I24>0,$Q$12,0) -> 20.80952909 | F75: =($D$34*$J24)+('Incremental Rev Req'!$F$94*$J24)+IF(J24>0,$Q$12,0) -> 88.04764547 | G75: =($E$31*$I24)+('Incremental Rev Req'!$F$94*$I24)+IF(I24>0,$S$12,0) -> 20.80684743 | H75: =($E$34*$J24)+('Incremental Rev Req'!$F$94*$J24)+IF(J24>0,$S$12,0) -> 88.03423717 | I75: =($F$31*$I24)+('Incremental Rev Req'!$F$94*$I24)+IF(I24>0,$U$12,0) -> 24.5727805 | J75: =($F$34*$J24)+('Incremental Rev Req'!$F$94*$J24)+IF(J24>0,$U$12,0) -> 106.8639025
B76: 0 | C76: =($C$31*$I25)+('Incremental Rev Req'!$F$94*$I25)+IF(I25>0,$Q$12,0) -> 0 | D76: =($C$34*$J25)+('Incremental Rev Req'!$F$94*$J25)+IF(J25>0,$Q$12,0) -> 0 | E76: =($D$31*$I25)+('Incremental Rev Req'!$F$94*$I25)+IF(I25>0,$Q$12,0) -> 0 | F76: =($D$34*$J25)+('Incremental Rev Req'!$F$94*$J25)+IF(J25>0,$Q$12,0) -> 0 | G76: =($E$31*$I25)+('Incremental Rev Req'!$F$94*$I25)+IF(I25>0,$S$12,0) -> 0 | H76: =($E$34*$J25)+('Incremental Rev Req'!$F$94*$J25)+IF(J25>0,$S$12,0) -> 0 | I76: =($F$31*$I25)+('Incremental Rev Req'!$F$94*$I25)+IF(I25>0,$U$12,0) -> 0 | J76: =($F$34*$J25)+('Incremental Rev Req'!$F$94*$J25)+IF(J25>0,$U$12,0) -> 0
B77: Total | C77: =SUMPRODUCT(C73:C76,$V$22:$V$25) -> 20.71025122 | D77: =SUMPRODUCT(D73:D76,$V$22:$V$25) -> 52.33631428 | E77: 20.80952909 | F77: 52.6234869 | G77: 20.80684743 | H77: 52.61572989 | I77: 24.5727805 | J77: 63.50912234
C80: 5-Year Average Monthly Basic Bundled Non-CARE Customer
C81: =C71 -> 2024-01-01 | E81: =E71 -> 2024-12-01 | G81: =G71 -> Authorized | I81: =I71 -> w/Pending
C82: Summer | D82: Winter | E82: Summer | F82: Winter | G82: Summer | H82: Winter | I82: Summer | J82: Winter
B83: =Zones -> 1 | C83: =IF($Q31>$I22,C$22*$I22+C$23*($Q31-$I22),$Q31*C$22)+('Incremental Rev Req'!$F$94*$Q31)+IF(Q31>0,$F$12,0) -> 47.76862794 | D83: =IF($R31>$J22,C$25*$J22+C$26*($R31-$J22),$R31*C$25)+('Incremental Rev Req'!$F$94*$R31)+IF(R31>0,$F$12,0) -> 94.39152849 | E83: =IF($Q31>$I22,D$22*$I22+D$23*($Q31-$I22),$Q31*D$22)+('Incremental Rev Req'!$F$94*$Q31)+IF(Q31>0,$F$12,0) -> 48.022782 | F83: =IF($R31>$J22,D$25*$J22+D$26*($R31-$J22),$R31*D$25)+('Incremental Rev Req'!$F$94*$R31)+IF(R31>0,$F$12,0) -> 94.92272815 | G83: =IF($Q31>$I22,E$22*$I22+E$23*($Q31-$I22),$Q31*E$22)+('Incremental Rev Req'!$F$94*$Q31)+IF(Q31>0,$H$12,0) -> 48.02610984 | H83: =IF($R31>$J22,E$25*$J22+E$26*($R31-$J22),$R31*E$25)+('Incremental Rev Req'!$F$94*$R31)+IF(R31>0,$H$12,0) -> 94.91636355 | I83: =IF($Q31>$I22,F$22*$I22+F$23*($Q31-$I22),$Q31*F$22)+('Incremental Rev Req'!$F$94*$Q31)+IF(Q31>0,$J$12,0) -> 57.66928653 | J83: =IF($R31>$J22,F$25*$J22+F$26*($R31-$J22),$R31*F$25)+('Incremental Rev Req'!$F$94*$R31)+IF(R31>0,$J$12,0) -> 115.0682866
B84: 2 | C84: =IF($Q32>$I23,C$22*$I23+C$23*($Q32-$I23),$Q32*C$22)+('Incremental Rev Req'!$F$94*$Q32)+IF(Q32>0,$F$12,0) -> 40.20957195 | D84: =IF($R32>$J23,C$25*$J23+C$26*($R32-$J23),$R32*C$25)+('Incremental Rev Req'!$F$94*$R32)+IF(R32>0,$F$12,0) -> 104.7952135 | E84: =IF($Q32>$I23,D$22*$I23+D$23*($Q32-$I23),$Q32*D$22)+('Incremental Rev Req'!$F$94*$Q32)+IF(Q32>0,$F$12,0) -> 40.4188032 | F84: =IF($R32>$J23,D$25*$J23+D$26*($R32-$J23),$R32*D$25)+('Incremental Rev Req'!$F$94*$R32)+IF(R32>0,$F$12,0) -> 105.3882354 | G84: =IF($Q32>$I23,E$22*$I23+E$23*($Q32-$I23),$Q32*E$22)+('Incremental Rev Req'!$F$94*$Q32)+IF(Q32>0,$H$12,0) -> 40.41853107 | H84: =IF($R32>$J23,E$25*$J23+E$26*($R32-$J23),$R32*E$25)+('Incremental Rev Req'!$F$94*$R32)+IF(R32>0,$H$12,0) -> 105.3804899 | I84: =IF($Q32>$I23,F$22*$I23+F$23*($Q32-$I23),$Q32*F$22)+('Incremental Rev Req'!$F$94*$Q32)+IF(Q32>0,$J$12,0) -> 48.35656017 | J84: =IF($R32>$J23,F$25*$J23+F$26*($R32-$J23),$R32*F$25)+('Incremental Rev Req'!$F$94*$R32)+IF(R32>0,$J$12,0) -> 127.8775946
B85: 3 | C85: =IF($Q33>$I24,C$22*$I24+C$23*($Q33-$I24),$Q33*C$22)+('Incremental Rev Req'!$F$94*$Q33)+IF(Q33>0,$F$12,0) -> 43.0041351 | D85: =IF($R33>$J24,C$25*$J24+C$26*($R33-$J24),$R33*C$25)+('Incremental Rev Req'!$F$94*$R33)+IF(R33>0,$F$12,0) -> 141.779171 | E85: =IF($Q33>$I24,D$22*$I24+D$23*($Q33-$I24),$Q33*D$22)+('Incremental Rev Req'!$F$94*$Q33)+IF(Q33>0,$F$12,0) -> 43.2299742 | F85: =IF($R33>$J24,D$25*$J24+D$26*($R33-$J24),$R33*D$25)+('Incremental Rev Req'!$F$94*$R33)+IF(R33>0,$F$12,0) -> 142.591957 | G85: =IF($Q33>$I24,E$22*$I24+E$23*($Q33-$I24),$Q33*E$22)+('Incremental Rev Req'!$F$94*$Q33)+IF(Q33>0,$H$12,0) -> 43.23103297 | H85: =IF($R33>$J24,E$25*$J24+E$26*($R33-$J24),$R33*E$25)+('Incremental Rev Req'!$F$94*$R33)+IF(R33>0,$H$12,0) -> 142.5718948 | I85: =IF($Q33>$I24,F$22*$I24+F$23*($Q33-$I24),$Q33*F$22)+('Incremental Rev Req'!$F$94*$Q33)+IF(Q33>0,$J$12,0) -> 51.79945066 | J85: =IF($R33>$J24,F$25*$J24+F$26*($R33-$J24),$R33*F$25)+('Incremental Rev Req'!$F$94*$R33)+IF(R33>0,$J$12,0) -> 173.4039355
B86: 0 | C86: =IF($Q34>$I25,C$22*$I25+C$23*($Q34-$I25),$Q34*C$22)+('Incremental Rev Req'!$F$94*$Q34)+IF(Q34>0,$F$12,0) -> 0 | D86: =IF($R34>$J25,C$25*$J25+C$26*($R34-$J25),$R34*C$25)+('Incremental Rev Req'!$F$94*$R34)+IF(R34>0,$F$12,0) -> 0 | E86: =IF($Q34>$I25,D$22*$I25+D$23*($Q34-$I25),$Q34*D$22)+('Incremental Rev Req'!$F$94*$Q34)+IF(Q34>0,$F$12,0) -> 0 | F86: =IF($R34>$J25,D$25*$J25+D$26*($R34-$J25),$R34*D$25)+('Incremental Rev Req'!$F$94*$R34)+IF(R34>0,$F$12,0) -> 0 | G86: =IF($Q34>$I25,E$22*$I25+E$23*($Q34-$I25),$Q34*E$22)+('Incremental Rev Req'!$F$94*$Q34)+IF(Q34>0,$H$12,0) -> 0 | H86: =IF($R34>$J25,E$25*$J25+E$26*($R34-$J25),$R34*E$25)+('Incremental Rev Req'!$F$94*$R34)+IF(R34>0,$H$12,0) -> 0 | I86: =IF($Q34>$I25,F$22*$I25+F$23*($Q34-$I25),$Q34*F$22)+('Incremental Rev Req'!$F$94*$Q34)+IF(Q34>0,$J$12,0) -> 0 | J86: =IF($R34>$J25,F$25*$J25+F$26*($R34-$J25),$R34*F$25)+('Incremental Rev Req'!$F$94*$R34)+IF(R34>0,$J$12,0) -> 0
B87: Total | C87: =SUMPRODUCT(C83:C86,$U$22:$U$25) -> 47.42152333 | D87: =SUMPRODUCT(D83:D86,$U$22:$U$25) -> 94.95004075 | E87: =SUMPRODUCT(E83:E86,$U$22:$U$25) -> 47.67361458 | F87: 95.48455927 | G87: 47.67677711 | H87: 95.47810588 | I87: 57.24165505 | J87: 115.755924
C90: 5-Year Average Monthly Basic Bundled CARE Customer
C91: =C81 -> 2024-01-01 | E91: =E81 -> 2024-12-01 | G91: =G81 -> Authorized | I91: =I81 -> w/Pending
C92: Summer | D92: Winter | E92: Summer | F92: Winter | G92: Summer | H92: Winter | I92: Summer | J92: Winter
B93: =Zones -> 1 | C93: =IF($S31>$I22,C$31*$I22+C$32*($S31-$I22),$S31*C$31)+('Incremental Rev Req'!$F$94*$S31)+IF(S31>0,$Q$12,0) -> 28.52455741 | D93: =IF($T31>$J22,C$34*$J22+C$35*($T31-$J22),$T31*C$34)+('Incremental Rev Req'!$F$94*$T31)+IF(T31>0,$Q$12,0) -> 49.94105133 | E93: =IF($S31>$I22,D$31*$I22+D$32*($S31-$I22),$S31*D$31)+('Incremental Rev Req'!$F$94*$S31)+IF(S31>0,$Q$12,0) -> 28.67026885 | F93: =IF($T31>$J22,D$34*$J22+D$35*($T31-$J22),$T31*D$34)+('Incremental Rev Req'!$F$94*$T31)+IF(T31>0,$Q$12,0) -> 50.21399337 | G93: =IF($S31>$I22,E$31*$I22+E$32*($S31-$I22),$S31*E$31)+('Incremental Rev Req'!$F$94*$S31)+IF(S31>0,$S$12,0) -> 28.67240983 | H93: =IF($T31>$J22,E$34*$J22+E$35*($T31-$J22),$T31*E$34)+('Incremental Rev Req'!$F$94*$T31)+IF(T31>0,$S$12,0) -> 50.20662075 | I93: =IF($S31>$I22,F$31*$I22+F$32*($S31-$I22),$S31*F$31)+('Incremental Rev Req'!$F$94*$S31)+IF(S31>0,$U$12,0) -> 34.20108179 | J93: =IF($T31>$J22,F$34*$J22+F$35*($T31-$J22),$T31*F$34)+('Incremental Rev Req'!$F$94*$T31)+IF(T31>0,$U$12,0) -> 60.56020085
B94: 2 | C94: =IF($S32>$I23,C$31*$I23+C$32*($S32-$I23),$S32*C$31)+('Incremental Rev Req'!$F$94*$S32)+IF(S32>0,$Q$12,0) -> 30.32119999 | D94: =IF($T32>$J23,C$34*$J23+C$35*($T32-$J23),$T32*C$34)+('Incremental Rev Req'!$F$94*$T32)+IF(T32>0,$Q$12,0) -> 76.06869101 | E94: =IF($S32>$I23,D$31*$I23+D$32*($S32-$I23),$S32*D$31)+('Incremental Rev Req'!$F$94*$S32)+IF(S32>0,$Q$12,0) -> 30.4775873 | F94: =IF($T32>$J23,D$34*$J23+D$35*($T32-$J23),$T32*D$34)+('Incremental Rev Req'!$F$94*$T32)+IF(T32>0,$Q$12,0) -> 76.49687853 | G94: =IF($S32>$I23,E$31*$I23+E$32*($S32-$I23),$S32*E$31)+('Incremental Rev Req'!$F$94*$S32)+IF(S32>0,$S$12,0) -> 30.48083709 | H94: =IF($T32>$J23,E$34*$J23+E$35*($T32-$J23),$T32*E$34)+('Incremental Rev Req'!$F$94*$T32)+IF(T32>0,$S$12,0) -> 76.49920735 | I94: =IF($S32>$I23,F$31*$I23+F$32*($S32-$I23),$S32*F$31)+('Incremental Rev Req'!$F$94*$S32)+IF(S32>0,$U$12,0) -> 36.41479285 | J94: =IF($T32>$J23,F$34*$J23+F$35*($T32-$J23),$T32*F$34)+('Incremental Rev Req'!$F$94*$T32)+IF(T32>0,$U$12,0) -> 92.74486984
B95: 3 | C95: =IF($S33>$I24,C$31*$I24+C$32*($S33-$I24),$S33*C$31)+('Incremental Rev Req'!$F$94*$S33)+IF(S33>0,$Q$12,0) -> 41.85876134 | D95: =IF($T33>$J24,C$34*$J24+C$35*($T33-$J24),$T33*C$34)+('Incremental Rev Req'!$F$94*$T33)+IF(T33>0,$Q$12,0) -> 128.5496537 | E95: =IF($S33>$I24,D$31*$I24+D$32*($S33-$I24),$S33*D$31)+('Incremental Rev Req'!$F$94*$S33)+IF(S33>0,$Q$12,0) -> 42.08370625 | F95: =IF($T33>$J24,D$34*$J24+D$35*($T33-$J24),$T33*D$34)+('Incremental Rev Req'!$F$94*$T33)+IF(T33>0,$Q$12,0) -> 129.2896605 | G95: =IF($S33>$I24,E$31*$I24+E$32*($S33-$I24),$S33*E$31)+('Incremental Rev Req'!$F$94*$S33)+IF(S33>0,$S$12,0) -> 42.09407651 | H95: =IF($T33>$J24,E$34*$J24+E$35*($T33-$J24),$T33*E$34)+('Incremental Rev Req'!$F$94*$T33)+IF(T33>0,$S$12,0) -> 129.3015546 | I95: =IF($S33>$I24,F$31*$I24+F$32*($S33-$I24),$S33*F$31)+('Incremental Rev Req'!$F$94*$S33)+IF(S33>0,$U$12,0) -> 50.6306572 | J95: =IF($T33>$J24,F$34*$J24+F$35*($T33-$J24),$T33*F$34)+('Incremental Rev Req'!$F$94*$T33)+IF(T33>0,$U$12,0) -> 157.379574
B96: 0 | C96: =IF($S34>$I25,C$31*$I25+C$32*($S34-$I25),$S34*C$31)+('Incremental Rev Req'!$F$94*$S34)+IF(S34>0,$Q$12,0) -> 0 | D96: =IF($T34>$J25,C$34*$J25+C$35*($T34-$J25),$T34*C$34)+('Incremental Rev Req'!$F$94*$T34)+IF(T34>0,$Q$12,0) -> 0 | E96: =IF($S34>$I25,D$31*$I25+D$32*($S34-$I25),$S34*D$31)+('Incremental Rev Req'!$F$94*$S34)+IF(S34>0,$Q$12,0) -> 0 | F96: =IF($T34>$J25,D$34*$J25+D$35*($T34-$J25),$T34*D$34)+('Incremental Rev Req'!$F$94*$T34)+IF(T34>0,$Q$12,0) -> 0 | G96: =IF($S34>$I25,E$31*$I25+E$32*($S34-$I25),$S34*E$31)+('Incremental Rev Req'!$F$94*$S34)+IF(S34>0,$S$12,0) -> 0 | H96: =IF($T34>$J25,E$34*$J25+E$35*($T34-$J25),$T34*E$34)+('Incremental Rev Req'!$F$94*$T34)+IF(T34>0,$S$12,0) -> 0 | I96: =IF($S34>$I25,F$31*$I25+F$32*($S34-$I25),$S34*F$31)+('Incremental Rev Req'!$F$94*$S34)+IF(S34>0,$U$12,0) -> 0 | J96: =IF($T34>$J25,F$34*$J25+F$35*($T34-$J25),$T34*F$34)+('Incremental Rev Req'!$F$94*$T34)+IF(T34>0,$U$12,0) -> 0
B97: Total | C97: =SUMPRODUCT(C93:C96,$V$22:$V$25) -> 28.63119948 | D97: =SUMPRODUCT(D93:D96,$V$22:$V$25) -> 51.2637559 | E97: 28.7775446 | F97: 51.54455717 | G97: 28.7797514 | H97: 51.53765605 | I97: 34.33247951 | J97: 62.18951586

Sheet Hypothetical Summary
B1: Inputs: | F1: Assumptions:
F2: Current Effective Rates | H2: =SetUp!D4 -> 2024-12-01
C3: Baseline Region - (Residential bill) | D3: All | F3: Sales Forecast | H3: =Summary!I3 -> 2024
F4: Residential bill calculated using | H4: =Summary!I4 -> Schedule GR, Basic, Bundled, Single Family
D5: Revenue Change ($000) | F5: Non-CARE bill impact calculated with average summer usage of | J5: =IF($D$3="ALL",SUMPRODUCT('Hypothetical Res Bill Impact'!Q22:Q25,'Hypothetical Res Bill Impact'!U22:U25),VLOOKUP($D$3,'Hypothetical Res Bill Impact'!$P$22:$T$25,2,FALSE)) -> 21.95905621 | K5: therms per month
C6: Procurement | F6: Non-CARE bill impact calculated with average winter usage of | J6: =IF($D$3="ALL",SUMPRODUCT('Hypothetical Res Bill Impact'!R22:R25,'Hypothetical Res Bill Impact'!U22:U25),VLOOKUP(D$3,'Hypothetical Res Bill Impact'!$P$22:$T$25,3,FALSE)) -> 65.21849082 | K6: therms per month
C7: Customer Costs | F7: CARE bill impact calculated with average summer usage of | J7: =IF($D$3="ALL",SUMPRODUCT('Hypothetical Res Bill Impact'!S22:S25,'Hypothetical Res Bill Impact'!V22:V25),VLOOKUP($D$3,'Hypothetical Res Bill Impact'!$P$22:$T$25,4,FALSE)) -> 21.39922228 | K7: therms per month
C8: Medium Pressure Distribution | F8: CARE bill impact calculated with average winter usage of | J8: =IF($D$3="ALL",SUMPRODUCT('Hypothetical Res Bill Impact'!T22:T25,'Hypothetical Res Bill Impact'!V22:V25),VLOOKUP($D$3,'Hypothetical Res Bill Impact'!$P$22:$T$25,5,FALSE)) -> 66.48980223 | K8: therms per month
C9: High Pressure Distribution | F9: Average monthly usage is for all customers (Non-CARE and CARE) based on seasonal usage in | K9: =Summary!L9 -> 2024
C10: Local Transmission | F10: Summer season | H10: =Summary!I10 -> 6 | I10: months
C11: Storage | F11: Winter Season | H11: =Summary!I11 -> 6 | I11: months
C12: GHG Revenue
C13: Other Balancing Acounts
C14: NGV Costs
C15: Backbone Transmisson
C16: Public Purpose Programs
C20: Total | D20: =SUM(D6:D18) -> 0
B25: Outputs:
D26: (A) | E26: (B) | F26: (C) | G26: (C)/(A) | H26: (C)/(B) | L26: (A) | M26: (B) | N26: (C) | O26: (C)/(A) | P26: (C)/(B)
B27: Bundled Average Rates - ¢/therm | J27: Total System (Bundled and Unbundled) Average Rates - ¢/therm
B28: Customer Group | D28: =Summary!D21 -> 2024-01-01 | E28: =Summary!E21 -> 2024-12-01 | F28: Proposed | G28: =Summary!H21 -> % Change over 1/1/2024 | H28: =Summary!I21 -> % Change over 12/1/2024 | J28: Customer Group | L28: =D28 -> 2024-01-01 | M28: =E28 -> 2024-12-01 | N28: Proposed | O28: =G28 -> % Change over 1/1/2024 | P28: =H28 -> % Change over 12/1/2024
B29: Residential | D29: 183.6004186 | E29: ='Hypothetical SAR and RAR'!G28 -> 184.6366223 | F29: ='Hypothetical SAR and RAR'!H28 -> 184.6366223 | G29: =$F29/D29-1 -> 0.00564379851 | H29: =$F29/E29-1 -> 0 | J29: Residential | L29: 182.9996308 | M29: ='Hypothetical SAR and RAR'!R28 -> 184.0358346 | N29: ='Hypothetical SAR and RAR'!S28 -> 184.0358346 | O29: =$N29/L29-1 -> 0.005662327101 | P29: =$N29/M29-1 -> 0
B30: System | D30: 113.1255174 | E30: ='Hypothetical SAR and RAR'!G29 -> 115.5826811 | F30: ='Hypothetical SAR and RAR'!H29 -> 115.5826811 | G30: =$F30/D30-1 -> 0.02172068476 | H30: =$F30/E30-1 -> 0 | J30: System | L30: 77.66142823 | M30: ='Hypothetical SAR and RAR'!R29 -> 80.11859194 | N30: ='Hypothetical SAR and RAR'!S29 -> 80.11859194 | O30: =$N30/L30-1 -> 0.03163943488 | P30: =$N30/M30-1 -> 0
B33: Basic Bundled Residential Monthly Average Bills
D34: =$D$28 -> 2024-01-01 | E34: =$E$28 -> 2024-12-01 | F34: =$F$28 -> Proposed | G34: =$G$28 -> % Change over 1/1/2024 | H34: =$H$28 -> % Change over 12/1/2024
B35: Non-CARE | D35: =((D41*$H$10)+(D47*$H$11))/12 -> 80.68135664 | E35: =((E41*$H$10)+(E47*$H$11))/12 -> 81.1294254 | F35: 81.1294254 | G35: =$F35/D35-1 -> 0.005553560059 | H35: 0
B36: CARE | D36: =((D42*$H$10)+(D48*$H$11))/12 -> 63.31799523 | E36: 63.67753448 | F36: 63.67753448 | G36: 0.005678310765 | H36: 0
B37: Total | D37: =((D43*$H$10)+(D49*$H$11))/12 -> 76.39004811 | E37: 76.81623704 | F37: 76.81623704 | G37: 0.00557911585 | H37: 0 | J37: ='Hypothetical Res Bill Impact'!P18 -> Basic Bundled
J38: ='Hypothetical Res Bill Impact'!P19 -> 2023 Recorded Data - Average Monthly Usage - ALL-BASIC th
B39: Basic Bundled Residential Monthly Average Bills - Summer | J39: Climate Zone | K39: Summer | L39: Winter | M39: Summer | N39: Winter
D40: =D34 -> 2024-01-01 | E40: =E28 -> 2024-12-01 | F40: =F28 -> Proposed | G40: =G28 -> % Change over 1/1/2024 | H40: =$H$28 -> % Change over 12/1/2024 | K40: Non-CARE | M40: CARE
B41: Non-CARE | D41: =IF($D$3="All",'Hypothetical Res Bill Impact'!$C$47,(VLOOKUP($D$3,'Hypothetical Res Bill Impact'!$B$43:$J$46,2,FALSE))) -> 44.35282147 | E41: =IF($D$3="All",'Hypothetical Res Bill Impact'!$E$47,(VLOOKUP($D$3,'Hypothetical Res Bill Impact'!$B$43:$J$46,4,FALSE))) -> 44.59016101 | F41: =IF($D$3="All",'Hypothetical Res Bill Impact'!$G$47,(VLOOKUP($D$3,'Hypothetical Res Bill Impact'!$B$43:$J$46,6,FALSE))) -> 44.59016101 | G41: =$F41/D41-1 -> 0.005351171225 | H41: 0 | J41: =Zones -> 1 | K41: ='Hypothetical Res Bill Impact'!Q22 -> 23.70273381 | L41: ='Hypothetical Res Bill Impact'!R22 -> 50.81583062 | M41: ='Hypothetical Res Bill Impact'!S22 -> 17.65198412 | N41: ='Hypothetical Res Bill Impact'!T22 -> 36.09496759
B42: CARE | D42: =IF($D$3="All",'Hypothetical Res Bill Impact'!$C$57,(VLOOKUP($D$3,'Hypothetical Res Bill Impact'!$B$53:$J$56,2,FALSE))) -> 33.82303657 | E42: =IF($D$3="All",'Hypothetical Res Bill Impact'!$E$57,(VLOOKUP($D$3,'Hypothetical Res Bill Impact'!$B$53:$J$56,4,FALSE))) -> 34.00699636 | F42: =IF($D$3="All",'Hypothetical Res Bill Impact'!$G$57,(VLOOKUP($D$3,'Hypothetical Res Bill Impact'!$B$53:$J$56,6,FALSE))) -> 34.00699636 | G42: 0.005438890354 | H42: 0 | J42: 2 | K42: ='Hypothetical Res Bill Impact'!Q23 -> 19.99227159 | L42: ='Hypothetical Res Bill Impact'!R23 -> 57.29689283 | M42: ='Hypothetical Res Bill Impact'!S23 -> 18.34027962 | N42: ='Hypothetical Res Bill Impact'!T23 -> 53.47749147
B43: Total | D43: =D41*(1-'Hypothetical SAR and RAR'!$AA$16)+D42*'Hypothetical SAR and RAR'!$AA$16 -> 41.75041317 | E43: =E41*(1-'Hypothetical SAR and RAR'!$AA$16)+E42*'Hypothetical SAR and RAR'!$AA$16 -> 41.97456005 | F43: =F41*(1-'Hypothetical SAR and RAR'!$AA$16)+F42*'Hypothetical SAR and RAR'!$AA$16 -> 41.97456005 | G43: 0.005368734361 | H43: 0 | J43: 3 | K43: ='Hypothetical Res Bill Impact'!Q24 -> 22.17202669 | L43: ='Hypothetical Res Bill Impact'!R24 -> 81.47984045 | M43: ='Hypothetical Res Bill Impact'!S24 -> 25.0900804 | N43: ='Hypothetical Res Bill Impact'!T24 -> 88.99966758
J44: 0 | K44: ='Hypothetical Res Bill Impact'!Q25 -> 0 | L44: ='Hypothetical Res Bill Impact'!R25 -> 0 | M44: ='Hypothetical Res Bill Impact'!S25 -> 0 | N44: ='Hypothetical Res Bill Impact'!T25 -> 0
B45: Basic Bundled Residential Monthly Average Bills - Winter
D46: =$D$28 -> 2024-01-01 | E46: =$E$28 -> 2024-12-01 | F46: =F40 -> Proposed | G46: =G28 -> % Change over 1/1/2024 | H46: =$H$28 -> % Change over 12/1/2024
B47: Non-CARE | D47: =IF($D$3="All",'Hypothetical Res Bill Impact'!$D$47,(VLOOKUP($D$3,'Hypothetical Res Bill Impact'!$B$43:$J$46,3,FALSE))) -> 117.0098918 | E47: =IF($D$3="All",'Hypothetical Res Bill Impact'!$F$47,(VLOOKUP($D$3,'Hypothetical Res Bill Impact'!$B$43:$J$46,5,FALSE))) -> 117.6686898 | F47: =IF($D$3="All",'Hypothetical Res Bill Impact'!$H$47,(VLOOKUP($D$3,'Hypothetical Res Bill Impact'!$B$43:$J$46,7,FALSE))) -> 117.6686898 | G47: =$F47/D47-1 -> 0.005630275931 | H47: 0
B48: CARE | D48: =IF($D$3="All",'Hypothetical Res Bill Impact'!$D$57,(VLOOKUP($D$3,'Hypothetical Res Bill Impact'!$B$53:$J$56,3,FALSE))) -> 92.81295389 | E48: =IF($D$3="All",'Hypothetical Res Bill Impact'!$F$57,(VLOOKUP($D$3,'Hypothetical Res Bill Impact'!$B$53:$J$56,5,FALSE))) -> 93.34807261 | F48: =IF($D$3="All",'Hypothetical Res Bill Impact'!$H$57,(VLOOKUP($D$3,'Hypothetical Res Bill Impact'!$B$53:$J$56,7,FALSE))) -> 93.34807261 | G48: 0.005765560712 | H48: 0
B49: Total | D49: =D47*(1-'Hypothetical SAR and RAR'!$AA$16)+D48*'Hypothetical SAR and RAR'!$AA$16 -> 111.029683 | E49: =E47*(1-'Hypothetical SAR and RAR'!$AA$16)+E48*'Hypothetical SAR and RAR'!$AA$16 -> 111.657914 | F49: =F47*(1-'Hypothetical SAR and RAR'!$AA$16)+F48*'Hypothetical SAR and RAR'!$AA$16 -> 111.657914 | G49: 0.005658225452 | H49: 0
B52: Basic Bundled Essential Use Residential Monthly Average Bills
D53: =D46 -> 2024-01-01 | E53: =E46 -> 2024-12-01 | F53: =F46 -> Proposed | G53: =$G$28 -> % Change over 1/1/2024 | H53: % Change over Authorized
B54: Essential Use - Non-CARE | D54: =((D60*$H$10)+(D66*$H$11))/12 -> 55.9857419 | E54: =((E60*$H$10)+(E66*$H$11))/12 -> 56.27437951 | F54: 56.27437951 | G54: =$F54/D54-1 -> 0.005155555683 | H54: 0
B55: Essential Use - CARE | D55: =((D61*$H$10)+(D67*$H$11))/12 -> 44.91029465 | E55: 45.14828143 | F55: 45.14828143 | G55: 0.00529915872 | H55: 0
B56: Total | D56: =((D62*$H$10)+(D68*$H$11))/12 -> 53.24847461 | E56: 53.524594 | F56: 53.524594 | G56: 0.005185489238 | H56: 0
J57: ='Res Bill Impact'!H19 -> Essential Usage
B58: Basic Bundled Essential Use Residential Monthly Average Bills - Summer | J58: Monthly Tier 1 Baseline Allowance -BASIC (th)
D59: =D53 -> 2024-01-01 | E59: =E53 -> 2024-12-01 | F59: =F53 -> Proposed | G59: =$G$28 -> % Change over 1/1/2024 | H59: % Change over Authorized | J59: Climate Zone | K59: Summer | L59: Winter
B60: Essential Use - Non-CARE | D60: =IF($D$3="All",'Hypothetical Res Bill Impact'!C67,(VLOOKUP($D$3,'Hypothetical Res Bill Impact'!$B$63:$J$66,2,FALSE))) -> 26.03461898 | E60: =IF($D$3="All",'Hypothetical Res Bill Impact'!E67,(VLOOKUP($D$3,'Hypothetical Res Bill Impact'!$B$63:$J$66,4,FALSE))) -> 26.15369898 | F60: =IF($D$3="All",'Hypothetical Res Bill Impact'!G67,(VLOOKUP($D$3,'Hypothetical Res Bill Impact'!$B$63:$J$66,6,FALSE))) -> 26.15369898 | G60: =$F60/D60-1 -> 0.004573909843 | H60: 0 | J60: =Zones -> 1 | K60: ='Hypothetical Res Bill Impact'!I22 -> 13 | L60: ='Hypothetical Res Bill Impact'!J22 -> 37.33333333
B61: Essential Use - CARE | D61: =IF($D$3="All",'Hypothetical Res Bill Impact'!C77,(VLOOKUP($D$3,'Hypothetical Res Bill Impact'!$B$73:$J$76,2,FALSE))) -> 20.37602861 | E61: =IF($D$3="All",'Hypothetical Res Bill Impact'!E77,(VLOOKUP($D$3,'Hypothetical Res Bill Impact'!$B$73:$J$76,4,FALSE))) -> 20.47129261 | F61: =IF($D$3="All",'Hypothetical Res Bill Impact'!G77,(VLOOKUP($D$3,'Hypothetical Res Bill Impact'!$B$73:$J$76,6,FALSE))) -> 20.47129261 | G61: 0.004675297715 | H61: 0 | J61: 2 | K61: ='Hypothetical Res Bill Impact'!I23 -> 13 | L61: ='Hypothetical Res Bill Impact'!J23 -> 42.16666667
B62: Total | D62: =D60*(1-'Hypothetical SAR and RAR'!$AA$16)+D61*'Hypothetical SAR and RAR'!$AA$16 -> 24.63611344 | E62: =E60*(1-'Hypothetical SAR and RAR'!$AA$16)+E61*'Hypothetical SAR and RAR'!$AA$16 -> 24.74930738 | F62: =F60*(1-'Hypothetical SAR and RAR'!$AA$16)+F61*'Hypothetical SAR and RAR'!$AA$16 -> 24.74930738 | G62: 0.004594634593 | H62: 0 | J62: 3 | K62: ='Hypothetical Res Bill Impact'!I24 -> 13 | L62: ='Hypothetical Res Bill Impact'!J24 -> 65
J63: 0 | K63: ='Hypothetical Res Bill Impact'!I25 -> 0 | L63: ='Hypothetical Res Bill Impact'!J25 -> 0
B64: Basic Bundled Essential Use Residential Monthly Average Bills - Winter
D65: =D59 -> 2024-01-01 | E65: =E59 -> 2024-12-01 | F65: =F59 -> Proposed | G65: =$G$28 -> % Change over 1/1/2024 | H65: % Change over Authorized
B66: Essential Use - Non-CARE | D66: =IF($D$3="All",'Hypothetical Res Bill Impact'!D67,(VLOOKUP($D$3,'Hypothetical Res Bill Impact'!$B$63:$J$66,3,FALSE))) -> 85.93686482 | E66: =IF($D$3="All",'Hypothetical Res Bill Impact'!F67,(VLOOKUP($D$3,'Hypothetical Res Bill Impact'!$B$63:$J$66,5,FALSE))) -> 86.39506004 | F66: =IF($D$3="All",'Hypothetical Res Bill Impact'!H67,(VLOOKUP($D$3,'Hypothetical Res Bill Impact'!$B$63:$J$66,7,FALSE))) -> 86.39506004 | G66: =$F66/D66-1 -> 0.0053317656 | H66: 0
B67: Essential Use - CARE | D67: =IF($D$3="All",'Hypothetical Res Bill Impact'!D77,(VLOOKUP($D$3,'Hypothetical Res Bill Impact'!$B$73:$J$76,3,FALSE))) -> 69.4445607 | E67: =IF($D$3="All",'Hypothetical Res Bill Impact'!F77,(VLOOKUP($D$3,'Hypothetical Res Bill Impact'!$B$73:$J$76,5,FALSE))) -> 69.82527026 | F67: =IF($D$3="All",'Hypothetical Res Bill Impact'!H77,(VLOOKUP($D$3,'Hypothetical Res Bill Impact'!$B$73:$J$76,7,FALSE))) -> 69.82527026 | G67: 0.005482208473 | H67: 0
B68: Total | D68: =D66*(1-'Hypothetical SAR and RAR'!$AA$16)+D67*'Hypothetical SAR and RAR'!$AA$16 -> 81.86083577 | E68: =E66*(1-'Hypothetical SAR and RAR'!$AA$16)+E67*'Hypothetical SAR and RAR'!$AA$16 -> 82.29988062 | F68: =F66*(1-'Hypothetical SAR and RAR'!$AA$16)+F67*'Hypothetical SAR and RAR'!$AA$16 -> 82.29988062 | G68: 0.005363307628 | H68: 0
B71: Basic Bundled Typical Residential Monthly Average Bills
D72: =D65 -> 2024-01-01 | E72: =E65 -> 2024-12-01 | F72: =F65 -> Proposed | G72: =$G$28 -> % Change over 1/1/2024 | H72: % Change over Authorized
B73: 5-Year Average Usage - Non-CARE | D73: =((D79*$H$10)+(D85*$H$11))/12 -> 78.65395136 | E73: =((E79*$H$10)+(E85*$H$11))/12 -> 79.0889315 | F73: 79.0889315 | G73: =$F73/D73-1 -> 0.005530302429 | H73: 0
C74: 5-Year Average Usage - CARE | D74: =((D80*$H$10)+(D86*$H$11))/12 -> 64.07581496 | E74: 64.44039174 | F74: 64.44039174 | G74: 0.00568977198 | H74: 0
B75: Total | D75: =((D81*$H$10)+(D87*$H$11))/12 -> 75.05100377 | E75: 75.46858391 | F75: 75.46858391 | G75: 0.005563951365 | H75: 0 | J75: ='Hypothetical Res Bill Impact'!P27 -> Typical Bundled
J76: ='Hypothetical Res Bill Impact'!P28 -> 2019-2023 Recorded Data - Average Monthly Usage - ALL-BASIC th
B77: Basic Bundled Typical Residential Monthly Average Bills - Summer | J77: Climate Zone | K77: Summer | L77: Winter | M77: Summer | N77: Winter
D78: =D72 -> 2024-01-01 | E78: =E72 -> 2024-12-01 | F78: =F72 -> Proposed | G78: =$G$28 -> % Change over 1/1/2024 | H78: % Change over Authorized | K78: Non-CARE | M78: CARE
B79: 5-Year Average Usage - Non-CARE | D79: =IF($D$3="All",'Hypothetical Res Bill Impact'!C87,(VLOOKUP($D$3,'Hypothetical Res Bill Impact'!$B$83:$J$86,2,FALSE))) -> 42.77727674 | E79: =IF($D$3="All",'Hypothetical Res Bill Impact'!E87,(VLOOKUP($D$3,'Hypothetical Res Bill Impact'!$B$83:$J$86,4,FALSE))) -> 43.0044448 | F79: =IF($D$3="All",'Hypothetical Res Bill Impact'!G87,(VLOOKUP($D$3,'Hypothetical Res Bill Impact'!$B$83:$J$86,6,FALSE))) -> 43.0044448 | G79: =$F79/D79-1 -> 0.005310484469 | H79: 0 | J79: =Zones -> 1 | K79: ='Hypothetical Res Bill Impact'!Q31 -> 23.21119128 | L79: ='Hypothetical Res Bill Impact'!R31 -> 50.63439374 | M79: ='Hypothetical Res Bill Impact'!S31 -> 17.78330392 | N79: ='Hypothetical Res Bill Impact'!T31 -> 35.74055587
C80: 5-Year Average Usage - CARE | D80: =IF($D$3="All",'Hypothetical Res Bill Impact'!C97,(VLOOKUP($D$3,'Hypothetical Res Bill Impact'!$B$93:$J$96,2,FALSE))) -> 34.78253489 | E80: =IF($D$3="All",'Hypothetical Res Bill Impact'!E97,(VLOOKUP($D$3,'Hypothetical Res Bill Impact'!$B$93:$J$96,4,FALSE))) -> 34.97282348 | F80: =IF($D$3="All",'Hypothetical Res Bill Impact'!G97,(VLOOKUP($D$3,'Hypothetical Res Bill Impact'!$B$93:$J$96,6,FALSE))) -> 34.97282348 | G80: 0.005470808569 | H80: 0 | J80: 2 | K80: ='Hypothetical Res Bill Impact'!Q32 -> 19.58817798 | L80: ='Hypothetical Res Bill Impact'!R32 -> 56.62928825 | M80: ='Hypothetical Res Bill Impact'!S32 -> 18.88306726 | N80: ='Hypothetical Res Bill Impact'!T32 -> 53.10374031
B81: Total | D81: =D79*(1-'Hypothetical SAR and RAR'!$AA$16)+D80*'Hypothetical SAR and RAR'!$AA$16 -> 40.80139758 | E81: =E79*(1-'Hypothetical SAR and RAR'!$AA$16)+E80*'Hypothetical SAR and RAR'!$AA$16 -> 41.01945098 | F81: =F79*(1-'Hypothetical SAR and RAR'!$AA$16)+F80*'Hypothetical SAR and RAR'!$AA$16 -> 41.01945098 | G81: 0.005344263014 | H81: 0 | J81: 3 | K81: ='Hypothetical Res Bill Impact'!Q33 -> 20.92759649 | L81: ='Hypothetical Res Bill Impact'!R33 -> 79.11962685 | M81: ='Hypothetical Res Bill Impact'!S33 -> 25.94545528 | N81: ='Hypothetical Res Bill Impact'!T33 -> 90.09599585
J82: 0 | K82: ='Hypothetical Res Bill Impact'!Q34 -> 0 | L82: ='Hypothetical Res Bill Impact'!R34 -> 0 | M82: ='Hypothetical Res Bill Impact'!S34 -> 0 | N82: ='Hypothetical Res Bill Impact'!T34 -> 0
B83: Basic Bundled Typical Residential Monthly Average Bills - Winter
D84: =D78 -> 2024-01-01 | E84: =E78 -> 2024-12-01 | F84: =F78 -> Proposed | G84: =$G$28 -> % Change over 1/1/2024 | H84: % Change over Authorized
B85: 5-Year Average Usage - Non-CARE | D85: =IF($D$3="All",'Hypothetical Res Bill Impact'!D87,(VLOOKUP($D$3,'Hypothetical Res Bill Impact'!$B$83:$J$86,3,FALSE))) -> 114.530626 | E85: =IF($D$3="All",'Hypothetical Res Bill Impact'!F87,(VLOOKUP($D$3,'Hypothetical Res Bill Impact'!$B$83:$J$86,5,FALSE))) -> 115.1734182 | F85: =IF($D$3="All",'Hypothetical Res Bill Impact'!H87,(VLOOKUP($D$3,'Hypothetical Res Bill Impact'!$B$83:$J$86,7,FALSE))) -> 115.1734182 | G85: =$F85/D85-1 -> 0.005612404605 | H85: 0
C86: 5-Year Average Usage - CARE | D86: =IF($D$3="All",'Hypothetical Res Bill Impact'!D97,(VLOOKUP($D$3,'Hypothetical Res Bill Impact'!$B$93:$J$96,3,FALSE))) -> 93.36909504 | E86: =IF($D$3="All",'Hypothetical Res Bill Impact'!F97,(VLOOKUP($D$3,'Hypothetical Res Bill Impact'!$B$93:$J$96,5,FALSE))) -> 93.90796 | F86: =IF($D$3="All",'Hypothetical Res Bill Impact'!H97,(VLOOKUP($D$3,'Hypothetical Res Bill Impact'!$B$93:$J$96,7,FALSE))) -> 93.90796 | G86: 0.005771341824 | H86: 0
B87: Total | D87: =D85*(1-'Hypothetical SAR and RAR'!$AA$16)+D86*'Hypothetical SAR and RAR'!$AA$16 -> 109.30061 | E87: =E85*(1-'Hypothetical SAR and RAR'!$AA$16)+E86*'Hypothetical SAR and RAR'!$AA$16 -> 109.9177168 | F87: =F85*(1-'Hypothetical SAR and RAR'!$AA$16)+F86*'Hypothetical SAR and RAR'!$AA$16 -> 109.9177168 | G87: 0.005645959981 | H87: 0

Sheet Hypothetical SAR and RAR
C2: Revenue Change ($000)
B3: =RevRecoveryMechanisms -> Core Procurement | C3: ='Hypothetical Summary'!D6 -> 0 | G3: Allocation
B4: Allocated Base Margin | C4: ='Hypothetical Summary'!D7 -> 0 | G4: =TRANSPOSE(RevRecoveryMechanisms) -> Core Procurement | H4: Allocated Base Margin | I4: Distribution | J4: ECPT adjusted | K4: Local Transmission | L4: SGIP | M4: GHG End User | N4: Public Purpose Programs | O4: Backbone Transmission | P4: 47% Res (LUAF, Other) | Q4: ECPT | R4: EPAM | S4: CFCA | T4: Non-Residential
B5: Distribution | C5: ='Hypothetical Summary'!D8 -> 0 | F5: Residential | G5: ='SAR and RAR'!G5 -> 0.6627093754 | H5: ='SAR and RAR'!H5 -> 0.7446226242 | I5: ='SAR and RAR'!I5 -> 0.6112624404 | J5: ='SAR and RAR'!J5 -> 0.3877294391 | K5: ='SAR and RAR'!K5 -> 0.4173265542 | L5: ='SAR and RAR'!L5 -> 0.08327259117 | M5: ='SAR and RAR'!M5 -> 0.5503629122 | N5: ='SAR and RAR'!N5 -> 0.528653564 | O5: ='SAR and RAR'!O5 -> 0 | P5: ='SAR and RAR'!P5 -> 0.4711863659 | Q5: ='SAR and RAR'!Q5 -> 0.2509210363 | R5: ='SAR and RAR'!R5 -> 0.7446226242 | S5: ='SAR and RAR'!S5 -> 0.6979502784 | T5: ='SAR and RAR'!T5 -> 0
B6: ECPT adjusted | C6: ='Hypothetical Summary'!D9 -> 0
B7: Local Transmission | C7: ='Hypothetical Summary'!D10 -> 0 | G7: Revenue Change ($000) - System
B8: SGIP | C8: ='Hypothetical Summary'!D11 -> 0 | F8: w/Proposed | G8: =TRANSPOSE(RevRecoveryMechanisms) -> Core Procurement | H8: Allocated Base Margin | I8: Distribution | J8: ECPT adjusted | K8: Local Transmission | L8: SGIP | M8: GHG End User | N8: Public Purpose Programs | O8: Backbone Transmission | P8: 47% Res (LUAF, Other) | Q8: ECPT | R8: EPAM | S8: CFCA | T8: Non-Residential
B9: GHG End User | C9: ='Hypothetical Summary'!D12 -> 0 | F9: Residential | G9: =G5*G10 -> 0 | H9: =H5*H10 -> 0 | I9: =I5*I10 -> 0 | J9: 0 | K9: 0 | L9: 0 | M9: 0 | N9: 0 | O9: =O5*O10 -> 0 | P9: 0 | Q9: =Q5*Q10 -> 0 | R9: =R5*R10 -> 0 | S9: =S5*S10 -> 0 | T9: 0 | U9: =SUM(G9:T9) -> 0 | V9: Check
B10: Public Purpose Programs | C10: ='Hypothetical Summary'!D13 -> 0 | F10: Total System | G10: =C3 -> 0 | H10: =C4 -> 0 | I10: =C5 -> 0 | J10: =C6 -> 0 | K10: =C7 -> 0 | L10: =C8 -> 0 | M10: =C9 -> 0 | N10: =C10 -> 0 | O10: =C11 -> 0 | P10: =C12 -> 0 | Q10: =C13 -> 0 | R10: =C14 -> 0 | S10: =C15 -> 0 | T10: =C16 -> 0 | U10: =SUM(G10:T10) -> 0 | V10: =U10-C17 -> 0
B11: Backbone Transmission | C11: ='Hypothetical Summary'!D14 -> 0
B12: 47% Res (LUAF, Other) | C12: ='Hypothetical Summary'!D15 -> 0
B13: ECPT | C13: ='Hypothetical Summary'!D16 -> 0
B14: EPAM | C14: ='Hypothetical Summary'!D17 -> 0
B15: CFCA | C15: ='Hypothetical Summary'!D18 -> 0 | AA15: w/Proposed
B16: Non-Residential | C16: ='Hypothetical Summary'!D14 -> 0 | U16: Total UDC w/Proposed | W16: Commodity w/Proposed | Z16: % of CARE Sales (Bundled) | AA16: ='SAR and RAR'!AC15 -> 0.247147337
B17: Total | C17: =SUM(C3:C16) -> 0 | G17: Revenue Split - Bundled | U17: Bundled Revenue Change | W17: Bundled Revenue Change
B18: CPUC Fee | C18: ='SAR and RAR'!D18 -> 0.001 | G18: =TRANSPOSE(RevRecoveryMechanisms) -> Core Procurement | H18: Allocated Base Margin | I18: Distribution | J18: ECPT adjusted | K18: Local Transmission | L18: SGIP | M18: GHG End User | N18: Public Purpose Programs | O18: Backbone Transmission | P18: 47% Res (LUAF, Other) | Q18: ECPT | R18: EPAM | S18: CFCA | T18: Non-Residential | U18: Total | W18: Total
F19: Residential | G19: 1 | H19: 1 | I19: 1 | J19: 1 | K19: 1 | L19: 1 | M19: 1 | N19: 1 | O19: 1 | P19: 1 | Q19: 1 | R19: 1 | S19: 1 | T19: 0 | U19: =SUMPRODUCT(H9:S9,H19:S19) -> 0 | W19: =SUMPRODUCT(G9,G19) -> 0
F20: Total System | G20: 1 | H20: 1 | I20: 1 | J20: 1 | K20: 1 | L20: 1 | M20: 1 | N20: 1 | O20: 1 | P20: 1 | Q20: 1 | R20: 1 | S20: 1 | T20: 0 | U20: =SUMPRODUCT(H10:S10,H20:S20) -> 0 | W20: =SUMPRODUCT(G10,G20) -> 0
C22: ='SAR and RAR'!C22 -> TCAP D.20-02-045 SALES DETERMINANTS SYSTEM NET (MTH) Average year Throughput | D22: ='SAR and RAR'!D22 -> TCAP D.20-02-045 SALES DETERMINANTS BUNDLED (MTH)Average year throughput
B23: Residential | C23: ='SAR and RAR'!C23 -> 2346352.645 | D23: ='SAR and RAR'!D23 -> 2318963.268
B24: Total System | C24: ='SAR and RAR'!C24 -> 9350960.283 | D24: ='SAR and RAR'!D24 -> 3290999.221
F26: Bundled | P26: System (Bundled and Unbundled)
F27: =Summary!I3&" Authorized Sales Forecast" -> 2024 Authorized Sales Forecast | G27: ='SAR and RAR'!G27 -> 12/01/2024 Avg Rates(sales adj.) | H27: Proposed Avg Rates | I27: % Change | Q27: =F27 -> 2024 Authorized Sales Forecast | R27: =G27 -> 12/01/2024 Avg Rates(sales adj.) | S27: Proposed Avg Rates | T27: % Change
E28: Residential | F28: ='SAR and RAR'!F28 -> 2318963.268 | G28: 184.6366223 | H28: =(U19/C23*100)+(W19/D23*100)+G28 -> 184.6366223 | I28: =H28/G28-1 -> 0 | P28: Residential | Q28: ='SAR and RAR'!Q28 -> 2346352.645 | R28: 184.0358346 | S28: =U9/Q28*100+R28 -> 184.0358346 | T28: =S28/R28-1 -> 0
E29: Total System | F29: ='SAR and RAR'!F29 -> 3290999.221 | G29: 115.5826811 | H29: =(U20/C24*100)+(W20/D24*100)+G29 -> 115.5826811 | I29: =H29/G29-1 -> 0 | P29: Total System | Q29: ='SAR and RAR'!Q29 -> 9350960.283 | R29: 80.11859194 | S29: =U10/Q29*100+R29 -> 80.11859194 | T29: =S29/R29-1 -> 0

Sheet Hypothetical Res Bill Impact
E3: Schedule GR | P3: Schedule GR [CARE]
E4: ='Res Bill Impact'!E4 -> 2024 | F4: ='Res Bill Impact'!F4 -> 2024-12-01 | G4: ='Res Bill Impact'!G4 -> 2024-12-01 | H4: Proposed | I4: Proposed | P4: =SalesForecastYear -> 2024 | Q4: ='Res Bill Impact'!Q4 -> 2024-12-01 | R4: ='Res Bill Impact'!R4 -> 2024-12-01 | S4: Proposed | T4: Proposed
E5: Sales Forecast | F5: Rates | G5: Revenue | H5: Rates | I5: Revenue | P5: Sales Forecast | Q5: Rates | R5: Revenue | S5: Rates | T5: Revenue
D7: Baseline | E7: ='Res Bill Impact'!E7 -> 1205788.245 | F7: ='Res Bill Impact'!F7 -> 1.626207614 | G7: =F7*E7 -> 1960862.025 | H7: =(Y10/SUM(SUM(E7),F9/F7*SUM(E9),SUM(P7)*(1+(Q7/F7-1)),SUM(P9)*(1+(Q9/F9-1))*F9/F7)) -> 1.626207614 | I7: =E7*H7 -> 1960862.025 | O7: Baseline | P7: ='Res Bill Impact'!P7 -> 419691.9604 | Q7: ='Res Bill Impact'!Q7 -> 1.266022508 | R7: ='Res Bill Impact'!R7 -> 531339.4684 | S7: =H7*(1+(Q7/F7-1)) -> 1.266022508 | T7: =P7*S7 -> 531339.4684 | X7: Bundled Residential Rev Req
X8: Current | Y8: =(SUM(G7:G9)+SUM(R7:R9)) -> 3891862.548
D9: Non-Baseline | E9: ='Res Bill Impact'!E9 -> 534746.2927 | F9: ='Res Bill Impact'!F9 -> 2.056857614 | G9: =F9*E9 -> 1099896.983 | H9: =F9/F$7*H$7 -> 2.056857614 | I9: =E9*H9 -> 1099896.983 | O9: Non-Baseline | P9: ='Res Bill Impact'!P9 -> 186126.1467 | Q9: ='Res Bill Impact'!Q9 -> 1.610542508 | R9: ='Res Bill Impact'!R9 -> 299764.0712 | S9: =H9*(1+(Q9/F9-1)) -> 1.610542508 | T9: =P9*S9 -> 299764.0712 | X9: Change (Proposed) | Y9: ='Hypothetical SAR and RAR'!U9 -> 0
X10: Proposed (w/ Current Revenues) | Y10: =Y8+Y9 -> 3891862.548
E11: Non-CARE customers | P11: CARE Customers
D12: Fixed Charge | E12: =E13-P12 -> 3924404.111 | F12: 5 | G12: =F12*12*E12/1000 -> 235464.2467 | H12: 5 | I12: =(H12*12*E12)/1000 -> 235464.2467 | O12: Fixed Charge | P12: ='Res Bill Impact'!P12 -> 1790127 | Q12: =F12*(1-CAREDiscountPercent) -> 4 | R12: =Q12*12*P12/1000 -> 85926.096 | S12: =H12*(1-CAREDiscountPercent) -> 4 | T12: =(S12*12*P12)/1000 -> 85926.096
D13: Total Customers | E13: ='Res Bill Impact'!E13 -> 5714531.111
P18: ='Res Bill Impact'!P18 -> Basic Bundled
H19: ='Res Bill Impact'!H19 -> Essential Usage | P19: ='Res Bill Impact'!P19 -> 2023 Recorded Data - Average Monthly Usage - ALL-BASIC th
B20: SCHEDULE DR RATES ($/th) | H20: Monthly Tier 1 Baseline Allowance -BASIC (th) | P20: Climate Zone | Q20: Summer | R20: Winter | S20: Summer | T20: Winter | U20: Population Weight
B21: Rates | C21: ='Res Bill Impact'!C21 -> 2024-01-01 | D21: ='Res Bill Impact'!D21 -> 2024-12-01 | E21: Proposed | H21: Climate Zone | I21: Summer | J21: Winter | Q21: Non-CARE | S21: CARE | U21: Non-CARE | V21: CARE
A22: Summer | B22: Tier 1 | C22: 1.617047614 | D22: 1.626207614 | E22: =H7 -> 1.626207614 | H22: =Zones -> 1 | I22: ='Res Bill Impact'!I22 -> 13 | J22: ='Res Bill Impact'!J22 -> 37.33333333 | P22: =Zones -> 1 | Q22: ='Res Bill Impact'!Q22 -> 23.70273381 | R22: ='Res Bill Impact'!R22 -> 50.81583062 | S22: ='Res Bill Impact'!S22 -> 17.65198412 | T22: ='Res Bill Impact'!T22 -> 36.09496759 | U22: =SUM(Q22:R22)/SUM($Q$22:$R$25) -> 0.2917039156 | V22: =SUM(S22:T22)/SUM($S$22:$T$25) -> 0.2242685126
B23: Tier 2 | C23: 2.043657614 | D23: 2.056857614 | E23: =H9 -> 2.056857614 | H23: 2 | I23: ='Res Bill Impact'!I23 -> 13 | J23: ='Res Bill Impact'!J23 -> 42.16666667 | P23: 2 | Q23: ='Res Bill Impact'!Q23 -> 19.99227159 | R23: ='Res Bill Impact'!R23 -> 57.29689283 | S23: ='Res Bill Impact'!S23 -> 18.34027962 | T23: ='Res Bill Impact'!T23 -> 53.47749147 | U23: =SUM(Q23:R23)/SUM($Q$22:$R$25) -> 0.3025494663 | V23: =SUM(S23:T23)/SUM($S$22:$T$25) -> 0.2996721524
H24: 3 | I24: ='Res Bill Impact'!I24 -> 13 | J24: ='Res Bill Impact'!J24 -> 65 | P24: 3 | Q24: ='Res Bill Impact'!Q24 -> 22.17202669 | R24: ='Res Bill Impact'!R24 -> 81.47984045 | S24: ='Res Bill Impact'!S24 -> 25.0900804 | T24: ='Res Bill Impact'!T24 -> 88.99966758 | U24: =SUM(Q24:R24)/SUM($Q$22:$R$25) -> 0.4057466181 | V24: =SUM(S24:T24)/SUM($S$22:$T$25) -> 0.476059335
A25: Winter | B25: Tier 1 | C25: =C22 -> 1.617047614 | D25: 1.626207614 | E25: 1.626207614 | H25: 0 | I25: ='Res Bill Impact'!I25 -> 0 | J25: ='Res Bill Impact'!J25 -> 0 | P25: 0 | Q25: ='Res Bill Impact'!Q25 -> 0 | R25: ='Res Bill Impact'!R25 -> 0 | S25: ='Res Bill Impact'!S25 -> 0 | T25: ='Res Bill Impact'!T25 -> 0 | U25: =SUM(Q25:R25)/SUM($Q$22:$R$25) -> 0 | V25: =SUM(S25:T25)/SUM($S$22:$T$25) -> 0
B26: Tier 2 | C26: 2.043657614 | D26: 2.056857614 | E26: 2.056857614
P27: ='Res Bill Impact'!P27 -> Typical Bundled
P28: ='Res Bill Impact'!P28 -> 2019-2023 Recorded Data - Average Monthly Usage - ALL-BASIC th
B29: SCHEDULE DR [CARE] ($/th) | P29: Climate Zone | Q29: Summer | R29: Winter | S29: Summer | T29: Winter | U29: Population Weight
B30: Rates | C30: =C21 -> 2024-01-01 | D30: =D21 -> 2024-12-01 | E30: Proposed | Q30: Non-CARE | S30: CARE | U30: Non-CARE | V30: CARE
A31: Summer | B31: Tier 1 | C31: 1.258694508 | D31: 1.266022508 | E31: =S7 -> 1.266022508 | P31: =Zones -> 1 | Q31: ='Res Bill Impact'!Q31 -> 23.21119128 | R31: ='Res Bill Impact'!R31 -> 50.63439374 | S31: ='Res Bill Impact'!S31 -> 17.78330392 | T31: ='Res Bill Impact'!T31 -> 35.74055587 | U31: =SUM(Q31:R31)/SUM($Q$31:$R$34) -> 0.2952521049 | V31: =SUM(S31:T31)/SUM($S$31:$T$34) -> 0.2215830692
B32: Tier 2 | C32: 1.599982508 | D32: 1.610542508 | E32: =S9 -> 1.610542508 | P32: 2 | Q32: ='Res Bill Impact'!Q32 -> 19.58817798 | R32: ='Res Bill Impact'!R32 -> 56.62928825 | S32: ='Res Bill Impact'!S32 -> 18.88306726 | T32: ='Res Bill Impact'!T32 -> 53.10374031 | U32: =SUM(Q32:R32)/SUM($Q$31:$R$34) -> 0.3047354466 | V32: =SUM(S32:T32)/SUM($S$31:$T$34) -> 0.2980177033
P33: 3 | Q33: ='Res Bill Impact'!Q33 -> 20.92759649 | R33: ='Res Bill Impact'!R33 -> 79.11962685 | S33: ='Res Bill Impact'!S33 -> 25.94545528 | T33: ='Res Bill Impact'!T33 -> 90.09599585 | U33: 0.4000124485 | V33: 0.4803992275
A34: Winter | B34: Tier 1 | C34: =C31 -> 1.258694508 | D34: 1.266022508 | E34: 1.266022508 | P34: 0 | Q34: ='Res Bill Impact'!Q34 -> 0 | R34: ='Res Bill Impact'!R34 -> 0 | S34: ='Res Bill Impact'!S34 -> 0 | T34: ='Res Bill Impact'!T34 -> 0 | U34: 0 | V34: 0
B35: Tier 2 | C35: 1.599982508 | D35: 1.610542508 | E35: 1.610542508
B39: Note: Bill inserts include CPUC fee in the calculations
C40: 2023 Recorded Average Basic Bundled Non-CARE Customer
C41: =C30 -> 2024-01-01 | E41: =D30 -> 2024-12-01 | G41: =E30 -> Proposed
C42: Summer | D42: Winter | E42: Summer | F42: Winter | G42: Summer | H42: Winter
B43: =Zones -> 1 | C43: =IF($Q22>$I22,C$22*$I22+C$23*($Q22-$I22),$Q22*C$22)+('Hypothetical SAR and RAR'!$C$18*$Q22)+IF(Q22>0,$F$12,0) -> 47.91804515 | D43: =IF($R22>$J22,C$25*$J22+C$26*($R22-$J22),$R22*C$25)+('Hypothetical SAR and RAR'!$C$18*$R22)+IF(R22>0,$F$12,0) -> 92.97420164 | E43: =IF($Q22>$I22,D$22*$I22+D$23*($Q22-$I22),$Q22*D$22)+('Hypothetical SAR and RAR'!$C$18*$Q22)+IF(Q22>0,$F$12,0) -> 48.17840124 | F43: =IF($R22>$J22,D$25*$J22+D$26*($R22-$J22),$R22*D$25)+('Hypothetical SAR and RAR'!$C$18*$R22)+IF(R22>0,$F$12,0) -> 93.49414394 | G43: =IF($Q22>$I22,E$22*$I22+E$23*($Q22-$I22),$Q22*E$22)+('Hypothetical SAR and RAR'!$C$18*$Q22)+IF(Q22>0,$H$12,0) -> 48.17840124 | H43: =IF($R22>$J22,E$25*$J22+E$26*($R22-$J22),$R22*E$25)+('Hypothetical SAR and RAR'!$C$18*$R22)+IF(R22>0,$H$12,0) -> 93.49414394
B44: 2 | C44: =IF($Q23>$I23,C$22*$I23+C$23*($Q23-$I23),$Q23*C$22)+('Hypothetical SAR and RAR'!$C$18*$Q23)+IF(Q23>0,$F$12,0) -> 40.33142033 | D44: =IF($R23>$J23,C$25*$J23+C$26*($R23-$J23),$R23*C$25)+('Hypothetical SAR and RAR'!$C$18*$R23)+IF(R23>0,$F$12,0) -> 104.1638065 | E44: =IF($Q23>$I23,D$22*$I23+D$23*($Q23-$I23),$Q23*D$22)+('Hypothetical SAR and RAR'!$C$18*$Q23)+IF(Q23>0,$F$12,0) -> 40.54279831 | F44: =IF($R23>$J23,D$25*$J23+D$26*($R23-$J23),$R23*D$25)+('Hypothetical SAR and RAR'!$C$18*$R23)+IF(R23>0,$F$12,0) -> 104.7497721 | G44: =IF($Q23>$I23,E$22*$I23+E$23*($Q23-$I23),$Q23*E$22)+('Hypothetical SAR and RAR'!$C$18*$Q23)+IF(Q23>0,$H$12,0) -> 40.54279831 | H44: =IF($R23>$J23,E$25*$J23+E$26*($R23-$J23),$R23*E$25)+('Hypothetical SAR and RAR'!$C$18*$R23)+IF(R23>0,$H$12,0) -> 104.7497721
B45: 3 | C45: =IF($Q24>$I24,C$22*$I24+C$23*($Q24-$I24),$Q24*C$22)+('Hypothetical SAR and RAR'!$C$18*$Q24)+IF(Q24>0,$F$12,0) -> 44.78827319 | D45: =IF($R24>$J24,C$25*$J24+C$26*($R24-$J24),$R24*C$25)+('Hypothetical SAR and RAR'!$C$18*$R24)+IF(R24>0,$F$12,0) -> 143.8687261 | E45: =IF($Q24>$I24,D$22*$I24+D$23*($Q24-$I24),$Q24*D$22)+('Hypothetical SAR and RAR'!$C$18*$Q24)+IF(Q24>0,$F$12,0) -> 45.02842394 | F45: =IF($R24>$J24,D$25*$J24+D$26*($R24-$J24),$R24*D$25)+('Hypothetical SAR and RAR'!$C$18*$R24)+IF(R24>0,$F$12,0) -> 144.68166 | G45: =IF($Q24>$I24,E$22*$I24+E$23*($Q24-$I24),$Q24*E$22)+('Hypothetical SAR and RAR'!$C$18*$Q24)+IF(Q24>0,$H$12,0) -> 45.02842394 | H45: =IF($R24>$J24,E$25*$J24+E$26*($R24-$J24),$R24*E$25)+('Hypothetical SAR and RAR'!$C$18*$R24)+IF(R24>0,$H$12,0) -> 144.68166
B46: 0 | C46: =IF($Q25>$I25,C$22*$I25+C$23*($Q25-$I25),$Q25*C$22)+('Hypothetical SAR and RAR'!$C$18*$Q25)+IF(Q25>0,$F$12,0) -> 0 | D46: =IF($R25>$J25,C$25*$J25+C$26*($R25-$J25),$R25*C$25)+('Hypothetical SAR and RAR'!$C$18*$R25)+IF(R25>0,$F$12,0) -> 0 | E46: =IF($Q25>$I25,D$22*$I25+D$23*($Q25-$I25),$Q25*D$22)+('Hypothetical SAR and RAR'!$C$18*$Q25)+IF(Q25>0,$F$12,0) -> 0 | F46: =IF($R25>$J25,D$25*$J25+D$26*($R25-$J25),$R25*D$25)+('Hypothetical SAR and RAR'!$C$18*$R25)+IF(R25>0,$F$12,0) -> 0 | G46: =IF($Q25>$I25,E$22*$I25+E$23*($Q25-$I25),$Q25*E$22)+('Hypothetical SAR and RAR'!$C$18*$Q25)+IF(Q25>0,$H$12,0) -> 0 | H46: =IF($R25>$J25,E$25*$J25+E$26*($R25-$J25),$R25*E$25)+('Hypothetical SAR and RAR'!$C$18*$R25)+IF(R25>0,$H$12,0) -> 0
B47: Total | C47: =SUMPRODUCT(C43:C46,$U$22:$U$25) -> 44.35282147 | D47: =SUMPRODUCT(D43:D46,$U$22:$U$25) -> 117.0098918 | E47: 44.59016101 | F47: 117.6686898 | G47: 44.59016101 | H47: 117.6686898
C50: 2023 Recorded Average Basic Bundled CARE Customer
C51: =C30 -> 2024-01-01 | E51: =D30 -> 2024-12-01 | G51: =E30 -> Proposed
C52: Summer | D52: Winter | E52: Summer | F52: Winter | G52: Summer | H52: Winter
B53: =Zones -> 1 | C53: =IF($S22>$I22,C$31*$I22+C$32*($S22-$I22),$S22*C$31)+('Hypothetical SAR and RAR'!$C$18*$S22)+IF(S22>0,$Q$12,0) -> 27.82377382 | D53: =IF($T22>$J22,C$34*$J22+C$35*($T22-$J22),$T22*C$34)+('Hypothetical SAR and RAR'!$C$18*$T22)+IF(T22>0,$Q$12,0) -> 49.46863245 | E53: =IF($S22>$I22,D$31*$I22+D$32*($S22-$I22),$S22*D$31)+('Hypothetical SAR and RAR'!$C$18*$S22)+IF(S22>0,$Q$12,0) -> 27.96816277 | F53: =IF($T22>$J22,D$34*$J22+D$35*($T22-$J22),$T22*D$34)+('Hypothetical SAR and RAR'!$C$18*$T22)+IF(T22>0,$Q$12,0) -> 49.73313637 | G53: =IF($S22>$I22,E$31*$I22+E$32*($S22-$I22),$S22*E$31)+('Hypothetical SAR and RAR'!$C$18*$S22)+IF(S22>0,$S$12,0) -> 27.96816277 | H53: =IF($T22>$J22,E$34*$J22+E$35*($T22-$J22),$T22*E$34)+('Hypothetical SAR and RAR'!$C$18*$T22)+IF(T22>0,$S$12,0) -> 49.73313637
B54: 2 | C54: =IF($S23>$I23,C$31*$I23+C$32*($S23-$I23),$S23*C$31)+('Hypothetical SAR and RAR'!$C$18*$S23)+IF(S23>0,$Q$12,0) -> 28.92572287 | D54: =IF($T23>$J23,C$34*$J23+C$35*($T23-$J23),$T23*C$34)+('Hypothetical SAR and RAR'!$C$18*$T23)+IF(T23>0,$Q$12,0) -> 75.2255511 | E54: =IF($S23>$I23,D$31*$I23+D$32*($S23-$I23),$S23*D$31)+('Hypothetical SAR and RAR'!$C$18*$S23)+IF(S23>0,$Q$12,0) -> 29.07738022 | F54: =IF($T23>$J23,D$34*$J23+D$35*($T23-$J23),$T23*D$34)+('Hypothetical SAR and RAR'!$C$18*$T23)+IF(T23>0,$Q$12,0) -> 75.65399074 | G54: =IF($S23>$I23,E$31*$I23+E$32*($S23-$I23),$S23*E$31)+('Hypothetical SAR and RAR'!$C$18*$S23)+IF(S23>0,$S$12,0) -> 29.07738022 | H54: =IF($T23>$J23,E$34*$J23+E$35*($T23-$J23),$T23*E$34)+('Hypothetical SAR and RAR'!$C$18*$T23)+IF(T23>0,$S$12,0) -> 75.65399074
B55: 3 | C55: =IF($S24>$I24,C$31*$I24+C$32*($S24-$I24),$S24*C$31)+('Hypothetical SAR and RAR'!$C$18*$S24)+IF(S24>0,$Q$12,0) -> 39.73203586 | D55: =IF($T24>$J24,C$34*$J24+C$35*($T24-$J24),$T24*C$34)+('Hypothetical SAR and RAR'!$C$18*$T24)+IF(T24>0,$Q$12,0) -> 124.303191 | E55: =IF($S24>$I24,D$31*$I24+D$32*($S24-$I24),$S24*D$31)+('Hypothetical SAR and RAR'!$C$18*$S24)+IF(S24>0,$Q$12,0) -> 39.9549711 | F55: =IF($T24>$J24,D$34*$J24+D$35*($T24-$J24),$T24*D$34)+('Hypothetical SAR and RAR'!$C$18*$T24)+IF(T24>0,$Q$12,0) -> 125.0329475 | G55: =IF($S24>$I24,E$31*$I24+E$32*($S24-$I24),$S24*E$31)+('Hypothetical SAR and RAR'!$C$18*$S24)+IF(S24>0,$S$12,0) -> 39.9549711 | H55: =IF($T24>$J24,E$34*$J24+E$35*($T24-$J24),$T24*E$34)+('Hypothetical SAR and RAR'!$C$18*$T24)+IF(T24>0,$S$12,0) -> 125.0329475
B56: 0 | C56: =IF($S25>$I25,C$31*$I25+C$32*($S25-$I25),$S25*C$31)+('Hypothetical SAR and RAR'!$C$18*$S25)+IF(S25>0,$Q$12,0) -> 0 | D56: =IF($T25>$J25,C$34*$J25+C$35*($T25-$J25),$T25*C$34)+('Hypothetical SAR and RAR'!$C$18*$T25)+IF(T25>0,$Q$12,0) -> 0 | E56: =IF($S25>$I25,D$31*$I25+D$32*($S25-$I25),$S25*D$31)+('Hypothetical SAR and RAR'!$C$18*$S25)+IF(S25>0,$Q$12,0) -> 0 | F56: =IF($T25>$J25,D$34*$J25+D$35*($T25-$J25),$T25*D$34)+('Hypothetical SAR and RAR'!$C$18*$T25)+IF(T25>0,$Q$12,0) -> 0 | G56: =IF($S25>$I25,E$31*$I25+E$32*($S25-$I25),$S25*E$31)+('Hypothetical SAR and RAR'!$C$18*$S25)+IF(S25>0,$S$12,0) -> 0 | H56: =IF($T25>$J25,E$34*$J25+E$35*($T25-$J25),$T25*E$34)+('Hypothetical SAR and RAR'!$C$18*$T25)+IF(T25>0,$S$12,0) -> 0
B57: Total | C57: =SUMPRODUCT(C53:C56,$V$22:$V$25) -> 33.82303657 | D57: =SUMPRODUCT(D53:D56,$V$22:$V$25) -> 92.81295389 | E57: 34.00699636 | F57: 93.34807261 | G57: 34.00699636 | H57: 93.34807261
C60: Essential Usage Basic Bundled Non-CARE Customer
C61: =C51 -> 2024-01-01 | E61: =D30 -> 2024-12-01 | G61: =G51 -> Proposed
C62: Summer | D62: Winter | E62: Summer | F62: Winter | G62: Summer | H62: Winter
B63: =Zones -> 1 | C63: =($C$22*$I22)+('Hypothetical SAR and RAR'!$C$18*$I22)+IF(I22>0,$F$12,0) -> 26.03461898 | D63: =($C$25*$J22)+('Hypothetical SAR and RAR'!$C$18*$J22)+IF(J22>0,$F$12,0) -> 65.40711091 | E63: =($D$22*$I22)+('Hypothetical SAR and RAR'!$C$18*$I22)+IF(I22>0,$F$12,0) -> 26.15369898 | F63: =($D$25*$J22)+('Hypothetical SAR and RAR'!$C$18*$J22)+IF(J22>0,$F$12,0) -> 65.74908424 | G63: =($E$22*$I22)+('Hypothetical SAR and RAR'!$C$18*$I22)+IF(I22>0,$H$12,0) -> 26.15369898 | H63: =($E$25*$J22)+('Hypothetical SAR and RAR'!$C$18*$J22)+IF(J22>0,$H$12,0) -> 65.74908424
B64: 2 | C64: =($C$22*$I23)+('Hypothetical SAR and RAR'!$C$18*$I23)+IF(I23>0,$F$12,0) -> 26.03461898 | D64: =($C$25*$J23)+('Hypothetical SAR and RAR'!$C$18*$J23)+IF(J23>0,$F$12,0) -> 73.22767438 | E64: =($D$22*$I23)+('Hypothetical SAR and RAR'!$C$18*$I23)+IF(I23>0,$F$12,0) -> 26.15369898 | F64: =($D$25*$J23)+('Hypothetical SAR and RAR'!$C$18*$J23)+IF(J23>0,$F$12,0) -> 73.61392104 | G64: =($E$22*$I23)+('Hypothetical SAR and RAR'!$C$18*$I23)+IF(I23>0,$H$12,0) -> 26.15369898 | H64: =($E$25*$J23)+('Hypothetical SAR and RAR'!$C$18*$J23)+IF(J23>0,$H$12,0) -> 73.61392104
B65: 3 | C65: =($C$22*$I24)+('Hypothetical SAR and RAR'!$C$18*$I24)+IF(I24>0,$F$12,0) -> 26.03461898 | D65: =($C$25*$J24)+('Hypothetical SAR and RAR'!$C$18*$J24)+IF(J24>0,$F$12,0) -> 110.1730949 | E65: =($D$22*$I24)+('Hypothetical SAR and RAR'!$C$18*$I24)+IF(I24>0,$F$12,0) -> 26.15369898 | F65: =($D$25*$J24)+('Hypothetical SAR and RAR'!$C$18*$J24)+IF(J24>0,$F$12,0) -> 110.7684949 | G65: =($E$22*$I24)+('Hypothetical SAR and RAR'!$C$18*$I24)+IF(I24>0,$H$12,0) -> 26.15369898 | H65: =($E$25*$J24)+('Hypothetical SAR and RAR'!$C$18*$J24)+IF(J24>0,$H$12,0) -> 110.7684949
B66: 0 | C66: =($C$22*$I25)+('Hypothetical SAR and RAR'!$C$18*$I25)+IF(I25>0,$F$12,0) -> 0 | D66: =($C$25*$J25)+('Hypothetical SAR and RAR'!$C$18*$J25)+IF(J25>0,$F$12,0) -> 0 | E66: =($D$22*$I25)+('Hypothetical SAR and RAR'!$C$18*$I25)+IF(I25>0,$F$12,0) -> 0 | F66: =($D$25*$J25)+('Hypothetical SAR and RAR'!$C$18*$J25)+IF(J25>0,$F$12,0) -> 0 | G66: =($E$22*$I25)+('Hypothetical SAR and RAR'!$C$18*$I25)+IF(I25>0,$H$12,0) -> 0 | H66: =($E$25*$J25)+('Hypothetical SAR and RAR'!$C$18*$J25)+IF(J25>0,$H$12,0) -> 0
B67: Total | C67: =SUMPRODUCT(C63:C66,$U$22:$U$25) -> 26.03461898 | D67: =SUMPRODUCT(D63:D66,$U$22:$U$25) -> 85.93686482 | E67: =SUMPRODUCT(E63:E66,$U$22:$U$25) -> 26.15369898 | F67: 86.39506004 | G67: 26.15369898 | H67: 86.39506004
C70: Essential Usage Basic Bundled CARE Customer
C71: =C51 -> 2024-01-01 | E71: =E61 -> 2024-12-01 | G71: =G61 -> Proposed
C72: Summer | D72: Winter | E72: Summer | F72: Winter | G72: Summer | H72: Winter
B73: =Zones -> 1 | C73: =($C$31*$I22)+('Hypothetical SAR and RAR'!$C$18*$I22)+IF(I22>0,$Q$12,0) -> 20.37602861 | D73: =($C$34*$J22)+('Hypothetical SAR and RAR'!$C$18*$J22)+IF(J22>0,$Q$12,0) -> 51.02859498 | E73: =($D$31*$I22)+('Hypothetical SAR and RAR'!$C$18*$I22)+IF(I22>0,$Q$12,0) -> 20.47129261 | F73: =($D$34*$J22)+('Hypothetical SAR and RAR'!$C$18*$J22)+IF(J22>0,$Q$12,0) -> 51.30217364 | G73: =($E$31*$I22)+('Hypothetical SAR and RAR'!$C$18*$I22)+IF(I22>0,$S$12,0) -> 20.47129261 | H73: =($E$34*$J22)+('Hypothetical SAR and RAR'!$C$18*$J22)+IF(J22>0,$S$12,0) -> 51.30217364
B74: 2 | C74: =($C$31*$I23)+('Hypothetical SAR and RAR'!$C$18*$I23)+IF(I23>0,$Q$12,0) -> 20.37602861 | D74: =($C$34*$J23)+('Hypothetical SAR and RAR'!$C$18*$J23)+IF(J23>0,$Q$12,0) -> 57.11711843 | E74: =($D$31*$I23)+('Hypothetical SAR and RAR'!$C$18*$I23)+IF(I23>0,$Q$12,0) -> 20.47129261 | F74: =($D$34*$J23)+('Hypothetical SAR and RAR'!$C$18*$J23)+IF(J23>0,$Q$12,0) -> 57.42611577 | G74: =($E$31*$I23)+('Hypothetical SAR and RAR'!$C$18*$I23)+IF(I23>0,$S$12,0) -> 20.47129261 | H74: =($E$34*$J23)+('Hypothetical SAR and RAR'!$C$18*$J23)+IF(J23>0,$S$12,0) -> 57.42611577
B75: 3 | C75: =($C$31*$I24)+('Hypothetical SAR and RAR'!$C$18*$I24)+IF(I24>0,$Q$12,0) -> 20.37602861 | D75: =($C$34*$J24)+('Hypothetical SAR and RAR'!$C$18*$J24)+IF(J24>0,$Q$12,0) -> 85.88014304 | E75: =($D$31*$I24)+('Hypothetical SAR and RAR'!$C$18*$I24)+IF(I24>0,$Q$12,0) -> 20.47129261 | F75: =($D$34*$J24)+('Hypothetical SAR and RAR'!$C$18*$J24)+IF(J24>0,$Q$12,0) -> 86.35646304 | G75: =($E$31*$I24)+('Hypothetical SAR and RAR'!$C$18*$I24)+IF(I24>0,$S$12,0) -> 20.47129261 | H75: =($E$34*$J24)+('Hypothetical SAR and RAR'!$C$18*$J24)+IF(J24>0,$S$12,0) -> 86.35646304
B76: 0 | C76: =($C$31*$I25)+('Hypothetical SAR and RAR'!$C$18*$I25)+IF(I25>0,$Q$12,0) -> 0 | D76: =($C$34*$J25)+('Hypothetical SAR and RAR'!$C$18*$J25)+IF(J25>0,$Q$12,0) -> 0 | E76: =($D$31*$I25)+('Hypothetical SAR and RAR'!$C$18*$I25)+IF(I25>0,$Q$12,0) -> 0 | F76: =($D$34*$J25)+('Hypothetical SAR and RAR'!$C$18*$J25)+IF(J25>0,$Q$12,0) -> 0 | G76: =($E$31*$I25)+('Hypothetical SAR and RAR'!$C$18*$I25)+IF(I25>0,$S$12,0) -> 0 | H76: =($E$34*$J25)+('Hypothetical SAR and RAR'!$C$18*$J25)+IF(J25>0,$S$12,0) -> 0
B77: Total | C77: =SUMPRODUCT(C73:C76,$V$22:$V$25) -> 20.37602861 | D77: =SUMPRODUCT(D73:D76,$V$22:$V$25) -> 69.4445607 | E77: 20.47129261 | F77: 69.82527026 | G77: 20.47129261 | H77: 69.82527026
C80: 5-Year Average Monthly Usage Basic Bundled Non-CARE Customer
C81: =C71 -> 2024-01-01 | E81: =E71 -> 2024-12-01 | G81: =G71 -> Proposed
C82: Summer | D82: Winter | E82: Summer | F82: Winter | G82: Summer | H82: Winter
B83: =Zones -> 1 | C83: =IF($Q31>$I22,C$22*$I22+C$23*($Q31-$I22),$Q31*C$22)+('Hypothetical SAR and RAR'!$C$18*$Q31)+IF(Q31>0,$F$12,0) -> 46.91300898 | D83: =IF($R31>$J22,C$25*$J22+C$26*($R31-$J22),$R31*C$25)+('Hypothetical SAR and RAR'!$C$18*$R31)+IF(R31>0,$F$12,0) -> 92.60322534 | E83: =IF($Q31>$I22,D$22*$I22+D$23*($Q31-$I22),$Q31*D$22)+('Hypothetical SAR and RAR'!$C$18*$Q31)+IF(Q31>0,$F$12,0) -> 47.1668767 | F83: =IF($R31>$J22,D$25*$J22+D$26*($R31-$J22),$R31*D$25)+('Hypothetical SAR and RAR'!$C$18*$R31)+IF(R31>0,$F$12,0) -> 93.12077267 | G83: =IF($Q31>$I22,E$22*$I22+E$23*($Q31-$I22),$Q31*E$22)+('Hypothetical SAR and RAR'!$C$18*$Q31)+IF(Q31>0,$H$12,0) -> 47.1668767 | H83: =IF($R31>$J22,E$25*$J22+E$26*($R31-$J22),$R31*E$25)+('Hypothetical SAR and RAR'!$C$18*$R31)+IF(R31>0,$H$12,0) -> 93.12077267
B84: 2 | C84: =IF($Q32>$I23,C$22*$I23+C$23*($Q32-$I23),$Q32*C$22)+('Hypothetical SAR and RAR'!$C$18*$Q32)+IF(Q32>0,$F$12,0) -> 39.50518725 | D84: =IF($R32>$J23,C$25*$J23+C$26*($R32-$J23),$R32*C$25)+('Hypothetical SAR and RAR'!$C$18*$R32)+IF(R32>0,$F$12,0) -> 102.7987837 | E84: =IF($Q32>$I23,D$22*$I23+D$23*($Q32-$I23),$Q32*D$22)+('Hypothetical SAR and RAR'!$C$18*$Q32)+IF(Q32>0,$F$12,0) -> 39.7112312 | F84: =IF($R32>$J23,D$25*$J23+D$26*($R32-$J23),$R32*D$25)+('Hypothetical SAR and RAR'!$C$18*$R32)+IF(R32>0,$F$12,0) -> 103.375937 | G84: =IF($Q32>$I23,E$22*$I23+E$23*($Q32-$I23),$Q32*E$22)+('Hypothetical SAR and RAR'!$C$18*$Q32)+IF(Q32>0,$H$12,0) -> 39.7112312 | H84: =IF($R32>$J23,E$25*$J23+E$26*($R32-$J23),$R32*E$25)+('Hypothetical SAR and RAR'!$C$18*$R32)+IF(R32>0,$H$12,0) -> 103.375937
B85: 3 | C85: =IF($Q33>$I24,C$22*$I24+C$23*($Q33-$I24),$Q33*C$22)+('Hypothetical SAR and RAR'!$C$18*$Q33)+IF(Q33>0,$F$12,0) -> 42.24383949 | D85: =IF($R33>$J24,C$25*$J24+C$26*($R33-$J24),$R33*C$25)+('Hypothetical SAR and RAR'!$C$18*$R33)+IF(R33>0,$F$12,0) -> 139.0428974 | E85: =IF($Q33>$I24,D$22*$I24+D$23*($Q33-$I24),$Q33*D$22)+('Hypothetical SAR and RAR'!$C$18*$Q33)+IF(Q33>0,$F$12,0) -> 42.46756377 | F85: =IF($R33>$J24,D$25*$J24+D$26*($R33-$J24),$R33*D$25)+('Hypothetical SAR and RAR'!$C$18*$R33)+IF(R33>0,$F$12,0) -> 139.8246765 | G85: =IF($Q33>$I24,E$22*$I24+E$23*($Q33-$I24),$Q33*E$22)+('Hypothetical SAR and RAR'!$C$18*$Q33)+IF(Q33>0,$H$12,0) -> 42.46756377 | H85: =IF($R33>$J24,E$25*$J24+E$26*($R33-$J24),$R33*E$25)+('Hypothetical SAR and RAR'!$C$18*$R33)+IF(R33>0,$H$12,0) -> 139.8246765
B86: 0 | C86: =IF($Q34>$I25,C$22*$I25+C$23*($Q34-$I25),$Q34*C$22)+('Hypothetical SAR and RAR'!$C$18*$Q34)+IF(Q34>0,$F$12,0) -> 0 | D86: =IF($R34>$J25,C$25*$J25+C$26*($R34-$J25),$R34*C$25)+('Hypothetical SAR and RAR'!$C$18*$R34)+IF(R34>0,$F$12,0) -> 0 | E86: =IF($Q34>$I25,D$22*$I25+D$23*($Q34-$I25),$Q34*D$22)+('Hypothetical SAR and RAR'!$C$18*$Q34)+IF(Q34>0,$F$12,0) -> 0 | F86: =IF($R34>$J25,D$25*$J25+D$26*($R34-$J25),$R34*D$25)+('Hypothetical SAR and RAR'!$C$18*$R34)+IF(R34>0,$F$12,0) -> 0 | G86: =IF($Q34>$I25,E$22*$I25+E$23*($Q34-$I25),$Q34*E$22)+('Hypothetical SAR and RAR'!$C$18*$Q34)+IF(Q34>0,$H$12,0) -> 0 | H86: =IF($R34>$J25,E$25*$J25+E$26*($R34-$J25),$R34*E$25)+('Hypothetical SAR and RAR'!$C$18*$R34)+IF(R34>0,$H$12,0) -> 0
B87: Total | C87: =SUMPRODUCT(C83:C86,$U$22:$U$25) -> 42.77727674 | D87: =SUMPRODUCT(D83:D86,$U$22:$U$25) -> 114.530626 | E87: 43.0044448 | F87: 115.1734182 | G87: 43.0044448 | H87: 115.1734182
C90: 5-Year Average Monthly Usage Basic Bundled CARE Customer
C91: =C81 -> 2024-01-01 | E91: =E81 -> 2024-12-01 | G91: =G81 -> Proposed
C92: Summer | D92: Winter | E92: Summer | F92: Winter | G92: Summer | H92: Winter
B93: =Zones -> 1 | C93: =IF($S31>$I22,C$31*$I22+C$32*($S31-$I22),$S31*C$31)+('Hypothetical SAR and RAR'!$C$18*$S31)+IF(S31>0,$Q$12,0) -> 28.03401451 | D93: =IF($T31>$J22,C$34*$J22+C$35*($T31-$J22),$T31*C$34)+('Hypothetical SAR and RAR'!$C$18*$T31)+IF(T31>0,$Q$12,0) -> 49.02218195 | E93: =IF($S31>$I22,D$31*$I22+D$32*($S31-$I22),$S31*D$31)+('Hypothetical SAR and RAR'!$C$18*$S31)+IF(S31>0,$Q$12,0) -> 28.1797902 | F93: =IF($T31>$J22,D$34*$J22+D$35*($T31-$J22),$T31*D$34)+('Hypothetical SAR and RAR'!$C$18*$T31)+IF(T31>0,$Q$12,0) -> 49.28408875 | G93: =IF($S31>$I22,E$31*$I22+E$32*($S31-$I22),$S31*E$31)+('Hypothetical SAR and RAR'!$C$18*$S31)+IF(S31>0,$S$12,0) -> 28.1797902 | H93: =IF($T31>$J22,E$34*$J22+E$35*($T31-$J22),$T31*E$34)+('Hypothetical SAR and RAR'!$C$18*$T31)+IF(T31>0,$S$12,0) -> 49.28408875
B94: 2 | C94: =IF($S32>$I23,C$31*$I23+C$32*($S32-$I23),$S32*C$31)+('Hypothetical SAR and RAR'!$C$18*$S32)+IF(S32>0,$Q$12,0) -> 29.79471639 | D94: =IF($T32>$J23,C$34*$J23+C$35*($T32-$J23),$T32*C$34)+('Hypothetical SAR and RAR'!$C$18*$T32)+IF(T32>0,$Q$12,0) -> 74.62718203 | E94: =IF($S32>$I23,D$31*$I23+D$32*($S32-$I23),$S32*D$31)+('Hypothetical SAR and RAR'!$C$18*$S32)+IF(S32>0,$Q$12,0) -> 29.95210558 | F94: =IF($T32>$J23,D$34*$J23+D$35*($T32-$J23),$T32*D$34)+('Hypothetical SAR and RAR'!$C$18*$T32)+IF(T32>0,$Q$12,0) -> 75.05167486 | G94: =IF($S32>$I23,E$31*$I23+E$32*($S32-$I23),$S32*E$31)+('Hypothetical SAR and RAR'!$C$18*$S32)+IF(S32>0,$S$12,0) -> 29.95210558 | H94: =IF($T32>$J23,E$34*$J23+E$35*($T32-$J23),$T32*E$34)+('Hypothetical SAR and RAR'!$C$18*$T32)+IF(T32>0,$S$12,0) -> 75.05167486
B95: 3 | C95: =IF($S33>$I24,C$31*$I24+C$32*($S33-$I24),$S33*C$31)+('Hypothetical SAR and RAR'!$C$18*$S33)+IF(S33>0,$Q$12,0) -> 41.10147607 | D95: =IF($T33>$J24,C$34*$J24+C$35*($T33-$J24),$T33*C$34)+('Hypothetical SAR and RAR'!$C$18*$T33)+IF(T33>0,$Q$12,0) -> 126.0583934 | E95: =IF($S33>$I24,D$31*$I24+D$32*($S33-$I24),$S33*D$31)+('Hypothetical SAR and RAR'!$C$18*$S33)+IF(S33>0,$Q$12,0) -> 41.33344407 | F95: =IF($T33>$J24,D$34*$J24+D$35*($T33-$J24),$T33*D$34)+('Hypothetical SAR and RAR'!$C$18*$T33)+IF(T33>0,$Q$12,0) -> 126.7997271 | G95: =IF($S33>$I24,E$31*$I24+E$32*($S33-$I24),$S33*E$31)+('Hypothetical SAR and RAR'!$C$18*$S33)+IF(S33>0,$S$12,0) -> 41.33344407 | H95: =IF($T33>$J24,E$34*$J24+E$35*($T33-$J24),$T33*E$34)+('Hypothetical SAR and RAR'!$C$18*$T33)+IF(T33>0,$S$12,0) -> 126.7997271
B96: 0 | C96: =IF($S34>$I25,C$31*$I25+C$32*($S34-$I25),$S34*C$31)+('Hypothetical SAR and RAR'!$C$18*$S34)+IF(S34>0,$Q$12,0) -> 0 | D96: =IF($T34>$J25,C$34*$J25+C$35*($T34-$J25),$T34*C$34)+('Hypothetical SAR and RAR'!$C$18*$T34)+IF(T34>0,$Q$12,0) -> 0 | E96: =IF($S34>$I25,D$31*$I25+D$32*($S34-$I25),$S34*D$31)+('Hypothetical SAR and RAR'!$C$18*$S34)+IF(S34>0,$Q$12,0) -> 0 | F96: =IF($T34>$J25,D$34*$J25+D$35*($T34-$J25),$T34*D$34)+('Hypothetical SAR and RAR'!$C$18*$T34)+IF(T34>0,$Q$12,0) -> 0 | G96: =IF($S34>$I25,E$31*$I25+E$32*($S34-$I25),$S34*E$31)+('Hypothetical SAR and RAR'!$C$18*$S34)+IF(S34>0,$S$12,0) -> 0 | H96: =IF($T34>$J25,E$34*$J25+E$35*($T34-$J25),$T34*E$34)+('Hypothetical SAR and RAR'!$C$18*$T34)+IF(T34>0,$S$12,0) -> 0
B97: Total | C97: =SUMPRODUCT(C93:C96,$V$22:$V$25) -> 34.78253489 | D97: =SUMPRODUCT(D93:D96,$V$22:$V$25) -> 93.36909504 | E97: 34.97282348 | F97: 93.90796 | G97: 34.97282348 | H97: 93.90796

Sheet SetUp
C4: Current Quarter Effective Rate Date | D4: 2024-12-01 | F4: Zones | H4: Revenue Recovery Mechanisms | J4: Years Available for Rate Impact | K4: Procurement Rate Assumption
C5: Beginning of Year Effecive Rate Date | D5: 2024-01-01 | F5: 1 | H5: Core Procurement | J5: 2024 | K5: 0.5472366667
C6: Care Discount % | D6: 0.2 | F6: 2 | H6: Allocated Base Margin | J6: =J5+1 -> 2025 | K6: =K5*(1+L6) -> 0.6019603333 | L6: 0.1
C7: Proposed Residential Fixed Charge | D7: 5 | F7: 3 | H7: Distribution | J7: =J6+1 -> 2026 | K7: 0.6621563667 | L7: 0.1
H8: ECPT adjusted | J8: 2027 | K8: 0.7283720033 | L8: 0.1
F9: All | H9: Local Transmission | J9: 2028 | K9: 0.8012092037 | L9: 0.1
H10: SGIP
H11: GHG End User | J11: =J5-1 -> 2023 | K11: 0.7935641667
C12: Regulatory Fee | D12: 0.001 | H12: Public Purpose Programs
H13: Backbone Transmission
F14: Other Revenues | H14: 47% Res (LUAF, Other)
F15: and Balancing | H15: ECPT
F16: Accouns | H16: EPAM
H17: CFCA
H18: Non-Residential
H21: Procurement
H22: Customer Costs
H23: Medium Pressure Distribution
H24: High Pressure Distribution
H25: Local Transmission
H26: Storage
H27: GHG Revenue
H28: Other Balancing Acounts
H29: NGV Costs
H30: Backbone Transmisson
H31: Public Purpose Programs
